Department Family,Entity,Date of Payment,Expense Type,Expense Area,Supplier,Voluntary & Community Sector,SME Class,Sole Trader,D-U-N-S Number,Transaction number,PSPES Level 2,Narrative,Postal Code,Amount in Sterling,Grant?
Communities & Local Government,DCLG,01/12/2016,Advertising,"Strategy, Communications and Private Office",CARAT LTD,,Large,,211589882,5106224336,Advertising,RtB Asbof Fee ,NW1 3BF,71.59,
Communities & Local Government,DCLG,01/12/2016,Advertising,"Strategy, Communications and Private Office",CARAT LTD,,Large,,211589882,5106224336,Advertising,RTB - TV Adsmart,NW1 3BF,"89,913.70",
Communities & Local Government,DCLG,01/12/2016,Electronic Data Storage,FIRST,TNT UK LIMITED,,Large,,,5106224897,Warehousing and Storage,Visions electronic storage,BL10 9GR,"4,192.44",
Communities & Local Government,DCLG,01/12/2016,ERDF Work in Progress � Revenue,Decentralisation and Local Growth,GATESHEAD COUNCIL,,Large,,,7700000059,,ERDF grant payment,NE8 1HH,"7,750.00",Yes
Communities & Local Government,DCLG,01/12/2016,ERDF Work in Progress � Revenue,Decentralisation and Local Growth,NEWCASTLE CITY COUNCIL,,,,,7700000058,,ERDF grant payment,NE1 8QH,"11,990.99",Yes
Communities & Local Government,DCLG,01/12/2016,ERDF Work in Progress � Revenue,Decentralisation and Local Growth,NORTH EAST AUTOMOTIVE ALLIANCE (NEA,,,,,7700000056,,ERDF grant payment,SR5 3XB,"80,411.90",Yes
Communities & Local Government,DCLG,01/12/2016,ERDF Work in Progress � Revenue,Decentralisation and Local Growth,NORTHUMBERLAND COUNTY COUNCIL,,,,,7700000060,,ERDF grant payment,NE61 2EF,"5,500.00",Yes
Communities & Local Government,DCLG,01/12/2016,ERDF Work in Progress � Revenue,Decentralisation and Local Growth,UNI OF NORTHUMBRIA NEWCASTLE,,Large,,,7700000057,,ERDF grant payment,NE 8ST,"25,554.77",Yes
Communities & Local Government,DCLG,01/12/2016,IT - Service Contracts,FIRST,ORANGE (AIRTIME/LINE RENTAL),,Large,,210707540,2100269401,Managed / Outsourced Services,Monthly consolidated cos Nov 2016,S98 1DX,399.54,
Communities & Local Government,DCLG,01/12/2016,IT - Service Contracts,Housing & Planning,DEXTROUS WEB LTD,,Micro,,211267270,5106224892,IT Managed / Outsourced Services,Hosting 9 months to 31.12.16,N1 7NG,868.8,
Communities & Local Government,DCLG,01/12/2016,IT - Software Maintenance,FIRST,LEIDOS,,Large,,399909910,5106224882,IT Managed / Outsourced Services,MCIS/TESA support services FY16/17,G3 8EP,"48,108.00",
Communities & Local Government,DCLG,01/12/2016,Steady State Service Provision,Housing & Planning,ST BASILS CENTRE,Yes,Small,,289531105,5106224884,Business Process Outsourcing Services,Secondment,B9 4AX,"5,974.54",
Communities & Local Government,DCLG,01/12/2016,Training,FIRST,ACAS,,Large,,,5106224886,Development and Training,Civil Service Training,NW1 3JJ,290,
Communities & Local Government,DCLG,01/12/2016,Web Services,"Strategy, Communications and Private Office",DEXTROUS WEB LTD,,Micro,,211267270,5106224883,ICT Services,HO-Website Hosting & Support (x2 Years),N1 7NG,"1,285.44",
Communities & Local Government,DCLG,02/12/2016,Advertising,"Strategy, Communications and Private Office",OGILVY & MATHER GROUP (HOLDINGS) LT,,Large,,,5106224910,Advertising,Own Your Own Home campaign 2016/17,E14 4QB,"68,722.25",
Communities & Local Government,DCLG,02/12/2016,Agency Staff,FIRST,BROOK STREET UK LTD,,Large,,364940028,5106224911,Contingent Labour,Interim Admin support,AL1 4JB,487.07,
Communities & Local Government,DCLG,02/12/2016,Agency Staff,FIRST,BROOK STREET UK LTD,,Large,,364940028,5106224913,Contingent Labour,Support worker for staff interim measure,AL1 4JB,532.87,
Communities & Local Government,DCLG,02/12/2016,Agency Staff,Housing & Planning,BROOK STREET UK LTD,,Large,,364940028,5106224917,Contingent Labour,Temporary Executive Officer -3 months,AL1 4JB,592.27,
Communities & Local Government,DCLG,02/12/2016,Current (non AEF) Grants to Local Authorities,Local Government & Public Services,GLOUCESTER CITY CNCL,,,,230841392,5000020224,,Overpayment of Grant recovered by Exchequer,GL1 2EQ,"-139,200.00",Yes
Communities & Local Government,DCLG,02/12/2016,ERDF Work in Progress � Capital,Decentralisation and Local Growth,BIRMINGHAM CITY COUNCIL (NOT RATES),,Large,,,2300002621,,ERDF grant recovery,B1 1BB,"-16,489.50",Yes
Communities & Local Government,DCLG,02/12/2016,ERDF Work in Progress � Capital,Decentralisation and Local Growth,REDSUN DEVELOPMENTS LTD,,Small,,,7700000061,,ERDF grant payment,L3 9LQ,"134,901.51",Yes
Communities & Local Government,DCLG,02/12/2016,Professional services,Housing & Planning,VALUATION OFFICE AGENCY,,Public Bodies,,215253886,5106224928,Financial,Financial Checks 2016/17,W1D 5BU,"1,967.82",
Communities & Local Government,DCLG,02/12/2016,Professional services,Local Government & Public Services,MALCOLM READING CONSULTANTS,,Micro,,424223282,5106224840,Financial,Technical Contract Management  Support,EC1N 6RY,"13,173.90",
Communities & Local Government,DCLG,02/12/2016,Publications,FIRST,JONES YARRELL LEADENHALL LTD,,Large,,505670265,5106224921,Learning and Development Materials,Journal and Newspaper Supply 2016-17,E3 3JH,254.16,
Communities & Local Government,DCLG,02/12/2016,Publications,"Strategy, Communications and Private Office",JONES YARRELL LEADENHALL LTD,,Large,,505670265,5106224918,Learning and Development Materials,JYL Printed Publications,E3 3JH,366.2,
Communities & Local Government,DCLG,02/12/2016,Repayments of Private Sect Grant (Cap),Decentralisation and Local Growth,CHESTER UNIVERSITY,,Large,,,2300002658,,RGF grant recovery,CH1 4BJ,"-12,258.73",
Communities & Local Government,DCLG,02/12/2016,Repayments of Private Sect Grant (Cap),Decentralisation and Local Growth,THARSUS ENGINEERING LTD,,,,,2300002639,,RGF grant recovery,NE24 5TG,"-17,620.35",
Communities & Local Government,DCLG,02/12/2016,Steady State Service Provision,FIRST,CGI IT UK LIMITED,,Large,,239881618,5106224907,Business Process Outsourcing Services,Payroll Services & Licences 15/17,CF31 9AP,"6,897.69",
Communities & Local Government,DCLG,02/12/2016,Steady State Service Provision,FIRST,CGI IT UK LIMITED,,Large,,239881618,5106224922,Business Process Outsourcing Services,Payroll Services & Licences 15/17,CF31 9AP,251.88,
Communities & Local Government,DCLG,02/12/2016,Steady State Service Provision,Housing & Planning,GL HEARN LTD,,Large,,,5106224915,Not Addressable,Estate Regen Secondment Support,WC1V 7EE,"5,887.20",
Communities & Local Government,DCLG,02/12/2016,Training,FIRST,COMMTAS LTD (SIGNATURES NOT FORM),,Micro,,,5106224920,Development and Training,Civil Service Training,M25 1NF,500,
Communities & Local Government,DCLG,05/12/2016,Advertising,"Strategy, Communications and Private Office",CARAT LTD,,Large,,211589882,5106224963,Advertising,HtB Asbof Fee ,NW1 3BF,71.59,
Communities & Local Government,DCLG,05/12/2016,Advertising,"Strategy, Communications and Private Office",CARAT LTD,,Large,,211589882,5106224963,Advertising,HTB - Sky TV Adsmart,NW1 3BF,"89,913.70",
Communities & Local Government,DCLG,05/12/2016,ERDF Work in Progress � Revenue,Decentralisation and Local Growth,RTC NORTH,,Small,,,7700000062,,ERDF grant payment,SR5 3XB,"81,366.36",Yes
Communities & Local Government,DCLG,05/12/2016,EXP � PURCHASE OF GOODS /SERVICES R & D,Housing & Planning,INNOVATE AT PRP LTD,,Large,,,5106224966,Research,Research on moisture Risks in buildings,KT7 0QJ,"5,715.00",
Communities & Local Government,DCLG,05/12/2016,EXP � PURCHASE OF GOODS /SERVICES R & D,Local Government & Public Services,ECORYS UK LTD,,Medium,,,5106224766,Research,Research - Troubled Families,B1 2RA,"151,440.60",
Communities & Local Government,DCLG,05/12/2016,IT - Service Contracts,FIRST,ULTIMA BUSINESS SOLUTIONS LTD,,Large,,505734145,5106224902,IT Managed / Outsourced Services,MS Office365/Azure Discovery work,RG2 0RX,"8,400.00",
Communities & Local Government,DCLG,05/12/2016,IT - Service Contracts,Housing & Planning,SWIRRL IT LIMITED,,Micro,,211074993,5106224929,IT Managed / Outsourced Services,Development of e-cloud system for release of energy  data,FK7 7WT,"10,917.60",
Communities & Local Government,DCLG,05/12/2016,Steady State Service Provision,Housing & Planning,LOCALITY,,Medium,,347998312,5106224946,Business Process Outsourcing Services,Neighbourhood Planning & CRTB,N1 6DR,"36,792.88",
Communities & Local Government,DCLG,05/12/2016,Training,Local Government & Public Services,UNIVERSITY COLLEGE LONDON,,Large,,225410919,5106224957,Development and Training,Civil Service Training,WC1E 6BT,"3,368.70",
Communities & Local Government,DCLG,05/12/2016,Vehicle hire,"Strategy, Communications and Private Office",GOVERNMENT CAR & DESPATCH AGENCY,,Public Bodies,,,5106224814,Vehicle Hire and Lease,Ministerial Duty Car (Non-VAT),SW8 5AX,357,
Communities & Local Government,DCLG,05/12/2016,Vehicle hire,"Strategy, Communications and Private Office",GOVERNMENT CAR & DESPATCH AGENCY,,Public Bodies,,,5106224814,Vehicle Hire and Lease,Ministerial Duty Car 2(LT206) 2016-17,SW8 5AX,"6,944.65",
Communities & Local Government,DCLG,05/12/2016,Vehicle hire,"Strategy, Communications and Private Office",GOVERNMENT CAR & DESPATCH AGENCY,,Public Bodies,,,5106224919,Vehicle Hire and Lease,Ministerial Duty Car (Non-VAT),SW8 5AX,178.5,
Communities & Local Government,DCLG,05/12/2016,Vehicle hire,"Strategy, Communications and Private Office",GOVERNMENT CAR & DESPATCH AGENCY,,Public Bodies,,,5106224919,Vehicle Hire and Lease,Ministerial Duty Car 1 (LT118) 2016-17,SW8 5AX,"7,008.59",
Communities & Local Government,DCLG,06/12/2016,Agency Staff,Decentralisation and Local Growth,CAPITA BUS. SERV. LTD (CON LAB),,Large,,,5106224981,Contingent Labour,Interim Manager,DL1 9HB,"1,413.55",
Communities & Local Government,DCLG,06/12/2016,Agency Staff,Local Government & Public Services,CAPITA BUS. SERV. LTD (CON LAB),,Large,,,5106224974,Contingent Labour,Interim Manager,DL1 9HB,807.46,
Communities & Local Government,DCLG,06/12/2016,ERDF Work in Progress � Revenue,Decentralisation and Local Growth,ACCESS TO BUSINESS,Yes,Small,,,7700000063,,ERDF grant payment,WV2 1AA,"92,879.69",Yes
Communities & Local Government,DCLG,06/12/2016,EXP � PURCHASE OF GOODS /SERVICES R & D,Local Government & Public Services,ATLANTIC PRODUCTIONS LTD,,Medium,,,5106224987,Research,UKHMF - Testimony,W6 7DE,"262,836.67",
Communities & Local Government,DCLG,06/12/2016,IT - Service Contracts,Local Government & Public Services,CAPITA BUS. SERV. LTD (CON LAB),,Large,,,5106224989,Contingent Labour,SPECIALIST EXPERTISE,DL1 9HB,"4,276.44",
Communities & Local Government,DCLG,06/12/2016,IT - Service Contracts,Local Government & Public Services,GROUNDWORK UK,Yes,,,739193758,5106225003,IT Managed / Outsourced Services,Lot 2 Community Rights programme Grant,B1 2RR,"10,245.92",
Communities & Local Government,DCLG,06/12/2016,IT - Service Contracts,FIRST,LEIDOS,,Large,,399909910,5106224944,IT Managed / Outsourced Services,SAP & MCIS - Testing 26-27/11,G3 8EP,"1,197.00",
Communities & Local Government,DCLG,06/12/2016,Legal Fees,FIRST,GOVERNMENT LEGAL DEPARTMENT,,Public Bodies,,215580680,5106224998,Legal,Legal Advice,WC2B 4TS,"1,288.07",
Communities & Local Government,DCLG,06/12/2016,Legal Fees,FIRST,GOVERNMENT LEGAL DEPARTMENT,,Public Bodies,,215580680,5106225001,Legal,Legal Advice,WC2B 4TS,"2,236.21",
Communities & Local Government,DCLG,06/12/2016,Legal Fees,FIRST,GOVERNMENT LEGAL DEPARTMENT,,Public Bodies,,215580680,5106225001,Legal,Legal Advice,WC2B 4TS,"66,297.66",
Communities & Local Government,DCLG,06/12/2016,Publications,"Strategy, Communications and Private Office",JONES YARRELL LEADENHALL LTD,,Large,,505670265,5106224972,Learning and Development Materials,JYL Printed Publications,E3 3JH,391.92,
Communities & Local Government,DCLG,06/12/2016,Steady State Service Provision,FIRST,MYCSP LIMITED,,Large,,217279092,5106224988,Business Process Outsourcing Services,VE Admin Charge,SK3 0XN,"1,203.26",
Communities & Local Government,DCLG,06/12/2016,Steady State Service Provision,FIRST,MYCSP LIMITED,,Large,,217279092,5106224992,Business Process Outsourcing Services,VE Admin Charge,SK3 0XN,857.05,
Communities & Local Government,DCLG,06/12/2016,Steady State Service Provision,FIRST,MYCSP LIMITED,,Large,,217279092,5106224994,Business Process Outsourcing Services,VE Admin Charge,SK3 0XN,509.38,
Communities & Local Government,DCLG,06/12/2016,Steady State Service Provision,FIRST,MYCSP LIMITED,,Large,,217279092,5106225008,Business Process Outsourcing Services,VE Admin Charge,SK3 0XN,509.38,
Communities & Local Government,DCLG,06/12/2016,Training,FIRST,LANGUAGE SERVICES DIRECT LIMITED,,Small,,,5106224991,Development and Training,Civil Service Training,SE1 1HR,278.76,
Communities & Local Government,DCLG,07/12/2016,Cap Grants to Local Authorities (DEL),Housing & Planning,MID SUFFOLK DC,,,,219028933,2100269504,,Right to Buy Social Mobility Fund (CIS),IP6 8DL,"20,000.00",Yes
Communities & Local Government,DCLG,07/12/2016,Current (non AEF) Grants to Local Authorities,FIRST, CO DURHAM & DARLINGTON FIRE RESCUE,,Public Bodies,,211684266,2100269507,,Regional Control Centre,DH1 1TW,"75,725.67",Yes
Communities & Local Government,DCLG,07/12/2016,Current (non AEF) Grants to Local Authorities,FIRST,GREATER LONDON AUTHORITY,,Large,,225353416,2100269506,,Regional Control Centre,SE10 1AP,"160,743.58",Yes
Communities & Local Government,DCLG,07/12/2016,Current (non AEF) Grants to Local Authorities,FIRST,GREATER MANCHESTER FIRE & RESCUE,,Public Bodies,,424873172,2100269505,,Regional Control Centre,M27 8US,"74,517.33",Yes
Communities & Local Government,DCLG,07/12/2016,ERDF Work in Progress � Revenue,Decentralisation and Local Growth,ACTION FOR BUSINESS (BRADFORD) LTD,,,,,7700000064,,ERDF grant payment,BD8 8BD,"8,705.76",Yes
Communities & Local Government,DCLG,07/12/2016,ERDF Work in Progress � Revenue,Decentralisation and Local Growth,CITY OF LIVERPOOL COLLEGE,,,,,7700000066,,ERDF grant payment,L13 0BQ,"334,322.18",Yes
Communities & Local Government,DCLG,07/12/2016,ERDF Work in Progress � Revenue,Decentralisation and Local Growth,UNIVERSITY OF CENTRAL LANCASHIRE,,Large,,,7700000065,,ERDF grant payment,PR7 7DL,"77,277.20",Yes
Communities & Local Government,DCLG,07/12/2016,Government Procurement Card (expense),"Strategy, Communications and Private Office",DCLG GOVERNMENT PROCUREMENT CARD,,,,,1000004164,,IT Equipment,TN37 7GA,538,
Communities & Local Government,DCLG,07/12/2016,Grant in Aid to NDPBs (non budget),FIRST,COMMISSION LOCAL ADMINISTRATION,,,,215271508,2100269468,,DCLG budget contribution for CLAE December 2016,SW1P 4QP,"947,000.00",Yes
Communities & Local Government,DCLG,07/12/2016,Grant in Aid to NDPBs (non budget),FIRST,VALUATION TRIBUNAL SERVICE,,,,211218366,2100269526,,GIA to VTS for Non Domestic Rates Appeals,E1 8EU,"742,100.00",Yes
Communities & Local Government,DCLG,07/12/2016,IT - Service Contracts,FIRST,FUJITSU SERVICES LTD,,Large,,423375062,5106225013,IT Managed / Outsourced Services,Migration of Impres Audit Database,WA3 6GD,"5,827.00",
Communities & Local Government,DCLG,07/12/2016,IT - Service Contracts,FIRST,ICASEWORK LTD,,Large,,,5106225023,IT Managed / Outsourced Services,DispatchBox Year 1 Service Charges,NW6 7SG,"5,060.00",
Communities & Local Government,DCLG,07/12/2016,Physical Storage,FIRST,IRON MOUNTAIN (UK) LIMITED,,Large,,501338354,5106225017,Warehousing and Storage,Off-site Storage Tapes 2016,EH54 7DF,452.25,
Communities & Local Government,DCLG,07/12/2016,Printing,"Strategy, Communications and Private Office",STATIONERY OFFICE LTD,,Large,,779375633,5106225032,Printing Services,Statutory Instruments Print: Non-Vatable,NR3 1PD,165,
Communities & Local Government,DCLG,07/12/2016,Printing,"Strategy, Communications and Private Office",STATIONERY OFFICE LTD,,Large,,779375633,5106225032,Printing Services,Statutory Instruments Print: Vatable,NR3 1PD,130,
Communities & Local Government,DCLG,07/12/2016,Publicity,"Strategy, Communications and Private Office",GORKANA GROUP LTD,,Large,,210089876,5106225018,Advertising,Press Cuttings ,EC1Y 8QE,"2,201.88",
Communities & Local Government,DCLG,07/12/2016,Repayments of Private Sect Grant (Cap),Decentralisation and Local Growth,CALSONIC KANSEI SUNDERLAND LTD,,,,,2300002657,,RGF grant recovery,SR4 9EW,"-33,220.00",
Communities & Local Government,DCLG,07/12/2016,Repayments of Private Sect Grant (Cap),Decentralisation and Local Growth,THARSUS ENGINEERING LTD,,,,,2300002662,,RGF grant recovery,NE24 5TG,"-17,620.35",
Communities & Local Government,DCLG,07/12/2016,Steady State Service Provision,Local Government & Public Services,VODAFONE LTD FORMELY CABLE  & WIREL,,Large,,239869688,5106225031,Business Process Outsourcing Services,Managed Internet Access Line,MK3 5JP,582.58,
Communities & Local Government,DCLG,07/12/2016,Training,FIRST,PRESS ASSOCIATION,,Large,,217191704,5106225010,Development and Training,Civil Service Training,DN14 7YH,680,
Communities & Local Government,DCLG,07/12/2016,Travel and Subsistence Account,Decentralisation and Local Growth,Employee Expenses,,,,,2100269503,Business Travel,Official Travel & Subsistence,,743.1,
Communities & Local Government,DCLG,07/12/2016,Travel and Subsistence Account,Local Government & Public Services,DIAL A CAB,,Medium,,225338235,2100269530,Business Travel,Official Travel & Subsistence,N1 6AH,83.54,
Communities & Local Government,DCLG,07/12/2016,Travel and Subsistence Account,"Strategy, Communications and Private Office",DIAL A CAB,,Medium,,225338235,2100269530,Business Travel,Official Travel & Subsistence,N1 6AH,26.83,
Communities & Local Government,DCLG,07/12/2016,Travel and Subsistence Account,"Strategy, Communications and Private Office",DIAL A CAB,,Medium,,225338235,2100269530,Business Travel,Official Travel & Subsistence,N1 6AH,392.61,
Communities & Local Government,DCLG,07/12/2016,Travel and Subsistence Account,"Strategy, Communications and Private Office",DIAL A CAB,,Medium,,225338235,2100269530,Business Travel,Official Travel & Subsistence,N1 6AH,70.76,
Communities & Local Government,DCLG,07/12/2016,Travel and Subsistence Account,"Strategy, Communications and Private Office",DIAL A CAB,,Medium,,225338235,2100269530,Business Travel,Official Travel & Subsistence,N1 6AH,316.14,
Communities & Local Government,DCLG,07/12/2016,Web Services,"Strategy, Communications and Private Office",PULSION TECHNOLOGY LTD,,Small,,,5106225019,ICT Services,Web hosting and related services,G4 9XA,858,
Communities & Local Government,DCLG,08/12/2016,Agency Staff,FIRST,INTERQUEST GROUP UK LIMITED,,Large,,423935241,5106225048,IT Managed / Outsourced Services,SAP Support Services,EC1N 8UA,"14,729.40",
Communities & Local Government,DCLG,08/12/2016,Current Grants to Non Profit Bodies,Housing & Planning,CEL GROUP,,Medium,,394794614,5106225047,Technical Services,Home Improvement Agencies 01.04.16 - 31.03.18,WA2 0YL,"68,870.86",Yes
Communities & Local Government,DCLG,08/12/2016,ERDF Work in Progress � Revenue,Decentralisation and Local Growth,KNOWLEDGE TRANSFER NETWORK LIMITED,,,,,7700000067,,ERDF grant payment,N1 0QH,"45,310.73",Yes
Communities & Local Government,DCLG,08/12/2016,Government Procurement Card (expense),FIRST,DCLG GOVERNMENT PROCUREMENT CARD,,,,,1000004165,,DCLG People Awards,TN37 7GA,466.9,
Communities & Local Government,DCLG,08/12/2016,Grant in Aid to NDPBs (non budget),Housing & Planning,EBBSFLEET DEVELOPMENT CORPORATION,,,,,2100269469,,DCLG budget contribution for EDC December 2016,DA11 8DB,"900,000.00",Yes
Communities & Local Government,DCLG,08/12/2016,IT - Service Contracts,FIRST,FUJITSU SERVICES LTD,,Large,,423375062,5106225041,IT Managed / Outsourced Services,SAP SHA256 SSL certs,WA3 6GD,"4,340.70",
Communities & Local Government,DCLG,08/12/2016,IT - Service Contracts,FIRST,FUJITSU SERVICES LTD,,Large,,423375062,5106225050,IT Managed / Outsourced Services,PINS New Requirements FY16/17,WA3 6GD,"1,691.08",
Communities & Local Government,DCLG,08/12/2016,IT - Service Contracts,FIRST,INTERQUEST GROUP UK LIMITED,,Large,,423935241,5106224969,IT Managed / Outsourced Services,Support for SQL environment Sep 16,EC1N 8UA,"2,250.00",
Communities & Local Government,DCLG,08/12/2016,Software Licences,FIRST,BYTES SOFTWARE SERVICES LTD,,Medium,,225273754,5106225036,Software,Supernova magnifier extra licence v15,KT22 7TW,528.13,
Communities & Local Government,DCLG,09/12/2016,Agency Staff,FIRST,BROOK STREET UK LTD,,Large,,364940028,5106225063,Contingent Labour,Support worker for staff interim measure,AL1 4JB,574.9,
Communities & Local Government,DCLG,09/12/2016,Agency Staff,Housing & Planning,BROOK STREET UK LTD,,Large,,364940028,5106225061,Contingent Labour,Temporary Executive Officer -3 months,AL1 4JB,592.27,
Communities & Local Government,DCLG,09/12/2016,ERDF Work in Progress � Revenue,Decentralisation and Local Growth,DERBY UNIVERSITY,,Large,,,7600015480,,Revenue Grant Clawback Offset,DE22 1XB,"-1,792.35",Yes
Communities & Local Government,DCLG,09/12/2016,ERDF Work in Progress � Revenue,Decentralisation and Local Growth,DERBY UNIVERSITY,,Large,,,7600015480,,Revenue Grant To Be Paid,DE22 1XB,"13,905.10",Yes
Communities & Local Government,DCLG,09/12/2016,Grant in Aid to NDPBs (non budget),Housing & Planning,HOMES & COMMUNITIES AGENCY,,Public Bodies,,215576860,2100269572,,Monthly HCA Grant in Aid Claim for December 2016,NE11 0NA,"378,713,617.00",Yes
Communities & Local Government,DCLG,09/12/2016,Miscellaneous Legal Costs,Housing & Planning,ADUR DC,,,,227472891,5000353659,,PROPERTY SEARCHES NEW BURDENS PAYMENT,BN11 1HA,"6,032.00",
Communities & Local Government,DCLG,09/12/2016,Miscellaneous Legal Costs,Housing & Planning,ALLERDALE BOROUGH COUNCIL,,,,218146780,5000353661,,PROPERTY SEARCHES NEW BURDENS PAYMENT,CA14 3YJ,"7,037.00",
Communities & Local Government,DCLG,09/12/2016,Miscellaneous Legal Costs,Housing & Planning,AMBER VALLEY BC,,,,,5000353664,,PROPERTY SEARCHES NEW BURDENS PAYMENT,DE5 3BT,"6,566.00",
Communities & Local Government,DCLG,09/12/2016,Miscellaneous Legal Costs,Housing & Planning,ARUN DC,,,,211217668,5000353202,,PROPERTY SEARCHES NEW BURDENS PAYMENT,BN17 5LF,"12,238.00",
Communities & Local Government,DCLG,09/12/2016,Miscellaneous Legal Costs,Housing & Planning,ASHFIELD DC,,,,235415296,5000353665,,PROPERTY SEARCHES NEW BURDENS PAYMENT,NG17 8DA,"7,837.00",
Communities & Local Government,DCLG,09/12/2016,Miscellaneous Legal Costs,Housing & Planning,ASHFORD BC,,,,229467071,5000353206,,PROPERTY SEARCHES NEW BURDENS PAYMENT,TN23 1PL,"6,307.00",
Communities & Local Government,DCLG,09/12/2016,Miscellaneous Legal Costs,Housing & Planning,AYLESBURY VALE DC(HSG),,,,396710709,5000353207,,PROPERTY SEARCHES NEW BURDENS PAYMENT,HP19 8FF,"10,150.00",
Communities & Local Government,DCLG,09/12/2016,Miscellaneous Legal Costs,Housing & Planning,BABERGH DC,,,,232618405,5000353211,,PROPERTY SEARCHES NEW BURDENS PAYMENT,IP7 6SJ,"6,777.00",
Communities & Local Government,DCLG,09/12/2016,Miscellaneous Legal Costs,Housing & Planning,BARKING & DAGENHAM LB (HSG),,,,217142293,5000353212,,PROPERTY SEARCHES NEW BURDENS PAYMENT,RM10 7BY,"8,451.00",
Communities & Local Government,DCLG,09/12/2016,Miscellaneous Legal Costs,Housing & Planning,BARNSLEY MBC,,,,211178595,5000353670,,PROPERTY SEARCHES NEW BURDENS PAYMENT,S70 2AQ,"18,222.00",
Communities & Local Government,DCLG,09/12/2016,Miscellaneous Legal Costs,Housing & Planning,BARROW BC,,,,295632913,5000353672,,PROPERTY SEARCHES NEW BURDENS PAYMENT,LA14 2LD,"4,326.00",
Communities & Local Government,DCLG,09/12/2016,Miscellaneous Legal Costs,Housing & Planning,BASILDON BOROUGH COUNCIL,,,,,5000353675,,PROPERTY SEARCHES NEW BURDENS PAYMENT,SS14 0DF,"10,626.00",
Communities & Local Government,DCLG,09/12/2016,Miscellaneous Legal Costs,Housing & Planning,BASINGSTOKE & DEANE BC,,,,228328506,5000353676,,PROPERTY SEARCHES NEW BURDENS PAYMENT,RG21 2AJ,"7,117.00",
Communities & Local Government,DCLG,09/12/2016,Miscellaneous Legal Costs,Housing & Planning,BASSETLAW DC (HSG),,,,,5000353216,,PROPERTY SEARCHES NEW BURDENS PAYMENT,S80 2AH,"7,076.00",
Communities & Local Government,DCLG,09/12/2016,Miscellaneous Legal Costs,Housing & Planning,BATH & NE SOMERSET DC (HSG),,,,214502499,5000353218,,PROPERTY SEARCHES NEW BURDENS PAYMENT,BA1 5AW,"9,554.00",
Communities & Local Government,DCLG,09/12/2016,Miscellaneous Legal Costs,Housing & Planning,BEDFORD UNITARY AUTHORITY,,,,225682160,5000353984,,PROPERTY SEARCHES NEW BURDENS PAYMENT,MK40 1SJ,"7,946.00",
Communities & Local Government,DCLG,09/12/2016,Miscellaneous Legal Costs,Housing & Planning,BEXLEY LB (HSG),,,,,5000353221,,PROPERTY SEARCHES NEW BURDENS PAYMENT,DA8 1TL,"16,754.00",
Communities & Local Government,DCLG,09/12/2016,Miscellaneous Legal Costs,Housing & Planning,BIRMINGHAM CITY CNCL,,,,213780559,5000353679,,PROPERTY SEARCHES NEW BURDENS PAYMENT,B2 2AJ,"18,559.00",
Communities & Local Government,DCLG,09/12/2016,Miscellaneous Legal Costs,Housing & Planning,BLABY DC (HSG),,,,,5000353225,,PROPERTY SEARCHES NEW BURDENS PAYMENT,LE9 5EP,"4,436.00",
Communities & Local Government,DCLG,09/12/2016,Miscellaneous Legal Costs,Housing & Planning,BLACKBURN WITH DARWEN BC,,,,,5000353681,,PROPERTY SEARCHES NEW BURDENS PAYMENT,BB1 7DY,"10,264.00",
Communities & Local Government,DCLG,09/12/2016,Miscellaneous Legal Costs,Housing & Planning,BLACKPOOL BC,,,,,5000353683,,PROPERTY SEARCHES NEW BURDENS PAYMENT,FY1 1NA,"7,343.00",
Communities & Local Government,DCLG,09/12/2016,Miscellaneous Legal Costs,Housing & Planning,BOLSOVER DC,,,,235516523,5000353685,,PROPERTY SEARCHES NEW BURDENS PAYMENT,S43 4JY,"5,392.00",
Communities & Local Government,DCLG,09/12/2016,Miscellaneous Legal Costs,Housing & Planning,BOLTON MBC,,,,,5000353686,,PROPERTY SEARCHES NEW BURDENS PAYMENT,BL1 1RU,"17,871.00",
Communities & Local Government,DCLG,09/12/2016,Miscellaneous Legal Costs,Housing & Planning,BOSTON BC,,,,236417713,5000353231,,PROPERTY SEARCHES NEW BURDENS PAYMENT,PE21 8QR,"5,341.00",
Communities & Local Government,DCLG,09/12/2016,Miscellaneous Legal Costs,Housing & Planning,BOURNEMOUTH DC,,,,,5000353688,,PROPERTY SEARCHES NEW BURDENS PAYMENT,BH2 6EB,"10,468.00",
Communities & Local Government,DCLG,09/12/2016,Miscellaneous Legal Costs,Housing & Planning,BRACKNELL FOREST DC,,,,236184867,5000353690,,PROPERTY SEARCHES NEW BURDENS PAYMENT,RG12 1AQ,"7,665.00",
Communities & Local Government,DCLG,09/12/2016,Miscellaneous Legal Costs,Housing & Planning,BRADFORD MBC,,,,,5000353692,,PROPERTY SEARCHES NEW BURDENS PAYMENT,BD1 1HX,"42,892.00",
Communities & Local Government,DCLG,09/12/2016,Miscellaneous Legal Costs,Housing & Planning,BRAINTREE DC,,,,226941730,5000353234,,PROPERTY SEARCHES NEW BURDENS PAYMENT,CM7 6HB,"14,526.00",
Communities & Local Government,DCLG,09/12/2016,Miscellaneous Legal Costs,Housing & Planning,BRECKLAND DC,,,,232611384,5000353237,,PROPERTY SEARCHES NEW BURDENS PAYMENT,NR19 1EE,"7,656.00",
Communities & Local Government,DCLG,09/12/2016,Miscellaneous Legal Costs,Housing & Planning,BRENT LB (HSG),,,,,5000353240,,PROPERTY SEARCHES NEW BURDENS PAYMENT,HA9 9HD,"6,413.00",
Communities & Local Government,DCLG,09/12/2016,Miscellaneous Legal Costs,Housing & Planning,BRENTWOOD BC,,,,227473188,5000353694,,PROPERTY SEARCHES NEW BURDENS PAYMENT,CM15 8AY,"4,634.00",
Communities & Local Government,DCLG,09/12/2016,Miscellaneous Legal Costs,Housing & Planning,BRIGHTON & HOVE CITY COUNCIL,,Large,,228455218,5000353695,,PROPERTY SEARCHES NEW BURDENS PAYMENT,BN3 2LS,"23,353.00",
Communities & Local Government,DCLG,09/12/2016,Miscellaneous Legal Costs,Housing & Planning,BRISTOL CITY CNCL (HSG),,,,211103882,5000353244,,PROPERTY SEARCHES NEW BURDENS PAYMENT,BS99 7BL,"18,375.00",
Communities & Local Government,DCLG,09/12/2016,Miscellaneous Legal Costs,Housing & Planning,BROADLAND DC,,Large,,219737785,5000353246,,PROPERTY SEARCHES NEW BURDENS PAYMENT,NR7 0DU,"7,705.00",
Communities & Local Government,DCLG,09/12/2016,Miscellaneous Legal Costs,Housing & Planning,BROMSGROVE DC,,,,236654745,5000353250,,PROPERTY SEARCHES NEW BURDENS PAYMENT,B60 1AA,"5,269.00",
Communities & Local Government,DCLG,09/12/2016,Miscellaneous Legal Costs,Housing & Planning,BROXBOURNE BC,,Public Bodies,,239931918,5000353697,,PROPERTY SEARCHES NEW BURDENS PAYMENT,EN8 9XG,"5,770.00",
Communities & Local Government,DCLG,09/12/2016,Miscellaneous Legal Costs,Housing & Planning,BROXTOWE BC,,,,239877640,5000353698,,PROPERTY SEARCHES NEW BURDENS PAYMENT,NG9 1AB,"5,755.00",
Communities & Local Government,DCLG,09/12/2016,Miscellaneous Legal Costs,Housing & Planning,BUCKINGHAMSHIRE CC,,,,293750923,5000353700,,PROPERTY SEARCHES NEW BURDENS PAYMENT,HP20 1UD,563,
Communities & Local Government,DCLG,09/12/2016,Miscellaneous Legal Costs,Housing & Planning,BURNLEY BC,,,,229413281,5000353702,,PROPERTY SEARCHES NEW BURDENS PAYMENT,BB11 1JA,"8,918.00",
Communities & Local Government,DCLG,09/12/2016,Miscellaneous Legal Costs,Housing & Planning,BURY MBC,,,,,5000353703,,PROPERTY SEARCHES NEW BURDENS PAYMENT,BL9 0SW,"13,395.00",
Communities & Local Government,DCLG,09/12/2016,Miscellaneous Legal Costs,Housing & Planning,CALDERDALE MBC,,,,,5000353705,,PROPERTY SEARCHES NEW BURDENS PAYMENT,HX1 1YP,"21,200.00",
Communities & Local Government,DCLG,09/12/2016,Miscellaneous Legal Costs,Housing & Planning,CAMBRIDGE CITY COUNCIL,,,,210357534,5000353706,,PROPERTY SEARCHES NEW BURDENS PAYMENT,CB1 0JH,"5,438.00",
Communities & Local Government,DCLG,09/12/2016,Miscellaneous Legal Costs,Housing & Planning,CAMBRIDGESHIRE COUNTY CNCL,,,,219047347,5000353708,,PROPERTY SEARCHES NEW BURDENS PAYMENT,CB3 0AP,994,
Communities & Local Government,DCLG,09/12/2016,Miscellaneous Legal Costs,Housing & Planning,CAMDEN LB,,,,211651836,5000353710,,PROPERTY SEARCHES NEW BURDENS PAYMENT,WC1H 8NG,"9,359.00",
Communities & Local Government,DCLG,09/12/2016,Miscellaneous Legal Costs,Housing & Planning,CANNOCK CHASE DC,,,,215064770,5000353711,,PROPERTY SEARCHES NEW BURDENS PAYMENT,WS11 1BG,"4,224.00",
Communities & Local Government,DCLG,09/12/2016,Miscellaneous Legal Costs,Housing & Planning,CANTERBURY CITY CNCL,,,,,5000353253,,PROPERTY SEARCHES NEW BURDENS PAYMENT,CT1 1YW,"9,559.00",
Communities & Local Government,DCLG,09/12/2016,Miscellaneous Legal Costs,Housing & Planning,CARLISLE CITY CNCL,,,,227471059,5000353255,,PROPERTY SEARCHES NEW BURDENS PAYMENT,CA3 8QG,"7,432.00",
Communities & Local Government,DCLG,09/12/2016,Miscellaneous Legal Costs,Housing & Planning,CASTLE POINT BC,,Public Bodies,,228217931,5000353713,,PROPERTY SEARCHES NEW BURDENS PAYMENT,SS7 1TF,"4,452.00",
Communities & Local Government,DCLG,09/12/2016,Miscellaneous Legal Costs,Housing & Planning,CENTRAL BEDFORDSHIRE COUNCIL,,,,232624882,5000353981,,PROPERTY SEARCHES NEW BURDENS PAYMENT,SG17 5TQ,"17,123.00",
Communities & Local Government,DCLG,09/12/2016,Miscellaneous Legal Costs,Housing & Planning,CHARNWOOD BC,,,,,5000353714,,PROPERTY SEARCHES NEW BURDENS PAYMENT,LE11 2TU,"5,767.00",
Communities & Local Government,DCLG,09/12/2016,Miscellaneous Legal Costs,Housing & Planning,CHELMSFORD BC,,,,,5000353716,,PROPERTY SEARCHES NEW BURDENS PAYMENT,CM1 1JE,"10,323.00",
Communities & Local Government,DCLG,09/12/2016,Miscellaneous Legal Costs,Housing & Planning,CHELTENHAM BC,,,,,5000353717,,PROPERTY SEARCHES NEW BURDENS PAYMENT,GL50 1PW,"7,995.00",
Communities & Local Government,DCLG,09/12/2016,Miscellaneous Legal Costs,Housing & Planning,CHERWELL DC,,,,,5000353258,,PROPERTY SEARCHES NEW BURDENS PAYMENT,OX15 4AA,"8,274.00",
Communities & Local Government,DCLG,09/12/2016,Miscellaneous Legal Costs,Housing & Planning,CHESHIRE EAST COUNCIL,,Large,,,5000353982,,PROPERTY SEARCHES NEW BURDENS PAYMENT,CW11 1HZ,"18,505.00",
Communities & Local Government,DCLG,09/12/2016,Miscellaneous Legal Costs,Housing & Planning,CHESHIRE WEST & CHESTER UA,,Large,,215584383,5000353983,,PROPERTY SEARCHES NEW BURDENS PAYMENT,CH1 2NP,"15,883.00",
Communities & Local Government,DCLG,09/12/2016,Miscellaneous Legal Costs,Housing & Planning,CHESTERFIELD BC,,,,232102301,5000353719,,PROPERTY SEARCHES NEW BURDENS PAYMENT,S40 1LP,"7,176.00",
Communities & Local Government,DCLG,09/12/2016,Miscellaneous Legal Costs,Housing & Planning,CHICHESTER DC,,,,739800998,5000353261,,PROPERTY SEARCHES NEW BURDENS PAYMENT,PO19 1TY,"8,712.00",
Communities & Local Government,DCLG,09/12/2016,Miscellaneous Legal Costs,Housing & Planning,CHILTERN DC (HSG),,,,,5000353264,,PROPERTY SEARCHES NEW BURDENS PAYMENT,HP6 5AW,"5,169.00",
Communities & Local Government,DCLG,09/12/2016,Miscellaneous Legal Costs,Housing & Planning,CHORLEY BOROUGH COUNCIL,,,,236415576,5000353721,,PROPERTY SEARCHES NEW BURDENS PAYMENT,PR7 1DP,"7,456.00",
Communities & Local Government,DCLG,09/12/2016,Miscellaneous Legal Costs,Housing & Planning,CHRISTCHURCH BC (HSG),,,,227415213,5000353267,,PROPERTY SEARCHES NEW BURDENS PAYMENT,BH23 1AZ,"2,601.00",
Communities & Local Government,DCLG,09/12/2016,Miscellaneous Legal Costs,Housing & Planning,CITY OF LINCOLN COUNCIL,,,,,5000353818,,PROPERTY SEARCHES NEW BURDENS PAYMENT,LN1 1DB,740,
Communities & Local Government,DCLG,09/12/2016,Miscellaneous Legal Costs,Housing & Planning,CITY OF LONDON (HSG),,,,217471460,5000353268,,PROPERTY SEARCHES NEW BURDENS PAYMENT,EC2P 2EJ,"1,836.00",
Communities & Local Government,DCLG,09/12/2016,Miscellaneous Legal Costs,Housing & Planning,CITY OF SUNDERLAND (HSG),,,,215599312,5000353272,,PROPERTY SEARCHES NEW BURDENS PAYMENT,SR2 7DN,"12,978.00",
Communities & Local Government,DCLG,09/12/2016,Miscellaneous Legal Costs,Housing & Planning,CITY OF WAKEFIELD MDC,,,,,5000353939,,PROPERTY SEARCHES NEW BURDENS PAYMENT,WF1 2QW,"13,309.00",
Communities & Local Government,DCLG,09/12/2016,Miscellaneous Legal Costs,Housing & Planning,COLCHESTER BC,,,,,5000353722,,PROPERTY SEARCHES NEW BURDENS PAYMENT,CO3 3WG,"12,559.00",
Communities & Local Government,DCLG,09/12/2016,Miscellaneous Legal Costs,Housing & Planning,COPELAND BC,,,,236414827,5000353276,,PROPERTY SEARCHES NEW BURDENS PAYMENT,CA28 7NY,"5,206.00",
Communities & Local Government,DCLG,09/12/2016,Miscellaneous Legal Costs,Housing & Planning,CORBY BC,,,,,5000353277,,PROPERTY SEARCHES NEW BURDENS PAYMENT,NN17 1GD,"5,072.00",
Communities & Local Government,DCLG,09/12/2016,Miscellaneous Legal Costs,Housing & Planning,CORNWALL UNITARY AUTHORITY,,,,211334404,5000353986,,PROPERTY SEARCHES NEW BURDENS PAYMENT,TR1 3AY,"40,929.00",
Communities & Local Government,DCLG,09/12/2016,Miscellaneous Legal Costs,Housing & Planning,COTSWOLD DC,,,,232462085,5000353281,,PROPERTY SEARCHES NEW BURDENS PAYMENT,GL7 1PX,"5,444.00",
Communities & Local Government,DCLG,09/12/2016,Miscellaneous Legal Costs,Housing & Planning,COVENTRY CITY CNCL,,,,210384802,5000353724,,PROPERTY SEARCHES NEW BURDENS PAYMENT,CV1 2QL,"20,163.00",
Communities & Local Government,DCLG,09/12/2016,Miscellaneous Legal Costs,Housing & Planning,CRAVEN DC (HSG),,,,,5000353283,,PROPERTY SEARCHES NEW BURDENS PAYMENT,BD23 1FJ,"3,865.00",
Communities & Local Government,DCLG,09/12/2016,Miscellaneous Legal Costs,Housing & Planning,CRAWLEY BC,,,,211222500,5000353286,,PROPERTY SEARCHES NEW BURDENS PAYMENT,RH10 1UZ,"6,553.00",
Communities & Local Government,DCLG,09/12/2016,Miscellaneous Legal Costs,Housing & Planning,CROYDON LB,,,,212419973,5000353725,,PROPERTY SEARCHES NEW BURDENS PAYMENT,CR9 3JS,"20,229.00",
Communities & Local Government,DCLG,09/12/2016,Miscellaneous Legal Costs,Housing & Planning,CUMBRIA COUNTY CNCL,,,,211316542,5000353727,,PROPERTY SEARCHES NEW BURDENS PAYMENT,CA3 8NA,597,
Communities & Local Government,DCLG,09/12/2016,Miscellaneous Legal Costs,Housing & Planning,DACORUM BC,,,,236448643,5000353728,,PROPERTY SEARCHES NEW BURDENS PAYMENT,HP1 1HH,"9,269.00",
Communities & Local Government,DCLG,09/12/2016,Miscellaneous Legal Costs,Housing & Planning,DARLINGTON BC,,,,,5000353730,,PROPERTY SEARCHES NEW BURDENS PAYMENT,TS19 1JA,"7,989.00",
Communities & Local Government,DCLG,09/12/2016,Miscellaneous Legal Costs,Housing & Planning,DARTFORD BC,,,,225694942,5000353288,,PROPERTY SEARCHES NEW BURDENS PAYMENT,DA1 1DR,"8,342.00",
Communities & Local Government,DCLG,09/12/2016,Miscellaneous Legal Costs,Housing & Planning,DAVENTRY DC,,,,239859333,5000353292,,PROPERTY SEARCHES NEW BURDENS PAYMENT,NN11 5AF,"5,019.00",
Communities & Local Government,DCLG,09/12/2016,Miscellaneous Legal Costs,Housing & Planning,DERBY CITY CNCL,,,,229641378,5000353731,,PROPERTY SEARCHES NEW BURDENS PAYMENT,DE1 2FS,"10,350.00",
Communities & Local Government,DCLG,09/12/2016,Miscellaneous Legal Costs,Housing & Planning,DERBYSHIRE COUNTYCOUNCIL,,,,232152967,5000353733,,PROPERTY SEARCHES NEW BURDENS PAYMENT,DE4 3AG,673,
Communities & Local Government,DCLG,09/12/2016,Miscellaneous Legal Costs,Housing & Planning,DERBYSHIRE DALES DC,,,,,5000353295,,PROPERTY SEARCHES NEW BURDENS PAYMENT,DE4 3NN,"4,319.00",
Communities & Local Government,DCLG,09/12/2016,Miscellaneous Legal Costs,Housing & Planning,DEVON COUNTY CNCL,,,,213754018,5000353734,,PROPERTY SEARCHES NEW BURDENS PAYMENT,EX2 4QJ,580,
Communities & Local Government,DCLG,09/12/2016,Miscellaneous Legal Costs,Housing & Planning,DONCASTER MBC,,,,,5000353736,,PROPERTY SEARCHES NEW BURDENS PAYMENT,DN1 3QA,"27,011.00",
Communities & Local Government,DCLG,09/12/2016,Miscellaneous Legal Costs,Housing & Planning,DOVER DC,,,,,5000353299,,PROPERTY SEARCHES NEW BURDENS PAYMENT,CT16 3PD,"7,282.00",
Communities & Local Government,DCLG,09/12/2016,Miscellaneous Legal Costs,Housing & Planning,DUDLEY MBC,,,,,5000353738,,PROPERTY SEARCHES NEW BURDENS PAYMENT,DY1 1HF,"11,702.00",
Communities & Local Government,DCLG,09/12/2016,Miscellaneous Legal Costs,Housing & Planning,DURHAM COUNTY COUNCIL,,,,224004882,5000353987,,PROPERTY SEARCHES NEW BURDENS PAYMENT,DH1 5UE,"31,761.00",
Communities & Local Government,DCLG,09/12/2016,Miscellaneous Legal Costs,Housing & Planning,EALING LB,,,,,5000353739,,PROPERTY SEARCHES NEW BURDENS PAYMENT,W5 2HL,"11,330.00",
Communities & Local Government,DCLG,09/12/2016,Miscellaneous Legal Costs,Housing & Planning,EAST CAMBRIDGESHIRE DC,,,,236472023,5000353304,,PROPERTY SEARCHES NEW BURDENS PAYMENT,CB7 4PL,"4,868.00",
Communities & Local Government,DCLG,09/12/2016,Miscellaneous Legal Costs,Housing & Planning,EAST DEVON DC,,,,,5000353306,,PROPERTY SEARCHES NEW BURDENS PAYMENT,EX10 8HL,"6,757.00",
Communities & Local Government,DCLG,09/12/2016,Miscellaneous Legal Costs,Housing & Planning,EAST DORSET DC,,,,228470456,5000353741,,PROPERTY SEARCHES NEW BURDENS PAYMENT,BH21 4HN,"4,515.00",
Communities & Local Government,DCLG,09/12/2016,Miscellaneous Legal Costs,Housing & Planning,EAST HAMPSHIRE DC,,,,,5000353309,,PROPERTY SEARCHES NEW BURDENS PAYMENT,GU31 4EX,"7,055.00",
Communities & Local Government,DCLG,09/12/2016,Miscellaneous Legal Costs,Housing & Planning,EAST HERTFORDSHIRE DC,,,,236176954,5000353314,,PROPERTY SEARCHES NEW BURDENS PAYMENT,SG13 8EQ,"7,860.00",
Communities & Local Government,DCLG,09/12/2016,Miscellaneous Legal Costs,Housing & Planning,EAST LINDSEY DC,,,,,5000353316,,PROPERTY SEARCHES NEW BURDENS PAYMENT,LN11 8UP,"7,827.00",
Communities & Local Government,DCLG,09/12/2016,Miscellaneous Legal Costs,Housing & Planning,EAST NORTHAMPTONSHIRE COUNCIL,,,,227475290,5000353320,,PROPERTY SEARCHES NEW BURDENS PAYMENT,NN14 4LZ,"8,560.00",
Communities & Local Government,DCLG,09/12/2016,Miscellaneous Legal Costs,Housing & Planning,EAST RIDING OF YORKS (HSG),,,,423159987,5000353323,,PROPERTY SEARCHES NEW BURDENS PAYMENT,HU17 9BA,"19,809.00",
Communities & Local Government,DCLG,09/12/2016,Miscellaneous Legal Costs,Housing & Planning,EAST STAFFORDSHIRE BC,,,,226778033,5000353326,,PROPERTY SEARCHES NEW BURDENS PAYMENT,DE14 2EB,"7,991.00",
Communities & Local Government,DCLG,09/12/2016,Miscellaneous Legal Costs,Housing & Planning,EAST SUSSEX COUNTY CNCL,,,,,5000353742,,PROPERTY SEARCHES NEW BURDENS PAYMENT,BN7 1SF,560,
Communities & Local Government,DCLG,09/12/2016,Miscellaneous Legal Costs,Housing & Planning,EASTBOURNE BC,,,,229896428,5000353744,,PROPERTY SEARCHES NEW BURDENS PAYMENT,BN21 4TW,"6,712.00",
Communities & Local Government,DCLG,09/12/2016,Miscellaneous Legal Costs,Housing & Planning,EASTLEIGH BOROUGH COUNCIL,,,,232669911,5000353746,,PROPERTY SEARCHES NEW BURDENS PAYMENT,SO5 9YN,"8,089.00",
Communities & Local Government,DCLG,09/12/2016,Miscellaneous Legal Costs,Housing & Planning,EDEN DC (HSG),,,,,5000353330,,PROPERTY SEARCHES NEW BURDENS PAYMENT,CA11 7QF,"3,423.00",
Communities & Local Government,DCLG,09/12/2016,Miscellaneous Legal Costs,Housing & Planning,ELMBRIDGE BC (HSG),,,,,5000353333,,PROPERTY SEARCHES NEW BURDENS PAYMENT,KT10 9SD,"12,598.00",
Communities & Local Government,DCLG,09/12/2016,Miscellaneous Legal Costs,Housing & Planning,ENFIELD LB,,,,,5000353747,,PROPERTY SEARCHES NEW BURDENS PAYMENT,EN1 3XF,"10,824.00",
Communities & Local Government,DCLG,09/12/2016,Miscellaneous Legal Costs,Housing & Planning,EPPING FOREST DC,,,,775876360,5000353749,,PROPERTY SEARCHES NEW BURDENS PAYMENT,CM16 4BZ,"7,903.00",
Communities & Local Government,DCLG,09/12/2016,Miscellaneous Legal Costs,Housing & Planning,EPSOM & EWELL BC,,,,225423094,5000353751,,PROPERTY SEARCHES NEW BURDENS PAYMENT,KT18 5BY,"5,624.00",
Communities & Local Government,DCLG,09/12/2016,Miscellaneous Legal Costs,Housing & Planning,EREWASH BC,,,,211209762,5000353752,,PROPERTY SEARCHES NEW BURDENS PAYMENT,DE7 5RP,"5,334.00",
Communities & Local Government,DCLG,09/12/2016,Miscellaneous Legal Costs,Housing & Planning,ESSEX COUNTY CNCL,,,,233572986,5000353754,,PROPERTY SEARCHES NEW BURDENS PAYMENT,CM1 1JZ,616,
Communities & Local Government,DCLG,09/12/2016,Miscellaneous Legal Costs,Housing & Planning,EXETER CITY COUNCIL,,,,,5000353755,,PROPERTY SEARCHES NEW BURDENS PAYMENT,EX1 1JW,"4,324.00",
Communities & Local Government,DCLG,09/12/2016,Miscellaneous Legal Costs,Housing & Planning,FAREHAM BC,,,,228474144,5000353336,,PROPERTY SEARCHES NEW BURDENS PAYMENT,PO16 7PU,"7,528.00",
Communities & Local Government,DCLG,09/12/2016,Miscellaneous Legal Costs,Housing & Planning,FENLAND DC,,,,227476348,5000353341,,PROPERTY SEARCHES NEW BURDENS PAYMENT,PE15 8NQ,"7,232.00",
Communities & Local Government,DCLG,09/12/2016,Miscellaneous Legal Costs,Housing & Planning,FOREST HEATH DISTRICT COUNCIL,,,,236678116,5000353345,,PROPERTY SEARCHES NEW BURDENS PAYMENT,IP28 7EY,"3,977.00",
Communities & Local Government,DCLG,09/12/2016,Miscellaneous Legal Costs,Housing & Planning,FOREST OF DEAN DC,,,,211278890,5000353347,,PROPERTY SEARCHES NEW BURDENS PAYMENT,GL16 8HG,"3,632.00",
Communities & Local Government,DCLG,09/12/2016,Miscellaneous Legal Costs,Housing & Planning,FYLDE BC,,,,227479912,5000353757,,PROPERTY SEARCHES NEW BURDENS PAYMENT,FY8 1LW,"5,325.00",
Communities & Local Government,DCLG,09/12/2016,Miscellaneous Legal Costs,Housing & Planning,GATESHEAD COUNCIL,,,,216116041,5000353758,,PROPERTY SEARCHES NEW BURDENS PAYMENT,NE8 1HH,"13,718.00",
Communities & Local Government,DCLG,09/12/2016,Miscellaneous Legal Costs,Housing & Planning,GEDLING BC,,,,236180337,5000353760,,PROPERTY SEARCHES NEW BURDENS PAYMENT,NG5 6LU,"6,096.00",
Communities & Local Government,DCLG,09/12/2016,Miscellaneous Legal Costs,Housing & Planning,GLOUCESTER CITY CNCL,,,,230841392,5000353762,,PROPERTY SEARCHES NEW BURDENS PAYMENT,GL1 2EQ,"7,383.00",
Communities & Local Government,DCLG,09/12/2016,Miscellaneous Legal Costs,Housing & Planning,GLOUCESTERSHIRE COUNTY CNCL,,,,211272067,5000353763,,PROPERTY SEARCHES NEW BURDENS PAYMENT,GL1 2TG,533,
Communities & Local Government,DCLG,09/12/2016,Miscellaneous Legal Costs,Housing & Planning,GOSPORT BOROUGH COUNCIL,,,,239825078,5000353765,,PROPERTY SEARCHES NEW BURDENS PAYMENT,PO12 1ED,"4,474.00",
Communities & Local Government,DCLG,09/12/2016,Miscellaneous Legal Costs,Housing & Planning,GRAVESHAM BC,,,,236178612,5000353766,,PROPERTY SEARCHES NEW BURDENS PAYMENT,DA12 1AU,"6,527.00",
Communities & Local Government,DCLG,09/12/2016,Miscellaneous Legal Costs,Housing & Planning,GREAT YARMOUTH BC,,,,292697372,5000353768,,PROPERTY SEARCHES NEW BURDENS PAYMENT,NR30 2QG,"6,845.00",
Communities & Local Government,DCLG,09/12/2016,Miscellaneous Legal Costs,Housing & Planning,GREENWICH LB,,,,,5000353769,,PROPERTY SEARCHES NEW BURDENS PAYMENT,SE18 6HQ,"14,914.00",
Communities & Local Government,DCLG,09/12/2016,Miscellaneous Legal Costs,Housing & Planning,GUILDFORD BC,,,,236663720,5000353351,,PROPERTY SEARCHES NEW BURDENS PAYMENT,GU2 5BB,"8,368.00",
Communities & Local Government,DCLG,09/12/2016,Miscellaneous Legal Costs,Housing & Planning,HALTON BC (HSG),,,,,5000353354,,PROPERTY SEARCHES NEW BURDENS PAYMENT,WA8 7QF,"6,463.00",
Communities & Local Government,DCLG,09/12/2016,Miscellaneous Legal Costs,Housing & Planning,HAMBLETON DC (HSG),,,,503481319,5000353357,,PROPERTY SEARCHES NEW BURDENS PAYMENT,DL6 2UU,"3,164.00",
Communities & Local Government,DCLG,09/12/2016,Miscellaneous Legal Costs,Housing & Planning,HAMMERSMITH & FULHAM LB,,,,216929489,5000353773,,PROPERTY SEARCHES NEW BURDENS PAYMENT,W6 9JU,"9,843.00",
Communities & Local Government,DCLG,09/12/2016,Miscellaneous Legal Costs,Housing & Planning,HAMPSHIRE COUNTY COUNCIL,,,,211325832,5000353775,,PROPERTY SEARCHES NEW BURDENS PAYMENT,SO23 8UB,876,
Communities & Local Government,DCLG,09/12/2016,Miscellaneous Legal Costs,Housing & Planning,HARBOROUGH DC (HSG),,,,212935774,5000353361,,PROPERTY SEARCHES NEW BURDENS PAYMENT,LE16 7AG,"3,720.00",
Communities & Local Government,DCLG,09/12/2016,Miscellaneous Legal Costs,Housing & Planning,HARINGEY LB,,,,217471767,5000353776,,PROPERTY SEARCHES NEW BURDENS PAYMENT,N22 4TR,"8,801.00",
Communities & Local Government,DCLG,09/12/2016,Miscellaneous Legal Costs,Housing & Planning,HARLOW DISTRICT COUNCIL,,Large,,239999055,5000353778,,PROPERTY SEARCHES NEW BURDENS PAYMENT,CM20 1WG,"5,045.00",
Communities & Local Government,DCLG,09/12/2016,Miscellaneous Legal Costs,Housing & Planning,HARROGATE BC,,,,236660031,5000353364,,PROPERTY SEARCHES NEW BURDENS PAYMENT,HG1 2SG,"7,605.00",
Communities & Local Government,DCLG,09/12/2016,Miscellaneous Legal Costs,Housing & Planning,HARROW LB,,,,,5000353779,,PROPERTY SEARCHES NEW BURDENS PAYMENT,HA1 2UZ,"9,954.00",
Communities & Local Government,DCLG,09/12/2016,Miscellaneous Legal Costs,Housing & Planning,HART DC,,,,229723895,5000353781,,PROPERTY SEARCHES NEW BURDENS PAYMENT,GU13 8AE,"5,200.00",
Communities & Local Government,DCLG,09/12/2016,Miscellaneous Legal Costs,Housing & Planning,HARTLEPOOL BOROUGH COUNCIL,,,,424291797,5000353783,,PROPERTY SEARCHES NEW BURDENS PAYMENT,TS24 8AY,"5,287.00",
Communities & Local Government,DCLG,09/12/2016,Miscellaneous Legal Costs,Housing & Planning,HASTINGS BC,,,,,5000353784,,PROPERTY SEARCHES NEW BURDENS PAYMENT,TN34 3WN,"7,635.00",
Communities & Local Government,DCLG,09/12/2016,Miscellaneous Legal Costs,Housing & Planning,HAVANT BC,,,,211047543,5000353786,,PROPERTY SEARCHES NEW BURDENS PAYMENT,PO9 2AX,"7,010.00",
Communities & Local Government,DCLG,09/12/2016,Miscellaneous Legal Costs,Housing & Planning,HAVERING LB,,,,211209770,5000353788,,PROPERTY SEARCHES NEW BURDENS PAYMENT,RM1 3BB,"12,450.00",
Communities & Local Government,DCLG,09/12/2016,Miscellaneous Legal Costs,Housing & Planning,HEREFORDSHIRE COUNCIL,,,,,5000353367,,PROPERTY SEARCHES NEW BURDENS PAYMENT,HR4 0XH,"13,398.00",
Communities & Local Government,DCLG,09/12/2016,Miscellaneous Legal Costs,Housing & Planning,HERTFORDSHIRE COUNTY CNCL,,,,210659897,5000353789,,PROPERTY SEARCHES NEW BURDENS PAYMENT,SG13 8DQ,601,
Communities & Local Government,DCLG,09/12/2016,Miscellaneous Legal Costs,Housing & Planning,HERTSMERE BC,,,,237549253,5000353791,,PROPERTY SEARCHES NEW BURDENS PAYMENT,WD6 1WA,"3,976.00",
Communities & Local Government,DCLG,09/12/2016,Miscellaneous Legal Costs,Housing & Planning,HIGH PEAK BC,,,,239967771,5000353371,,PROPERTY SEARCHES NEW BURDENS PAYMENT,SK17 6EL,"6,062.00",
Communities & Local Government,DCLG,09/12/2016,Miscellaneous Legal Costs,Housing & Planning,HILLINGDON LB,,,,211198585,5000353792,,PROPERTY SEARCHES NEW BURDENS PAYMENT,UB8 1UW,"6,945.00",
Communities & Local Government,DCLG,09/12/2016,Miscellaneous Legal Costs,Housing & Planning,HINCKLEY & BOSWORTH BC,,,,211176144,5000353374,,PROPERTY SEARCHES NEW BURDENS PAYMENT,LE10 1BZ,"9,949.00",
Communities & Local Government,DCLG,09/12/2016,Miscellaneous Legal Costs,Housing & Planning,HORSHAM DC,,,,229776588,5000353378,,PROPERTY SEARCHES NEW BURDENS PAYMENT,RH12 1RL,"9,907.00",
Communities & Local Government,DCLG,09/12/2016,Miscellaneous Legal Costs,Housing & Planning,HOUNSLOW LB,,Public Bodies,,210388999,5000353794,,PROPERTY SEARCHES NEW BURDENS PAYMENT,TW3 4DN,"13,159.00",
Communities & Local Government,DCLG,09/12/2016,Miscellaneous Legal Costs,Housing & Planning,HULL CITY COUNCIL,,,,217460984,5000353806,,PROPERTY SEARCHES NEW BURDENS PAYMENT,HU1 2AA,"13,088.00",
Communities & Local Government,DCLG,09/12/2016,Miscellaneous Legal Costs,Housing & Planning,HUNTINGDONSHIRE DC,,,,235999216,5000353381,,PROPERTY SEARCHES NEW BURDENS PAYMENT,PE18 6TN,"11,200.00",
Communities & Local Government,DCLG,09/12/2016,Miscellaneous Legal Costs,Housing & Planning,HYNDBURN BC,,,,,5000353796,,PROPERTY SEARCHES NEW BURDENS PAYMENT,BB5 1EZ,"6,325.00",
Communities & Local Government,DCLG,09/12/2016,Miscellaneous Legal Costs,Housing & Planning,IPSWICH BC,,,,226861391,5000353797,,PROPERTY SEARCHES NEW BURDENS PAYMENT,IP1 2DE,"8,430.00",
Communities & Local Government,DCLG,09/12/2016,Miscellaneous Legal Costs,Housing & Planning,ISLE OF WIGHT CNCL,,,,236431730,5000353799,,PROPERTY SEARCHES NEW BURDENS PAYMENT,PO30 1UD,"8,089.00",
Communities & Local Government,DCLG,09/12/2016,Miscellaneous Legal Costs,Housing & Planning,ISLINGTON LB,,,,225716729,5000353800,,PROPERTY SEARCHES NEW BURDENS PAYMENT,N1 1XR,"9,714.00",
Communities & Local Government,DCLG,09/12/2016,Miscellaneous Legal Costs,Housing & Planning,KENT COUNTY CNCL,,,,211334420,5000353803,,PROPERTY SEARCHES NEW BURDENS PAYMENT,ME14 1RF,596,
Communities & Local Government,DCLG,09/12/2016,Miscellaneous Legal Costs,Housing & Planning,KETTERING BC,,,,211271796,5000353805,,PROPERTY SEARCHES NEW BURDENS PAYMENT,NN15 7QX,"5,826.00",
Communities & Local Government,DCLG,09/12/2016,Miscellaneous Legal Costs,Housing & Planning,KINGS LYNN & WEST NORFOLK BC,,,,236417671,5000353384,,PROPERTY SEARCHES NEW BURDENS PAYMENT,PE30 1EX,"8,402.00",
Communities & Local Government,DCLG,09/12/2016,Miscellaneous Legal Costs,Housing & Planning,KINGSTON UPON THAMES  (HSG),,,,211379941,5000353387,,PROPERTY SEARCHES NEW BURDENS PAYMENT,KT1 1EU,"11,414.00",
Communities & Local Government,DCLG,09/12/2016,Miscellaneous Legal Costs,Housing & Planning,KIRKLEES COUNCIL (HSG),,,,,5000353391,,PROPERTY SEARCHES NEW BURDENS PAYMENT,HD1 2YU,"36,330.00",
Communities & Local Government,DCLG,09/12/2016,Miscellaneous Legal Costs,Housing & Planning,KNOWSLEY MBC,,,,,5000353808,,PROPERTY SEARCHES NEW BURDENS PAYMENT,L36 9YZ,"8,574.00",
Communities & Local Government,DCLG,09/12/2016,Miscellaneous Legal Costs,Housing & Planning,LANCASHIRE COUNTY CNCL,,,,233136584,5000353811,,PROPERTY SEARCHES NEW BURDENS PAYMENT,PR1 8RD,804,
Communities & Local Government,DCLG,09/12/2016,Miscellaneous Legal Costs,Housing & Planning,LANCASTER CITY COUNCIL,,,,228669990,5000353394,,PROPERTY SEARCHES NEW BURDENS PAYMENT,LA1 1PJ,"10,536.00",
Communities & Local Government,DCLG,09/12/2016,Miscellaneous Legal Costs,Housing & Planning,LEEDS CITY CNCL,,Micro,,,5000353813,,PROPERTY SEARCHES NEW BURDENS PAYMENT,LS1 1JF,"58,375.00",
Communities & Local Government,DCLG,09/12/2016,Miscellaneous Legal Costs,Housing & Planning,LEICESTER CITY CNCL,,,,228219960,5000353398,,PROPERTY SEARCHES NEW BURDENS PAYMENT,LE1 1FZ,"7,871.00",
Communities & Local Government,DCLG,09/12/2016,Miscellaneous Legal Costs,Housing & Planning,LEICESTERSHIRE COUNTY CNCL,,,,423679836,5000353815,,PROPERTY SEARCHES NEW BURDENS PAYMENT,LE3 8RB,751,
Communities & Local Government,DCLG,09/12/2016,Miscellaneous Legal Costs,Housing & Planning,LEWES DC,,,,213090082,5000353402,,PROPERTY SEARCHES NEW BURDENS PAYMENT,BN7 1AB,"7,663.00",
Communities & Local Government,DCLG,09/12/2016,Miscellaneous Legal Costs,Housing & Planning,LEWISHAM LB (HSG),,Large,,235653300,5000353404,,PROPERTY SEARCHES NEW BURDENS PAYMENT,SE6 4RU,"15,426.00",
Communities & Local Government,DCLG,09/12/2016,Miscellaneous Legal Costs,Housing & Planning,LICHFIELD DC,,,,236780086,5000353816,,PROPERTY SEARCHES NEW BURDENS PAYMENT,WS13 6YX,"5,675.00",
Communities & Local Government,DCLG,09/12/2016,Miscellaneous Legal Costs,Housing & Planning,LINCOLNSHIRE COUNTY COUNCIL,,,,,5000353820,,PROPERTY SEARCHES NEW BURDENS PAYMENT,LN2 1DY,"4,774.00",
Communities & Local Government,DCLG,09/12/2016,Miscellaneous Legal Costs,Housing & Planning,LIVERPOOL CITY COUNCIL,,,,,5000353822,,PROPERTY SEARCHES NEW BURDENS PAYMENT,L2 2DH,"29,575.00",
Communities & Local Government,DCLG,09/12/2016,Miscellaneous Legal Costs,Housing & Planning,LONDON BOROUGH OF BARNET,,,,211049507,5000353668,,PROPERTY SEARCHES NEW BURDENS PAYMENT,NN1 1NP,"11,496.00",
Communities & Local Government,DCLG,09/12/2016,Miscellaneous Legal Costs,Housing & Planning,LONDON BOROUGH OF HACKNEY,,,,225221597,5000353771,,PROPERTY SEARCHES NEW BURDENS PAYMENT,E8 4RU,"7,520.00",
Communities & Local Government,DCLG,09/12/2016,Miscellaneous Legal Costs,Housing & Planning,LONDON BOROUGH OF LAMBETH,,,,228216479,5000353810,,PROPERTY SEARCHES NEW BURDENS PAYMENT,SW2 1RL,"13,700.00",
Communities & Local Government,DCLG,09/12/2016,Miscellaneous Legal Costs,Housing & Planning,LONDON BOROUGH OF NEWHAM,,,,211381004,5000353835,,PROPERTY SEARCHES NEW BURDENS PAYMENT,E16 2QU,"7,735.00",
Communities & Local Government,DCLG,09/12/2016,Miscellaneous Legal Costs,Housing & Planning,LONDON BOROUGH OF REDBRIDGE,,,,211341417,5000353870,,PROPERTY SEARCHES NEW BURDENS PAYMENT,IG1 1NN,"11,596.00",
Communities & Local Government,DCLG,09/12/2016,Miscellaneous Legal Costs,Housing & Planning,LUTON BC,,,,365112155,5000353823,,PROPERTY SEARCHES NEW BURDENS PAYMENT,LU1 2BQ,"11,050.00",
Communities & Local Government,DCLG,09/12/2016,Miscellaneous Legal Costs,Housing & Planning,MAIDSTONE BC,,Public Bodies,,293004214,5000353408,,PROPERTY SEARCHES NEW BURDENS PAYMENT,ME15 6JQ,"10,200.00",
Communities & Local Government,DCLG,09/12/2016,Miscellaneous Legal Costs,Housing & Planning,MALDON DC,,,,424668663,5000353411,,PROPERTY SEARCHES NEW BURDENS PAYMENT,CM9 7DL,"4,777.00",
Communities & Local Government,DCLG,09/12/2016,Miscellaneous Legal Costs,Housing & Planning,MALVERN HILLS DC,,,,227470424,5000353824,,PROPERTY SEARCHES NEW BURDENS PAYMENT,WR14 3AF,"4,826.00",
Communities & Local Government,DCLG,09/12/2016,Miscellaneous Legal Costs,Housing & Planning,MANCHESTER CITY CNCL (HSG),,,,211241393,5000353414,,PROPERTY SEARCHES NEW BURDENS PAYMENT,M60 2JR,"22,878.00",
Communities & Local Government,DCLG,09/12/2016,Miscellaneous Legal Costs,Housing & Planning,MANSFIELD DC,,,,237922968,5000353826,,PROPERTY SEARCHES NEW BURDENS PAYMENT,NG19 7BH,"8,140.00",
Communities & Local Government,DCLG,09/12/2016,Miscellaneous Legal Costs,Housing & Planning,MEDWAY TOWNS D C (HSG),,,,,5000353418,,PROPERTY SEARCHES NEW BURDENS PAYMENT,ME4 4TR,"16,767.00",
Communities & Local Government,DCLG,09/12/2016,Miscellaneous Legal Costs,Housing & Planning,MELTON BC,,,,346268340,5000353424,,PROPERTY SEARCHES NEW BURDENS PAYMENT,LE13 0UL,"2,029.00",
Communities & Local Government,DCLG,09/12/2016,Miscellaneous Legal Costs,Housing & Planning,MENDIP DISTRICT COUNCIL,,,,,5000353426,,PROPERTY SEARCHES NEW BURDENS PAYMENT,BA4 5BA,"6,876.00",
Communities & Local Government,DCLG,09/12/2016,Miscellaneous Legal Costs,Housing & Planning,MERTON LB,,,,,5000353827,,PROPERTY SEARCHES NEW BURDENS PAYMENT,SM4 5DX,"12,057.00",
Communities & Local Government,DCLG,09/12/2016,Miscellaneous Legal Costs,Housing & Planning,MID DEVON DC,,,,213241137,5000353430,,PROPERTY SEARCHES NEW BURDENS PAYMENT,EX16 6PP,"4,060.00",
Communities & Local Government,DCLG,09/12/2016,Miscellaneous Legal Costs,Housing & Planning,MID SUFFOLK DISTRICK COUNCIL,,,,223387239,5000353433,,PROPERTY SEARCHES NEW BURDENS PAYMENT,IP6 8DL,"7,618.00",
Communities & Local Government,DCLG,09/12/2016,Miscellaneous Legal Costs,Housing & Planning,MID SUSSEX DC,,,,236675989,5000353437,,PROPERTY SEARCHES NEW BURDENS PAYMENT,RH16 1SS,"7,705.00",
Communities & Local Government,DCLG,09/12/2016,Miscellaneous Legal Costs,Housing & Planning,MIDDLESBROUGH BC,,Large,,,5000353829,,PROPERTY SEARCHES NEW BURDENS PAYMENT,TS1 9GA,"8,410.00",
Communities & Local Government,DCLG,09/12/2016,Miscellaneous Legal Costs,Housing & Planning,MILTON KEYNES BC,,,,,5000353830,,PROPERTY SEARCHES NEW BURDENS PAYMENT,MK9 3WJ,"19,220.00",
Communities & Local Government,DCLG,09/12/2016,Miscellaneous Legal Costs,Housing & Planning,MOLE VALLEY DC,,,,225385772,5000353440,,PROPERTY SEARCHES NEW BURDENS PAYMENT,RH4 1SJ,"6,413.00",
Communities & Local Government,DCLG,09/12/2016,Miscellaneous Legal Costs,Housing & Planning,NEW FOREST DC,,Public Bodies,,,5000353443,,PROPERTY SEARCHES NEW BURDENS PAYMENT,SO41 9ZG,"8,873.00",
Communities & Local Government,DCLG,09/12/2016,Miscellaneous Legal Costs,Housing & Planning,NEWARK & SHERWOOD DC (HSG),,,,236186755,5000353447,,PROPERTY SEARCHES NEW BURDENS PAYMENT,NG23 5QX,"6,023.00",
Communities & Local Government,DCLG,09/12/2016,Miscellaneous Legal Costs,Housing & Planning,NEWCASTLE UNDER LYME BC,,,,229894373,5000353832,,PROPERTY SEARCHES NEW BURDENS PAYMENT,ST5 2AG,"14,123.00",
Communities & Local Government,DCLG,09/12/2016,Miscellaneous Legal Costs,Housing & Planning,NEWCASTLE UPON TYNE DC,,,,239154040,5000353834,,PROPERTY SEARCHES NEW BURDENS PAYMENT,NE99 2BN,"6,088.00",
Communities & Local Government,DCLG,09/12/2016,Miscellaneous Legal Costs,Housing & Planning,NORFOLK COUNTY COUNCIL,,,,232602789,5000353837,,PROPERTY SEARCHES NEW BURDENS PAYMENT,NR1 2DW,602,
Communities & Local Government,DCLG,09/12/2016,Miscellaneous Legal Costs,Housing & Planning,NORTH DEVON DC,,,,,5000353450,,PROPERTY SEARCHES NEW BURDENS PAYMENT,EX32 2GR,"3,211.00",
Communities & Local Government,DCLG,09/12/2016,Miscellaneous Legal Costs,Housing & Planning,NORTH DORSET DC,,,,236185005,5000353454,,PROPERTY SEARCHES NEW BURDENS PAYMENT,DT11 7LL,"3,554.00",
Communities & Local Government,DCLG,09/12/2016,Miscellaneous Legal Costs,Housing & Planning,NORTH EAST DERBYSHIRE DC,,,,238879308,5000353838,,PROPERTY SEARCHES NEW BURDENS PAYMENT,S42 6NG,"6,510.00",
Communities & Local Government,DCLG,09/12/2016,Miscellaneous Legal Costs,Housing & Planning,NORTH EAST LINCOLN DC (HSG),,,,211242737,5000353458,,PROPERTY SEARCHES NEW BURDENS PAYMENT,DN35 8LN,"13,758.00",
Communities & Local Government,DCLG,09/12/2016,Miscellaneous Legal Costs,Housing & Planning,NORTH HERTS DC (HOUSING) (HSG),,,,233593917,5000353462,,PROPERTY SEARCHES NEW BURDENS PAYMENT,SG6 3JF,"8,481.00",
Communities & Local Government,DCLG,09/12/2016,Miscellaneous Legal Costs,Housing & Planning,NORTH KESTEVEN DC,,,,,5000353840,,PROPERTY SEARCHES NEW BURDENS PAYMENT,NG34 7EF,"6,797.00",
Communities & Local Government,DCLG,09/12/2016,Miscellaneous Legal Costs,Housing & Planning,NORTH LINCOLNSHIRE DC (HSG),,Public Bodies,,424005502,5000353464,,PROPERTY SEARCHES NEW BURDENS PAYMENT,DN16 1AB,"12,471.00",
Communities & Local Government,DCLG,09/12/2016,Miscellaneous Legal Costs,Housing & Planning,NORTH NORFOLK DC,,,,239975964,5000353468,,PROPERTY SEARCHES NEW BURDENS PAYMENT,NR27 9EJ,"6,640.00",
Communities & Local Government,DCLG,09/12/2016,Miscellaneous Legal Costs,Housing & Planning,NORTH SOMERSET COUNCIL,,Large,,,5000353842,,PROPERTY SEARCHES NEW BURDENS PAYMENT,BS23 1UJ,"9,826.00",
Communities & Local Government,DCLG,09/12/2016,Miscellaneous Legal Costs,Housing & Planning,NORTH TYNESIDE MBC,,,,,5000353843,,PROPERTY SEARCHES NEW BURDENS PAYMENT,NE27 0BY,"10,357.00",
Communities & Local Government,DCLG,09/12/2016,Miscellaneous Legal Costs,Housing & Planning,NORTH WARWICKSHIRE BC,,Large,,,5000353471,,PROPERTY SEARCHES NEW BURDENS PAYMENT,CV9 1DE,"3,823.00",
Communities & Local Government,DCLG,09/12/2016,Miscellaneous Legal Costs,Housing & Planning,NORTH WEST LEICESTERSHIRE DC,,,,232605782,5000353474,,PROPERTY SEARCHES NEW BURDENS PAYMENT,LE67 9SH,"5,134.00",
Communities & Local Government,DCLG,09/12/2016,Miscellaneous Legal Costs,Housing & Planning,NORTH YORKSHIRE CC (DL7 8AL),,,,,5000353845,,PROPERTY SEARCHES NEW BURDENS PAYMENT,DL7 8AL,"1,079.00",
Communities & Local Government,DCLG,09/12/2016,Miscellaneous Legal Costs,Housing & Planning,NORTHAMPTON BOROUGH COUNCIL,,,,228310017,5000353846,,PROPERTY SEARCHES NEW BURDENS PAYMENT,NN4 4FF,"15,637.00",
Communities & Local Government,DCLG,09/12/2016,Miscellaneous Legal Costs,Housing & Planning,NORTHAMPTONSHIRE COUNTY COUNCIL,,,,,5000353848,,PROPERTY SEARCHES NEW BURDENS PAYMENT,CB3 0AP,652,
Communities & Local Government,DCLG,09/12/2016,Miscellaneous Legal Costs,Housing & Planning,NORTHUMBERLAND COUNTY COUNCIL,,,,210308905,5000353979,,PROPERTY SEARCHES NEW BURDENS PAYMENT,NE61 2EF,"17,750.00",
Communities & Local Government,DCLG,09/12/2016,Miscellaneous Legal Costs,Housing & Planning,NORWICH CITY CNCL,,,,235981297,5000353850,,PROPERTY SEARCHES NEW BURDENS PAYMENT,NR2 1NH,"8,471.00",
Communities & Local Government,DCLG,09/12/2016,Miscellaneous Legal Costs,Housing & Planning,NOTTINGHAM CITY COUNCIL,,,,214495447,5000353851,,PROPERTY SEARCHES NEW BURDENS PAYMENT,NG2 3NG,"13,841.00",
Communities & Local Government,DCLG,09/12/2016,Miscellaneous Legal Costs,Housing & Planning,NUNEATON & BEDWORTH BC,,Large,,,5000353855,,PROPERTY SEARCHES NEW BURDENS PAYMENT,CV11 5AA,"9,784.00",
Communities & Local Government,DCLG,09/12/2016,Miscellaneous Legal Costs,Housing & Planning,OADBY & WIGSTON BC (HSG),,,,239831878,5000353478,,PROPERTY SEARCHES NEW BURDENS PAYMENT,LE8 2DR,"2,361.00",
Communities & Local Government,DCLG,09/12/2016,Miscellaneous Legal Costs,Housing & Planning,OLDHAM MBC,,,,213015574,5000353856,,PROPERTY SEARCHES NEW BURDENS PAYMENT,OL1 1UH,"12,207.00",
Communities & Local Government,DCLG,09/12/2016,Miscellaneous Legal Costs,Housing & Planning,OXFORD CITY COUNCIL,,,,212437417,5000353858,,PROPERTY SEARCHES NEW BURDENS PAYMENT,OX1 1DS,"7,411.00",
Communities & Local Government,DCLG,09/12/2016,Miscellaneous Legal Costs,Housing & Planning,OXFORDSHIRE CC,,,,228216438,5000353859,,PROPERTY SEARCHES NEW BURDENS PAYMENT,OX1 1TH,626,
Communities & Local Government,DCLG,09/12/2016,Miscellaneous Legal Costs,Housing & Planning,PENDLE BC,,,,548605328,5000353861,,PROPERTY SEARCHES NEW BURDENS PAYMENT,BB9 7LG,"5,535.00",
Communities & Local Government,DCLG,09/12/2016,Miscellaneous Legal Costs,Housing & Planning,PETERBOROUGH CITY CNCL,,,,,5000353862,,PROPERTY SEARCHES NEW BURDENS PAYMENT,PE1 1HG,"9,718.00",
Communities & Local Government,DCLG,09/12/2016,Miscellaneous Legal Costs,Housing & Planning,PLYMOUTH CITY CNCL,,Public Bodies,,236416095,5000353864,,PROPERTY SEARCHES NEW BURDENS PAYMENT,PL1 2AA,"9,304.00",
Communities & Local Government,DCLG,09/12/2016,Miscellaneous Legal Costs,Housing & Planning,POOLE BC (HSG),,,,,5000353482,,PROPERTY SEARCHES NEW BURDENS PAYMENT,BH15 2RU,"7,862.00",
Communities & Local Government,DCLG,09/12/2016,Miscellaneous Legal Costs,Housing & Planning,PORTSMOUTH CITY COUNCIL,,Large,,211183082,5000353865,,PROPERTY SEARCHES NEW BURDENS PAYMENT,PO1 2AR,"7,599.00",
Communities & Local Government,DCLG,09/12/2016,Miscellaneous Legal Costs,Housing & Planning,PRESTON BC,,,,232604124,5000353867,,PROPERTY SEARCHES NEW BURDENS PAYMENT,PR1 2RL,"11,025.00",
Communities & Local Government,DCLG,09/12/2016,Miscellaneous Legal Costs,Housing & Planning,PURBECK DC,,,,,5000353485,,PROPERTY SEARCHES NEW BURDENS PAYMENT,BH20 4PP,"2,464.00",
Communities & Local Government,DCLG,09/12/2016,Miscellaneous Legal Costs,Housing & Planning,READING BC,,,,210220399,5000353869,,PROPERTY SEARCHES NEW BURDENS PAYMENT,RG1 7TD,"9,471.00",
Communities & Local Government,DCLG,09/12/2016,Miscellaneous Legal Costs,Housing & Planning,REDCAR & CLEVELAND BOROUGH COUNCIL,,,,215175196,5000353872,,PROPERTY SEARCHES NEW BURDENS PAYMENT,TS10 1RT,"9,025.00",
Communities & Local Government,DCLG,09/12/2016,Miscellaneous Legal Costs,Housing & Planning,REDDITCH BC,,,,231421491,5000353873,,PROPERTY SEARCHES NEW BURDENS PAYMENT,B98 8AH,"4,349.00",
Communities & Local Government,DCLG,09/12/2016,Miscellaneous Legal Costs,Housing & Planning,REIGATE & BANSTEAD BC,,,,211313515,5000353875,,PROPERTY SEARCHES NEW BURDENS PAYMENT,RH2 OSH,"8,071.00",
Communities & Local Government,DCLG,09/12/2016,Miscellaneous Legal Costs,Housing & Planning,RIBBLE VALLEY BC,,,,232617894,5000353489,,PROPERTY SEARCHES NEW BURDENS PAYMENT,BB7 2RA,"5,172.00",
Communities & Local Government,DCLG,09/12/2016,Miscellaneous Legal Costs,Housing & Planning,RICHMOND UPON THAMES LB,,,,228868535,5000353876,,PROPERTY SEARCHES NEW BURDENS PAYMENT,TW1 3BZ,"14,390.00",
Communities & Local Government,DCLG,09/12/2016,Miscellaneous Legal Costs,Housing & Planning,RICHMONDSHIRE DC,,,,232245142,5000353492,,PROPERTY SEARCHES NEW BURDENS PAYMENT,DL10 4JX,"2,584.00",
Communities & Local Government,DCLG,09/12/2016,Miscellaneous Legal Costs,Housing & Planning,ROCHDALE MBC,,,,,5000353878,,PROPERTY SEARCHES NEW BURDENS PAYMENT,OL16 1YG,"9,662.00",
Communities & Local Government,DCLG,09/12/2016,Miscellaneous Legal Costs,Housing & Planning,ROCHFORD DISTRICT COUNCIL,,,,387828767,5000353880,,PROPERTY SEARCHES NEW BURDENS PAYMENT,SS4 1BW,"5,143.00",
Communities & Local Government,DCLG,09/12/2016,Miscellaneous Legal Costs,Housing & Planning,ROSSENDALE BC,,,,237654020,5000353881,,PROPERTY SEARCHES NEW BURDENS PAYMENT,OL13 0BB,"4,154.00",
Communities & Local Government,DCLG,09/12/2016,Miscellaneous Legal Costs,Housing & Planning,ROTHER DC (HSG),,,,,5000353495,,PROPERTY SEARCHES NEW BURDENS PAYMENT,TN39 3JX,"8,660.00",
Communities & Local Government,DCLG,09/12/2016,Miscellaneous Legal Costs,Housing & Planning,ROTHERHAM MBC,,,,211266937,5000353883,,PROPERTY SEARCHES NEW BURDENS PAYMENT,S60 1AE,"21,783.00",
Communities & Local Government,DCLG,09/12/2016,Miscellaneous Legal Costs,Housing & Planning,ROYAL BOROUGH OF KENSINGTON & CHELS,,,,211124466,5000353802,,PROPERTY SEARCHES NEW BURDENS PAYMENT,W8 7NX,"12,403.00",
Communities & Local Government,DCLG,09/12/2016,Miscellaneous Legal Costs,Housing & Planning,RUGBY BOROUGH COUNCIL,,,,,5000353884,,PROPERTY SEARCHES NEW BURDENS PAYMENT,CV21 2RR,"5,021.00",
Communities & Local Government,DCLG,09/12/2016,Miscellaneous Legal Costs,Housing & Planning,RUNNYMEDE BOROUGH COUNCIL,,,,232225722,5000353886,,PROPERTY SEARCHES NEW BURDENS PAYMENT,KT15 2AH,"6,871.00",
Communities & Local Government,DCLG,09/12/2016,Miscellaneous Legal Costs,Housing & Planning,RUSHCLIFFE BOROUGH COUNCIL,,,,,5000353498,,PROPERTY SEARCHES NEW BURDENS PAYMENT,NG2 5FE,"6,966.00",
Communities & Local Government,DCLG,09/12/2016,Miscellaneous Legal Costs,Housing & Planning,RUSHMOOR BC,,,,232607606,5000353887,,PROPERTY SEARCHES NEW BURDENS PAYMENT,GU14 7JU,"6,478.00",
Communities & Local Government,DCLG,09/12/2016,Miscellaneous Legal Costs,Housing & Planning,RUTLAND CC,,,,,5000353889,,PROPERTY SEARCHES NEW BURDENS PAYMENT,LE15 6HP,"3,399.00",
Communities & Local Government,DCLG,09/12/2016,Miscellaneous Legal Costs,Housing & Planning,RYEDALE DC,,,,,5000353501,,PROPERTY SEARCHES NEW BURDENS PAYMENT,YO17 7HH,"2,443.00",
Communities & Local Government,DCLG,09/12/2016,Miscellaneous Legal Costs,Housing & Planning,SALFORD CITY CNCL,,,,213180073,5000353891,,PROPERTY SEARCHES NEW BURDENS PAYMENT,M27 5AW,"11,446.00",
Communities & Local Government,DCLG,09/12/2016,Miscellaneous Legal Costs,Housing & Planning,SANDWELL MBC,,,,,5000353892,,PROPERTY SEARCHES NEW BURDENS PAYMENT,B69 3BS,"7,290.00",
Communities & Local Government,DCLG,09/12/2016,Miscellaneous Legal Costs,Housing & Planning,SCARBOROUGH BC,,Large,,,5000353505,,PROPERTY SEARCHES NEW BURDENS PAYMENT,YO11 2HG,"9,214.00",
Communities & Local Government,DCLG,09/12/2016,Miscellaneous Legal Costs,Housing & Planning,SEDGEMOOR DC,,,,211204011,5000353518,,PROPERTY SEARCHES NEW BURDENS PAYMENT,TA6 3AR,"5,703.00",
Communities & Local Government,DCLG,09/12/2016,Miscellaneous Legal Costs,Housing & Planning,SEFTON MBC,,Public Bodies,,232936125,5000353894,,PROPERTY SEARCHES NEW BURDENS PAYMENT,L20 3NJ,"20,683.00",
Communities & Local Government,DCLG,09/12/2016,Miscellaneous Legal Costs,Housing & Planning,SELBY DC,,,,239816721,5000353522,,PROPERTY SEARCHES NEW BURDENS PAYMENT,YO8 9FT,"5,989.00",
Communities & Local Government,DCLG,09/12/2016,Miscellaneous Legal Costs,Housing & Planning,SEVENOAKS DC,,,,236100913,5000353527,,PROPERTY SEARCHES NEW BURDENS PAYMENT,TN13 1HG,"4,640.00",
Communities & Local Government,DCLG,09/12/2016,Miscellaneous Legal Costs,Housing & Planning,SHEPWAY DISTRICT COUNCIL,,,,235550878,5000353531,,PROPERTY SEARCHES NEW BURDENS PAYMENT,CT20 2QY,"8,289.00",
Communities & Local Government,DCLG,09/12/2016,Miscellaneous Legal Costs,Housing & Planning,SHROPSHIRE UNITARY AUTHORITY,,,,217036490,5000353985,,PROPERTY SEARCHES NEW BURDENS PAYMENT,SY2 6ND,"10,337.00",
Communities & Local Government,DCLG,09/12/2016,Miscellaneous Legal Costs,Housing & Planning,SLOUGH BOROUGH COUNCIL,,,,211027123,5000353896,,PROPERTY SEARCHES NEW BURDENS PAYMENT,SL1 3UF,"10,078.00",
Communities & Local Government,DCLG,09/12/2016,Miscellaneous Legal Costs,Housing & Planning,SOLIHULL MBC,,,,,5000353897,,PROPERTY SEARCHES NEW BURDENS PAYMENT,B91 3QR,"5,767.00",
Communities & Local Government,DCLG,09/12/2016,Miscellaneous Legal Costs,Housing & Planning,SOMERSET COUNTY CNCL,,,,211229406,5000353899,,PROPERTY SEARCHES NEW BURDENS PAYMENT,TA1 4DY,573,
Communities & Local Government,DCLG,09/12/2016,Miscellaneous Legal Costs,Housing & Planning,SOUTH BUCKS DC (HSG),,,,,5000353534,,PROPERTY SEARCHES NEW BURDENS PAYMENT,UB9 4LH,"4,491.00",
Communities & Local Government,DCLG,09/12/2016,Miscellaneous Legal Costs,Housing & Planning,SOUTH CAMBRIDGESHIRE DC,,,,236369484,5000353537,,PROPERTY SEARCHES NEW BURDENS PAYMENT,CB23 6EA,"9,062.00",
Communities & Local Government,DCLG,09/12/2016,Miscellaneous Legal Costs,Housing & Planning,SOUTH DERBYSHIRE DC,,Public Bodies,,232612416,5000353540,,PROPERTY SEARCHES NEW BURDENS PAYMENT,DE11 0AH,"7,513.00",
Communities & Local Government,DCLG,09/12/2016,Miscellaneous Legal Costs,Housing & Planning,SOUTH GLOUCESTERSHIRE DC (HSG),,,,,5000353544,,PROPERTY SEARCHES NEW BURDENS PAYMENT,BS15 2TR,"10,333.00",
Communities & Local Government,DCLG,09/12/2016,Miscellaneous Legal Costs,Housing & Planning,SOUTH HAMS DC,,,,236445342,5000353547,,PROPERTY SEARCHES NEW BURDENS PAYMENT,TQ9 5NE,"6,938.00",
Communities & Local Government,DCLG,09/12/2016,Miscellaneous Legal Costs,Housing & Planning,SOUTH HOLLAND,,,,236445383,5000353550,,PROPERTY SEARCHES NEW BURDENS PAYMENT,PE11 2XE,"5,965.00",
Communities & Local Government,DCLG,09/12/2016,Miscellaneous Legal Costs,Housing & Planning,SOUTH KESTEVEN DC (HSG),,,,227470747,5000353553,,PROPERTY SEARCHES NEW BURDENS PAYMENT,NG31 6PZ,"6,965.00",
Communities & Local Government,DCLG,09/12/2016,Miscellaneous Legal Costs,Housing & Planning,SOUTH LAKELAND DC,,Large,,236445466,5000353556,,PROPERTY SEARCHES NEW BURDENS PAYMENT,LA9 4DQ,"5,769.00",
Communities & Local Government,DCLG,09/12/2016,Miscellaneous Legal Costs,Housing & Planning,SOUTH NORFOLK DC,,,,232605717,5000353559,,PROPERTY SEARCHES NEW BURDENS PAYMENT,NR15 2XE,"7,730.00",
Communities & Local Government,DCLG,09/12/2016,Miscellaneous Legal Costs,Housing & Planning,SOUTH NORTHAMPTONSHIRE DC,,,,,5000353563,,PROPERTY SEARCHES NEW BURDENS PAYMENT,NN12 7AE,"6,821.00",
Communities & Local Government,DCLG,09/12/2016,Miscellaneous Legal Costs,Housing & Planning,SOUTH OXFORDSHIRE DC,,,,212296766,5000353566,,PROPERTY SEARCHES NEW BURDENS PAYMENT,OX10 8HQ,"7,360.00",
Communities & Local Government,DCLG,09/12/2016,Miscellaneous Legal Costs,Housing & Planning,SOUTH RIBBLE BC,,Public Bodies,,,5000353900,,PROPERTY SEARCHES NEW BURDENS PAYMENT,PR5 1DH,"9,045.00",
Communities & Local Government,DCLG,09/12/2016,Miscellaneous Legal Costs,Housing & Planning,SOUTH SOMERSET DC,,,,239850811,5000353570,,PROPERTY SEARCHES NEW BURDENS PAYMENT,BA20 2DS,"9,678.00",
Communities & Local Government,DCLG,09/12/2016,Miscellaneous Legal Costs,Housing & Planning,SOUTH STAFFORDSHIRE DC,,,,210305155,5000353573,,PROPERTY SEARCHES NEW BURDENS PAYMENT,WV8 1PX,"3,490.00",
Communities & Local Government,DCLG,09/12/2016,Miscellaneous Legal Costs,Housing & Planning,SOUTH TYNESIDE COUNCIL,,,,345736438,5000353902,,PROPERTY SEARCHES NEW BURDENS PAYMENT,NE33 2RL,"8,921.00",
Communities & Local Government,DCLG,09/12/2016,Miscellaneous Legal Costs,Housing & Planning,SOUTHAMPTON CITY CNCL,,,,216927475,5000353904,,PROPERTY SEARCHES NEW BURDENS PAYMENT,SO14 7LY,"12,629.00",
Communities & Local Government,DCLG,09/12/2016,Miscellaneous Legal Costs,Housing & Planning,SOUTHEND ON SEA BC,,,,217067263,5000353905,,PROPERTY SEARCHES NEW BURDENS PAYMENT,SS2 6EP,"11,359.00",
Communities & Local Government,DCLG,09/12/2016,Miscellaneous Legal Costs,Housing & Planning,SOUTHWARK LB,,,,,5000353907,,PROPERTY SEARCHES NEW BURDENS PAYMENT,SE1 2QH,"13,002.00",
Communities & Local Government,DCLG,09/12/2016,Miscellaneous Legal Costs,Housing & Planning,SPELTHORNE BOROUGH COUNCIL,,,,211177332,5000353577,,PROPERTY SEARCHES NEW BURDENS PAYMENT,TW18 1XB,"6,849.00",
Communities & Local Government,DCLG,09/12/2016,Miscellaneous Legal Costs,Housing & Planning,ST ALBANS CITY COUNCIL,,,,218692510,5000353909,,PROPERTY SEARCHES NEW BURDENS PAYMENT,AL1 3JE,"10,632.00",
Communities & Local Government,DCLG,09/12/2016,Miscellaneous Legal Costs,Housing & Planning,ST EDMUNDSBURY BOROUGH COUNCIL,,,,212503653,5000353581,,PROPERTY SEARCHES NEW BURDENS PAYMENT,IP33 3YU,"7,235.00",
Communities & Local Government,DCLG,09/12/2016,Miscellaneous Legal Costs,Housing & Planning,ST HELENS MBC,,,,,5000353911,,PROPERTY SEARCHES NEW BURDENS PAYMENT,WA10 1HP,"8,946.00",
Communities & Local Government,DCLG,09/12/2016,Miscellaneous Legal Costs,Housing & Planning,STAFFORD BC,,,,227476934,5000353912,,PROPERTY SEARCHES NEW BURDENS PAYMENT,ST16 3AQ,"6,819.00",
Communities & Local Government,DCLG,09/12/2016,Miscellaneous Legal Costs,Housing & Planning,STAFFORDSHIRE COUNTY CNCL,,Public Bodies,,,5000353914,,PROPERTY SEARCHES NEW BURDENS PAYMENT,ST16 2DH,"1,530.00",
Communities & Local Government,DCLG,09/12/2016,Miscellaneous Legal Costs,Housing & Planning,STAFFORDSHIRE MOORLANDS DC,,,,232749775,5000353585,,PROPERTY SEARCHES NEW BURDENS PAYMENT,ST13 6HQ,"5,663.00",
Communities & Local Government,DCLG,09/12/2016,Miscellaneous Legal Costs,Housing & Planning,STEVENAGE BC,,,,236440186,5000353915,,PROPERTY SEARCHES NEW BURDENS PAYMENT,SG1 1HN,"4,961.00",
Communities & Local Government,DCLG,09/12/2016,Miscellaneous Legal Costs,Housing & Planning,STOCKPORT MBC,,,,228706248,5000353917,,PROPERTY SEARCHES NEW BURDENS PAYMENT,SK1 3XE,"18,257.00",
Communities & Local Government,DCLG,09/12/2016,Miscellaneous Legal Costs,Housing & Planning,STOCKTON-ON-TEES BC (HSG),,,,,5000353587,,PROPERTY SEARCHES NEW BURDENS PAYMENT,TS23 2YS,"13,014.00",
Communities & Local Government,DCLG,09/12/2016,Miscellaneous Legal Costs,Housing & Planning,STOKE ON TRENT CITY COUNCIL,,,,216037890,5000353918,,PROPERTY SEARCHES NEW BURDENS PAYMENT,ST4 1HH,"12,833.00",
Communities & Local Government,DCLG,09/12/2016,Miscellaneous Legal Costs,Housing & Planning,STRATFORD ON AVON DC,,,,227473881,5000353920,,PROPERTY SEARCHES NEW BURDENS PAYMENT,CV37 6HX,"5,562.00",
Communities & Local Government,DCLG,09/12/2016,Miscellaneous Legal Costs,Housing & Planning,STROUD DC (HSG),,,,,5000353591,,PROPERTY SEARCHES NEW BURDENS PAYMENT,GL5 4UB,"6,739.00",
Communities & Local Government,DCLG,09/12/2016,Miscellaneous Legal Costs,Housing & Planning,SUFFOLK CC (SOCIAL CARE SERV) (H,,,,385614821,5000353592,,PROPERTY SEARCHES NEW BURDENS PAYMENT,IP4 1LH,577,
Communities & Local Government,DCLG,09/12/2016,Miscellaneous Legal Costs,Housing & Planning,SUFFOLK COASTAL DC (HSG),,,,239933203,5000353595,,PROPERTY SEARCHES NEW BURDENS PAYMENT,IP12 1AU,"7,239.00",
Communities & Local Government,DCLG,09/12/2016,Miscellaneous Legal Costs,Housing & Planning,SURREY HEATH BC,,,,236445441,5000353921,,PROPERTY SEARCHES NEW BURDENS PAYMENT,GU15 3HD,"5,502.00",
Communities & Local Government,DCLG,09/12/2016,Miscellaneous Legal Costs,Housing & Planning,SUTTON LB,,,,,5000353923,,PROPERTY SEARCHES NEW BURDENS PAYMENT,SM1 1EA,"11,594.00",
Communities & Local Government,DCLG,09/12/2016,Miscellaneous Legal Costs,Housing & Planning,SWALE BC,,,,239842768,5000353924,,PROPERTY SEARCHES NEW BURDENS PAYMENT,ME10 3HT,"9,831.00",
Communities & Local Government,DCLG,09/12/2016,Miscellaneous Legal Costs,Housing & Planning,SWINDON BC,,,,458639697,5000353926,,PROPERTY SEARCHES NEW BURDENS PAYMENT,SN1 2JH,"14,467.00",
Communities & Local Government,DCLG,09/12/2016,Miscellaneous Legal Costs,Housing & Planning,TAMESIDE MBC,,,,212635875,5000353928,,PROPERTY SEARCHES NEW BURDENS PAYMENT,OL6 0GA,"16,894.00",
Communities & Local Government,DCLG,09/12/2016,Miscellaneous Legal Costs,Housing & Planning,TAMWORTH BOROUGH COUNCIL,,,,232612457,5000353929,,PROPERTY SEARCHES NEW BURDENS PAYMENT,B79 7BZ,"4,802.00",
Communities & Local Government,DCLG,09/12/2016,Miscellaneous Legal Costs,Housing & Planning,TANDRIDGE DC,,,,225481076,5000353596,,PROPERTY SEARCHES NEW BURDENS PAYMENT,RH8 0BT,"4,957.00",
Communities & Local Government,DCLG,09/12/2016,Miscellaneous Legal Costs,Housing & Planning,TAUNTON DEANE BC,,,,236185294,5000353599,,PROPERTY SEARCHES NEW BURDENS PAYMENT,TA1 1HE,"6,670.00",
Communities & Local Government,DCLG,09/12/2016,Miscellaneous Legal Costs,Housing & Planning,TEIGNBRIDGE DC,,,,236440475,5000353602,,PROPERTY SEARCHES NEW BURDENS PAYMENT,TQ12 4XX,"7,269.00",
Communities & Local Government,DCLG,09/12/2016,Miscellaneous Legal Costs,Housing & Planning,TELFORD & WREKIN COUNCIL,,,,230235801,5000353931,,PROPERTY SEARCHES NEW BURDENS PAYMENT,TF3 4NT,"9,775.00",
Communities & Local Government,DCLG,09/12/2016,Miscellaneous Legal Costs,Housing & Planning,TENDRING DC,,,,,5000353604,,PROPERTY SEARCHES NEW BURDENS PAYMENT,CO15 1SE,"13,707.00",
Communities & Local Government,DCLG,09/12/2016,Miscellaneous Legal Costs,Housing & Planning,TEST VALLEY BC,,,,225442698,5000353606,,PROPERTY SEARCHES NEW BURDENS PAYMENT,SP10 3AJ,"5,809.00",
Communities & Local Government,DCLG,09/12/2016,Miscellaneous Legal Costs,Housing & Planning,TEWKESBURY BC,,,,232740399,5000353608,,PROPERTY SEARCHES NEW BURDENS PAYMENT,GL20 5TT,"4,890.00",
Communities & Local Government,DCLG,09/12/2016,Miscellaneous Legal Costs,Housing & Planning,THANET DC,,,,232309369,5000353611,,PROPERTY SEARCHES NEW BURDENS PAYMENT,CT8 1XZ,"10,998.00",
Communities & Local Government,DCLG,09/12/2016,Miscellaneous Legal Costs,Housing & Planning,THREE RIVERS DC,,,,,5000353932,,PROPERTY SEARCHES NEW BURDENS PAYMENT,WD3 1RL,"5,458.00",
Communities & Local Government,DCLG,09/12/2016,Miscellaneous Legal Costs,Housing & Planning,THURROCK  BOROUGH COUNCIL,,,,,5000353934,,PROPERTY SEARCHES NEW BURDENS PAYMENT,RM17 6SL,"9,086.00",
Communities & Local Government,DCLG,09/12/2016,Miscellaneous Legal Costs,Housing & Planning,TONBRIDGE & MALLING BC,,,,,5000353613,,PROPERTY SEARCHES NEW BURDENS PAYMENT,ME19 6LZ,"5,223.00",
Communities & Local Government,DCLG,09/12/2016,Miscellaneous Legal Costs,Housing & Planning,TORBAY BC,,,,,5000353936,,PROPERTY SEARCHES NEW BURDENS PAYMENT,TQ1 3DR,"9,914.00",
Communities & Local Government,DCLG,09/12/2016,Miscellaneous Legal Costs,Housing & Planning,TORRIDGE DC,,,,,5000353615,,PROPERTY SEARCHES NEW BURDENS PAYMENT,EX39 2QG,"2,447.00",
Communities & Local Government,DCLG,09/12/2016,Miscellaneous Legal Costs,Housing & Planning,TOWER HAMLETS LB (HSG),,,,231315144,5000353618,,PROPERTY SEARCHES NEW BURDENS PAYMENT,E14 2BG,"9,292.00",
Communities & Local Government,DCLG,09/12/2016,Miscellaneous Legal Costs,Housing & Planning,TRAFFORD MBC,,,,,5000353937,,PROPERTY SEARCHES NEW BURDENS PAYMENT,M32 0TH,"16,650.00",
Communities & Local Government,DCLG,09/12/2016,Miscellaneous Legal Costs,Housing & Planning,TUNBRIDGE WELLS BC,,,,775221013,5000353619,,PROPERTY SEARCHES NEW BURDENS PAYMENT,TN1 1RS,"4,809.00",
Communities & Local Government,DCLG,09/12/2016,Miscellaneous Legal Costs,Housing & Planning,UTTLESFORD DC,,,,424423242,5000353622,,PROPERTY SEARCHES NEW BURDENS PAYMENT,CB11 4ER,"4,561.00",
Communities & Local Government,DCLG,09/12/2016,Miscellaneous Legal Costs,Housing & Planning,VALE OF WHITE HORSE DC,,,,,5000353625,,PROPERTY SEARCHES NEW BURDENS PAYMENT,OX14 4SB,"6,593.00",
Communities & Local Government,DCLG,09/12/2016,Miscellaneous Legal Costs,Housing & Planning,WALSALL MBC,,,,212515585,5000353940,,PROPERTY SEARCHES NEW BURDENS PAYMENT,WS1 1TW,"6,564.00",
Communities & Local Government,DCLG,09/12/2016,Miscellaneous Legal Costs,Housing & Planning,WALTHAM FOREST LB,,,,,5000353942,,PROPERTY SEARCHES NEW BURDENS PAYMENT,E17 4JA,"8,298.00",
Communities & Local Government,DCLG,09/12/2016,Miscellaneous Legal Costs,Housing & Planning,WANDSWORTH LB,,,,,5000353943,,PROPERTY SEARCHES NEW BURDENS PAYMENT,SW18 2PU,"6,506.00",
Communities & Local Government,DCLG,09/12/2016,Miscellaneous Legal Costs,Housing & Planning,WARRINGTON BC,,,,,5000353945,,PROPERTY SEARCHES NEW BURDENS PAYMENT,WA1 1BN,"9,527.00",
Communities & Local Government,DCLG,09/12/2016,Miscellaneous Legal Costs,Housing & Planning,WARWICK,,,,,5000353947,,PROPERTY SEARCHES NEW BURDENS PAYMENT,CV32 4NW,"9,115.00",
Communities & Local Government,DCLG,09/12/2016,Miscellaneous Legal Costs,Housing & Planning,WARWICKSHIRE COUNTY CNCL,,,,210396290,5000353948,,PROPERTY SEARCHES NEW BURDENS PAYMENT,CV34 4RH,751,
Communities & Local Government,DCLG,09/12/2016,Miscellaneous Legal Costs,Housing & Planning,WATFORD COUNCIL,,,,215498572,5000353950,,PROPERTY SEARCHES NEW BURDENS PAYMENT,WD17 3EX,"5,854.00",
Communities & Local Government,DCLG,09/12/2016,Miscellaneous Legal Costs,Housing & Planning,WAVENEY DISTRICT COUNCIL,,Large,,229740980,5000353627,,PROPERTY SEARCHES NEW BURDENS PAYMENT,NR32 1HS,"6,807.00",
Communities & Local Government,DCLG,09/12/2016,Miscellaneous Legal Costs,Housing & Planning,WAVERLEY BC V177,,,,,5000353629,,PROPERTY SEARCHES NEW BURDENS PAYMENT,GU7 1HR,"7,721.00",
Communities & Local Government,DCLG,09/12/2016,Miscellaneous Legal Costs,Housing & Planning,WEALDEN DC,,,,232688697,5000353631,,PROPERTY SEARCHES NEW BURDENS PAYMENT,BN22 9LN,"8,664.00",
Communities & Local Government,DCLG,09/12/2016,Miscellaneous Legal Costs,Housing & Planning,WELLINGBOROUGH BOROUGH COUNCIL,,Large,,230851581,5000353952,,PROPERTY SEARCHES NEW BURDENS PAYMENT,NN8 1BN,"6,411.00",
Communities & Local Government,DCLG,09/12/2016,Miscellaneous Legal Costs,Housing & Planning,WELWYN HATFIELD COUNCIL,,,,210360804,5000353633,,PROPERTY SEARCHES NEW BURDENS PAYMENT,AL8 6AE,"6,004.00",
Communities & Local Government,DCLG,09/12/2016,Miscellaneous Legal Costs,Housing & Planning,WEST BERKSHIRE COUNCIL,,,,364809181,5000353953,,PROPERTY SEARCHES NEW BURDENS PAYMENT,RG14 2AF,"7,889.00",
Communities & Local Government,DCLG,09/12/2016,Miscellaneous Legal Costs,Housing & Planning,WEST DEVON BC,,,,234002095,5000353636,,PROPERTY SEARCHES NEW BURDENS PAYMENT,PL19 0BZ,"3,279.00",
Communities & Local Government,DCLG,09/12/2016,Miscellaneous Legal Costs,Housing & Planning,WEST DORSET DC,,,,424295350,5000353638,,PROPERTY SEARCHES NEW BURDENS PAYMENT,DT1 1UZ,"5,296.00",
Communities & Local Government,DCLG,09/12/2016,Miscellaneous Legal Costs,Housing & Planning,WEST LANCASHIRE BC,,,,232240978,5000353955,,PROPERTY SEARCHES NEW BURDENS PAYMENT,L39 2DF,"6,779.00",
Communities & Local Government,DCLG,09/12/2016,Miscellaneous Legal Costs,Housing & Planning,WEST LINDSEY DC,,,,227471026,5000353640,,PROPERTY SEARCHES NEW BURDENS PAYMENT,DN21 2NA,"6,446.00",
Communities & Local Government,DCLG,09/12/2016,Miscellaneous Legal Costs,Housing & Planning,WEST OXFORDSHIRE DC,,,,210401379,5000353642,,PROPERTY SEARCHES NEW BURDENS PAYMENT,OX28 1NB,"6,587.00",
Communities & Local Government,DCLG,09/12/2016,Miscellaneous Legal Costs,Housing & Planning,WEST SOMERSET DC,,,,216015144,5000353645,,PROPERTY SEARCHES NEW BURDENS PAYMENT,TA4 4QA,"2,257.00",
Communities & Local Government,DCLG,09/12/2016,Miscellaneous Legal Costs,Housing & Planning,WEST SUSSEX CC,,Public Bodies,,232198762,5000353956,,PROPERTY SEARCHES NEW BURDENS PAYMENT,PO19 1RG,756,
Communities & Local Government,DCLG,09/12/2016,Miscellaneous Legal Costs,Housing & Planning,WESTMINSTER CITY CNCL,,,,229845706,5000353958,,PROPERTY SEARCHES NEW BURDENS PAYMENT,SW1E 6QP,"11,486.00",
Communities & Local Government,DCLG,09/12/2016,Miscellaneous Legal Costs,Housing & Planning,WEYMOUTH & PORTLAND BC,,,,735157948,5000353959,,PROPERTY SEARCHES NEW BURDENS PAYMENT,DT4 8TA,"2,406.00",
Communities & Local Government,DCLG,09/12/2016,Miscellaneous Legal Costs,Housing & Planning,WIGAN MBC,,Public Bodies,,,5000353961,,PROPERTY SEARCHES NEW BURDENS PAYMENT,WN1 1AZ,"15,853.00",
Communities & Local Government,DCLG,09/12/2016,Miscellaneous Legal Costs,Housing & Planning,WILTSHIRE COUNCIL,,,,211341656,5000353978,,PROPERTY SEARCHES NEW BURDENS PAYMENT,BA14 4DS,"25,082.00",
Communities & Local Government,DCLG,09/12/2016,Miscellaneous Legal Costs,Housing & Planning,WINCHESTER CITY CNCL,,,,228838280,5000353648,,PROPERTY SEARCHES NEW BURDENS PAYMENT,SO23 9LJ,"6,314.00",
Communities & Local Government,DCLG,09/12/2016,Miscellaneous Legal Costs,Housing & Planning,WINDSOR & MAIDENHEAD (HSG),,,,227411998,5000353651,,PROPERTY SEARCHES NEW BURDENS PAYMENT,SL6 1RF,"8,770.00",
Communities & Local Government,DCLG,09/12/2016,Miscellaneous Legal Costs,Housing & Planning,WIRRAL MBC,,,,211222602,5000353962,,PROPERTY SEARCHES NEW BURDENS PAYMENT,CH41 6BU,"15,209.00",
Communities & Local Government,DCLG,09/12/2016,Miscellaneous Legal Costs,Housing & Planning,WOKING BC,,,,211163449,5000353964,,PROPERTY SEARCHES NEW BURDENS PAYMENT,GU21 1YL,"7,670.00",
Communities & Local Government,DCLG,09/12/2016,Miscellaneous Legal Costs,Housing & Planning,WOKINGHAM DC,,,,,5000353966,,PROPERTY SEARCHES NEW BURDENS PAYMENT,RG11 1WJ,"9,516.00",
Communities & Local Government,DCLG,09/12/2016,Miscellaneous Legal Costs,Housing & Planning,WOLVERHAMPTON MBC,,,,229895453,5000353968,,PROPERTY SEARCHES NEW BURDENS PAYMENT,WV1 1RL,"5,686.00",
Communities & Local Government,DCLG,09/12/2016,Miscellaneous Legal Costs,Housing & Planning,WORCESTER CITY CNCL,,,,227419751,5000353970,,PROPERTY SEARCHES NEW BURDENS PAYMENT,WR1 2EZ,"4,534.00",
Communities & Local Government,DCLG,09/12/2016,Miscellaneous Legal Costs,Housing & Planning,WORCESTERSHIRE COUNTY COUNCIL,,,,230359643,5000353971,,PROPERTY SEARCHES NEW BURDENS PAYMENT,WR5 2NP,"1,183.00",
Communities & Local Government,DCLG,09/12/2016,Miscellaneous Legal Costs,Housing & Planning,WORTHING BC,,,,236429734,5000353973,,PROPERTY SEARCHES NEW BURDENS PAYMENT,BN11 1HA,"10,525.00",
Communities & Local Government,DCLG,09/12/2016,Miscellaneous Legal Costs,Housing & Planning,WYCHAVON DISTRICT COUNCIL,,,,232257139,5000353652,,PROPERTY SEARCHES NEW BURDENS PAYMENT,WR10 1PT,"5,186.00",
Communities & Local Government,DCLG,09/12/2016,Miscellaneous Legal Costs,Housing & Planning,WYCOMBE DC,,Medium,,232683771,5000353655,,PROPERTY SEARCHES NEW BURDENS PAYMENT,HP11 1BB,"7,994.00",
Communities & Local Government,DCLG,09/12/2016,Miscellaneous Legal Costs,Housing & Planning,WYRE BC,,,,236646493,5000353657,,PROPERTY SEARCHES NEW BURDENS PAYMENT,FY6 7PU,"8,674.00",
Communities & Local Government,DCLG,09/12/2016,Miscellaneous Legal Costs,Housing & Planning,WYRE FOREST DISTRICT COUNCIL,,,,,5000353975,,PROPERTY SEARCHES NEW BURDENS PAYMENT,DY11 7WF,"3,945.00",
Communities & Local Government,DCLG,09/12/2016,Miscellaneous Legal Costs,Housing & Planning,YORK CITY CNCL,,,,,5000353976,,PROPERTY SEARCHES NEW BURDENS PAYMENT,YO1 0EG,"9,792.00",
Communities & Local Government,DCLG,09/12/2016,Physical Storage,"Strategy, Communications and Private Office",WILLIAMS LEA LIMITED,,Large,,393456413,5106225068,Warehousing and Storage,Document Storage,NR3 1PD,714.14,
Communities & Local Government,DCLG,09/12/2016,Printing,"Strategy, Communications and Private Office",WILLIAMS LEA LIMITED,,Large,,393456413,5106225068,Printing Services,Year 3 Print services,NR3 1PD,80.29,
Communities & Local Government,DCLG,09/12/2016,Printing,"Strategy, Communications and Private Office",WILLIAMS LEA LIMITED,,Large,,393456413,5106225069,Printing Services,Year 3 Print services (0% VAT),NR3 1PD,"1,069.59",
Communities & Local Government,DCLG,09/12/2016,Printing,"Strategy, Communications and Private Office",WILLIAMS LEA LIMITED,,Large,,393456413,5106225073,Printing Services,Year 3 Print services (0% VAT),NR3 1PD,790.91,
Communities & Local Government,DCLG,09/12/2016,Steady State Service Provision,Local Government & Public Services,CO-OPERATIVES UK,,Small,,,5106225043,Business Process Outsourcing Services,Community Economic Development � Contract Variation,M60 0AS,"36,197.21",
Communities & Local Government,DCLG,09/12/2016,Training,FIRST,OPP LTD,,Medium,,,5106225067,Development and Training,Civil Service Training,OX2 8EP,"2,985.00",
Communities & Local Government,DCLG,09/12/2016,Training,"Strategy, Communications and Private Office",SOLACE LTD,,Medium,,346460843,5106225072,Development and Training,Civil Service Training,WF8 1WT,545,
Communities & Local Government,DCLG,12/12/2016,Accommodation - actuals,Decentralisation and Local Growth,REDFERN TRAVEL LIMITED,,Small,,213089972,2100269610,Business Travel Accommodation,Consolidated Monthly Travel November Hotels,BD1 3AZ,253,
Communities & Local Government,DCLG,12/12/2016,Accommodation - actuals,Decentralisation and Local Growth,REDFERN TRAVEL LIMITED,,Small,,213089972,2100269610,Business Travel Accommodation,Consolidated Monthly Travel November Hotels,BD1 3AZ,625,
Communities & Local Government,DCLG,12/12/2016,Accommodation - actuals,Decentralisation and Local Growth,REDFERN TRAVEL LIMITED,,Small,,213089972,2100269610,Business Travel Accommodation,Consolidated Monthly Travel November Hotels,BD1 3AZ,"1,092.17",
Communities & Local Government,DCLG,12/12/2016,Accommodation - actuals,Decentralisation and Local Growth,REDFERN TRAVEL LIMITED,,Small,,213089972,2100269610,Business Travel Accommodation,Consolidated Monthly Travel November Hotels,BD1 3AZ,408.47,
Communities & Local Government,DCLG,12/12/2016,Accommodation - actuals,Decentralisation and Local Growth,REDFERN TRAVEL LIMITED,,Small,,213089972,2100269610,Business Travel Accommodation,Consolidated Monthly Travel November Hotels,BD1 3AZ,"1,167.79",
Communities & Local Government,DCLG,12/12/2016,Accommodation - actuals,FIRST,REDFERN TRAVEL LIMITED,,Small,,213089972,2100269610,Business Travel Accommodation,Consolidated Monthly Travel November Hotels,BD1 3AZ,"1,083.36",
Communities & Local Government,DCLG,12/12/2016,Accommodation - actuals,FIRST,REDFERN TRAVEL LIMITED,,Small,,213089972,2100269610,Business Travel Accommodation,Consolidated Monthly Travel November Hotels,BD1 3AZ,296,
Communities & Local Government,DCLG,12/12/2016,Accommodation - actuals,FIRST,REDFERN TRAVEL LIMITED,,Small,,213089972,2100269610,Business Travel Accommodation,Consolidated Monthly Travel November Hotels,BD1 3AZ,"1,611.21",
Communities & Local Government,DCLG,12/12/2016,Accommodation - actuals,Housing & Planning,REDFERN TRAVEL LIMITED,,Small,,213089972,2100269610,Business Travel Accommodation,Consolidated Monthly Travel November Hotels,BD1 3AZ,606.09,
Communities & Local Government,DCLG,12/12/2016,Accommodation - actuals,Housing & Planning,REDFERN TRAVEL LIMITED,,Small,,213089972,2100269610,Business Travel Accommodation,Consolidated Monthly Travel November Hotels,BD1 3AZ,553,
Communities & Local Government,DCLG,12/12/2016,Accommodation - actuals,Housing & Planning,REDFERN TRAVEL LIMITED,,Small,,213089972,2100269610,Business Travel Accommodation,Consolidated Monthly Travel November Hotels,BD1 3AZ,996.84,
Communities & Local Government,DCLG,12/12/2016,Accommodation - actuals,Local Government & Public Services,REDFERN TRAVEL LIMITED,,Small,,213089972,2100269610,Business Travel Accommodation,Consolidated Monthly Travel November Hotels,BD1 3AZ,286.99,
Communities & Local Government,DCLG,12/12/2016,Accommodation - actuals,Local Government & Public Services,REDFERN TRAVEL LIMITED,,Small,,213089972,2100269610,Business Travel Accommodation,Consolidated Monthly Travel November Hotels,BD1 3AZ,268.63,
Communities & Local Government,DCLG,12/12/2016,Accommodation - actuals,Local Government & Public Services,REDFERN TRAVEL LIMITED,,Small,,213089972,2100269610,Business Travel Accommodation,Consolidated Monthly Travel November Hotels,BD1 3AZ,600.96,
Communities & Local Government,DCLG,12/12/2016,Accommodation - actuals,Local Government & Public Services,REDFERN TRAVEL LIMITED,,Small,,213089972,2100269610,Business Travel Accommodation,Consolidated Monthly Travel November Hotels,BD1 3AZ,818.4,
Communities & Local Government,DCLG,12/12/2016,Accommodation - actuals,"Strategy, Communications and Private Office",REDFERN TRAVEL LIMITED,,Small,,213089972,2100269610,Business Travel Accommodation,Consolidated Monthly Travel November Hotels,BD1 3AZ,270.48,
Communities & Local Government,DCLG,12/12/2016,Accommodation - actuals,"Strategy, Communications and Private Office",REDFERN TRAVEL LIMITED,,Small,,213089972,2100269610,Business Travel Accommodation,Consolidated Monthly Travel November Hotels,BD1 3AZ,586.68,
Communities & Local Government,DCLG,12/12/2016,Advertising,"Strategy, Communications and Private Office",CARAT SCOTLAND,,Large,,519820302,5106225042,Advertising,Own your Own home Planning services ,EH1 3HU,"1,130.22",
Communities & Local Government,DCLG,12/12/2016,Advertising,"Strategy, Communications and Private Office",CARAT SCOTLAND,,Large,,519820302,5106225045,Advertising,Media planning - Northern Powerhouse,EH1 3HU,"7,281.46",
Communities & Local Government,DCLG,12/12/2016,Advertising,"Strategy, Communications and Private Office",TULLO MARSHALL WARREN LTD,,Medium,,,5106225089,Advertising,Right to Buy Customer Relationship Mgt.,W1F 9NB,"8,363.40",
Communities & Local Government,DCLG,12/12/2016,Advertising,"Strategy, Communications and Private Office",TULLO MARSHALL WARREN LTD,,Medium,,,5106225090,Advertising,Right to Buy Marketing Contract 16/17,W1F 9NB,780,
Communities & Local Government,DCLG,12/12/2016,Advertising,"Strategy, Communications and Private Office",TULLO MARSHALL WARREN LTD,,Medium,,,5106225091,Advertising,Right to Buy Marketing Contract 16/17,W1F 9NB,"5,280.44",
Communities & Local Government,DCLG,12/12/2016,Agency Staff,Decentralisation and Local Growth,CAPITA BUS. SERV. LTD (CON LAB),,Large,,,5106225077,Contingent Labour,Interim Manager,DL1 9HB,706.78,
Communities & Local Government,DCLG,12/12/2016,Agency Staff,Decentralisation and Local Growth,CAPITA BUS. SERV. LTD (CON LAB),,Large,,,5106225077,Contingent Labour,Interim Manager,DL1 9HB,139.5,
Communities & Local Government,DCLG,12/12/2016,Agency Staff,Decentralisation and Local Growth,CAPITA BUS. SERV. LTD (CON LAB),,Large,,,5106225081,Contingent Labour,Interim Manager,DL1 9HB,"11,851.70",
Communities & Local Government,DCLG,12/12/2016,Agency Staff,Housing & Planning,CAPITA BUS. SERV. LTD (CON LAB),,Large,,,5106225080,Contingent Labour,Interim Manager,DL1 9HB,"6,055.92",
Communities & Local Government,DCLG,12/12/2016,Agency Staff,Housing & Planning,CAPITA BUS. SERV. LTD (CON LAB),,Large,,,5106225082,Contingent Labour,Interim Manager,DL1 9HB,"3,600.29",
Communities & Local Government,DCLG,12/12/2016,Agency Staff,Local Government & Public Services,CAPITA BUS. SERV. LTD (CON LAB),,Large,,,5106225085,Contingent Labour,Interim Manager,DL1 9HB,"1,211.18",
Communities & Local Government,DCLG,12/12/2016,Air Travel,Decentralisation and Local Growth,REDFERN TRAVEL LIMITED,,Small,,213089972,2100269610,Air,Consolidated Monthly Travel November Air Tickets,BD1 3AZ,339.08,
Communities & Local Government,DCLG,12/12/2016,Air Travel,Decentralisation and Local Growth,REDFERN TRAVEL LIMITED,,Small,,213089972,2100269610,Air,Consolidated Monthly Travel November Air Tickets,BD1 3AZ,372.5,
Communities & Local Government,DCLG,12/12/2016,Air Travel,Decentralisation and Local Growth,REDFERN TRAVEL LIMITED,,Small,,213089972,2100269610,Air,Consolidated Monthly Travel November Air Tickets,BD1 3AZ,"2,916.49",
Communities & Local Government,DCLG,12/12/2016,Air Travel,Decentralisation and Local Growth,REDFERN TRAVEL LIMITED,,Small,,213089972,2100269610,Air,Consolidated Monthly Travel November Air Tickets,BD1 3AZ,472.81,
Communities & Local Government,DCLG,12/12/2016,Air Travel,Decentralisation and Local Growth,REDFERN TRAVEL LIMITED,,Small,,213089972,2100269610,Air,Consolidated Monthly Travel November Air Tickets,BD1 3AZ,377,
Communities & Local Government,DCLG,12/12/2016,Capital Grants to People Non Profit,Decentralisation and Local Growth,BIG LOTTERY FUND,,Public Bodies,,648124972,2100269471,,Coastal Communities Fund Capital Invoice,B15 1TR,"734,957.54",Yes
Communities & Local Government,DCLG,12/12/2016,Current (non AEF) Grants to Local Authorities,Housing & Planning,NEWCASTLE UPON TYNE DC,,,,239154040,5000354013,,Preventing Homelessness Grant (LAs),NE99 2BN,"460,226.00",Yes
Communities & Local Government,DCLG,12/12/2016,Current (non AEF) Grants to Local Authorities,Housing & Planning,SOUTHWARK LB,,,,,5000354014,,Preventing Homelessness Grant (LAs),SE1 2QH,"588,000.00",Yes
Communities & Local Government,DCLG,12/12/2016,Current Grants to Non Profit Bodies,Decentralisation and Local Growth,BIG LOTTERY FUND,,Public Bodies,,648124972,2100269472,,Coastal Communities Fund Revenue Invoice,B15 1TR,"248,123.62",Yes
Communities & Local Government,DCLG,12/12/2016,EXP � PURCHASE OF GOODS /SERVICES R & D,Local Government & Public Services,MARKET & OPINION RESEARCH INT LTD,,Large,,227257185,5106225075,Research,Year 2 16/17 Milestone 2,E1W 1YW,"59,406.67",
Communities & Local Government,DCLG,12/12/2016,Government Procurement Card (expense),"Strategy, Communications and Private Office",DCLG GOVERNMENT PROCUREMENT CARD,,,,,1000004166,,GB High Street Campaign Awards,TN37 7GA,463.84,
Communities & Local Government,DCLG,12/12/2016,IT - Service Contracts,FIRST,INTERQUEST GROUP UK LIMITED,,Large,,423935241,5106225084,IT Managed / Outsourced Services,BW Specialist Support for HR Project,EC1N 8UA,"10,125.00",
Communities & Local Government,DCLG,12/12/2016,IT - Service Contracts,Local Government & Public Services,CAPITA BUS. SERV. LTD (CON LAB),,Large,,,5106225079,Contingent Labour,SPECIALIST EXPERTISE,DL1 9HB,"4,276.44",
Communities & Local Government,DCLG,12/12/2016,Legal Fees,Housing & Planning,LEASEHOLD ADVISORY SERVICE,,Small,,378000152,5106225058,Legal,Legal Advice,WT1 7BN,"21,978.88",
Communities & Local Government,DCLG,12/12/2016,Legal Fees,Housing & Planning,LEASEHOLD ADVISORY SERVICE,,Small,,378000152,5106225059,Legal,Legal Advice,WT1 7BN,"21,978.88",
Communities & Local Government,DCLG,12/12/2016,Professional services,FIRST,STTRS DIRECT,,Micro,,210303552,5106225086,Interpretation and Translation,Palantypist for interview1512519 29/11/2,RG12 9TY,317.7,
Communities & Local Government,DCLG,12/12/2016,Professional services,Local Government & Public Services,VALUATION OFFICE AGENCY,,Public Bodies,,215253886,2100269501,Environmental Services,Payment for work on NNDR and Council Tax - Dec,W1D 5BU,"13,325,000.00",
Communities & Local Government,DCLG,12/12/2016,"Rail, Underground and Eurostar",Decentralisation and Local Growth,REDFERN TRAVEL LIMITED,,Small,,213089972,2100269610,Rail,Consolidated Monthly Travel November Rail,BD1 3AZ,"1,043.90",
Communities & Local Government,DCLG,12/12/2016,"Rail, Underground and Eurostar",Decentralisation and Local Growth,REDFERN TRAVEL LIMITED,,Small,,213089972,2100269610,Rail,Consolidated Monthly Travel November Rail,BD1 3AZ,"3,242.25",
Communities & Local Government,DCLG,12/12/2016,"Rail, Underground and Eurostar",Decentralisation and Local Growth,REDFERN TRAVEL LIMITED,,Small,,213089972,2100269610,Rail,Consolidated Monthly Travel November Rail,BD1 3AZ,"1,532.45",
Communities & Local Government,DCLG,12/12/2016,"Rail, Underground and Eurostar",Decentralisation and Local Growth,REDFERN TRAVEL LIMITED,,Small,,213089972,2100269610,Rail,Consolidated Monthly Travel November Rail,BD1 3AZ,"1,013.70",
Communities & Local Government,DCLG,12/12/2016,"Rail, Underground and Eurostar",Decentralisation and Local Growth,REDFERN TRAVEL LIMITED,,Small,,213089972,2100269610,Rail,Consolidated Monthly Travel November Rail,BD1 3AZ,"4,677.10",
Communities & Local Government,DCLG,12/12/2016,"Rail, Underground and Eurostar",Decentralisation and Local Growth,REDFERN TRAVEL LIMITED,,Small,,213089972,2100269610,Rail,Consolidated Monthly Travel November Rail,BD1 3AZ,"2,507.80",
Communities & Local Government,DCLG,12/12/2016,"Rail, Underground and Eurostar",Decentralisation and Local Growth,REDFERN TRAVEL LIMITED,,Small,,213089972,2100269610,Rail,Consolidated Monthly Travel November Rail,BD1 3AZ,"1,798.10",
Communities & Local Government,DCLG,12/12/2016,"Rail, Underground and Eurostar",Decentralisation and Local Growth,REDFERN TRAVEL LIMITED,,Small,,213089972,2100269610,Rail,Consolidated Monthly Travel November Rail,BD1 3AZ,"2,547.65",
Communities & Local Government,DCLG,12/12/2016,"Rail, Underground and Eurostar",Decentralisation and Local Growth,REDFERN TRAVEL LIMITED,,Small,,213089972,2100269610,Rail,Consolidated Monthly Travel November Rail,BD1 3AZ,"1,245.60",
Communities & Local Government,DCLG,12/12/2016,"Rail, Underground and Eurostar",Decentralisation and Local Growth,REDFERN TRAVEL LIMITED,,Small,,213089972,2100269610,Rail,Consolidated Monthly Travel November Rail,BD1 3AZ,"1,640.40",
Communities & Local Government,DCLG,12/12/2016,"Rail, Underground and Eurostar",Decentralisation and Local Growth,REDFERN TRAVEL LIMITED,,Small,,213089972,2100269610,Rail,Consolidated Monthly Travel November Rail,BD1 3AZ,854.3,
Communities & Local Government,DCLG,12/12/2016,"Rail, Underground and Eurostar",Decentralisation and Local Growth,REDFERN TRAVEL LIMITED,,Small,,213089972,2100269610,Rail,Consolidated Monthly Travel November Rail,BD1 3AZ,761.5,
Communities & Local Government,DCLG,12/12/2016,"Rail, Underground and Eurostar",Decentralisation and Local Growth,REDFERN TRAVEL LIMITED,,Small,,213089972,2100269610,Rail,Consolidated Monthly Travel November Rail,BD1 3AZ,"1,426.70",
Communities & Local Government,DCLG,12/12/2016,"Rail, Underground and Eurostar",Decentralisation and Local Growth,REDFERN TRAVEL LIMITED,,Small,,213089972,2100269610,Rail,Consolidated Monthly Travel November Rail,BD1 3AZ,889.4,
Communities & Local Government,DCLG,12/12/2016,"Rail, Underground and Eurostar",Decentralisation and Local Growth,REDFERN TRAVEL LIMITED,,Small,,213089972,2100269610,Rail,Consolidated Monthly Travel November Rail,BD1 3AZ,"1,785.20",
Communities & Local Government,DCLG,12/12/2016,"Rail, Underground and Eurostar",Decentralisation and Local Growth,REDFERN TRAVEL LIMITED,,Small,,213089972,2100269610,Rail,Consolidated Monthly Travel November Rail,BD1 3AZ,"6,461.25",
Communities & Local Government,DCLG,12/12/2016,"Rail, Underground and Eurostar",Decentralisation and Local Growth,REDFERN TRAVEL LIMITED,,Small,,213089972,2100269610,Rail,Consolidated Monthly Travel November Rail,BD1 3AZ,335.55,
Communities & Local Government,DCLG,12/12/2016,"Rail, Underground and Eurostar",Decentralisation and Local Growth,REDFERN TRAVEL LIMITED,,Small,,213089972,2100269610,Rail,Consolidated Monthly Travel November Rail,BD1 3AZ,730,
Communities & Local Government,DCLG,12/12/2016,"Rail, Underground and Eurostar",Decentralisation and Local Growth,REDFERN TRAVEL LIMITED,,Small,,213089972,2100269610,Rail,Consolidated Monthly Travel November Rail,BD1 3AZ,"3,204.70",
Communities & Local Government,DCLG,12/12/2016,"Rail, Underground and Eurostar",Decentralisation and Local Growth,REDFERN TRAVEL LIMITED,,Small,,213089972,2100269610,Rail,Consolidated Monthly Travel November Rail,BD1 3AZ,373.6,
Communities & Local Government,DCLG,12/12/2016,"Rail, Underground and Eurostar",Decentralisation and Local Growth,REDFERN TRAVEL LIMITED,,Small,,213089972,2100269610,Rail,Consolidated Monthly Travel November Rail,BD1 3AZ,722.48,
Communities & Local Government,DCLG,12/12/2016,"Rail, Underground and Eurostar",FIRST,REDFERN TRAVEL LIMITED,,Small,,213089972,2100269610,Rail,Consolidated Monthly Travel November Rail,BD1 3AZ,"1,380.80",
Communities & Local Government,DCLG,12/12/2016,"Rail, Underground and Eurostar",FIRST,REDFERN TRAVEL LIMITED,,Small,,213089972,2100269610,Rail,Consolidated Monthly Travel November Rail,BD1 3AZ,"11,784.35",
Communities & Local Government,DCLG,12/12/2016,"Rail, Underground and Eurostar",FIRST,REDFERN TRAVEL LIMITED,,Small,,213089972,2100269610,Rail,Consolidated Monthly Travel November Rail,BD1 3AZ,992.4,
Communities & Local Government,DCLG,12/12/2016,"Rail, Underground and Eurostar",FIRST,REDFERN TRAVEL LIMITED,,Small,,213089972,2100269610,Rail,Consolidated Monthly Travel November Rail,BD1 3AZ,532.4,
Communities & Local Government,DCLG,12/12/2016,"Rail, Underground and Eurostar",FIRST,REDFERN TRAVEL LIMITED,,Small,,213089972,2100269610,Rail,Consolidated Monthly Travel November Rail,BD1 3AZ,762.05,
Communities & Local Government,DCLG,12/12/2016,"Rail, Underground and Eurostar",FIRST,REDFERN TRAVEL LIMITED,,Small,,213089972,2100269610,Rail,Consolidated Monthly Travel November Rail,BD1 3AZ,564,
Communities & Local Government,DCLG,12/12/2016,"Rail, Underground and Eurostar",FIRST,REDFERN TRAVEL LIMITED,,Small,,213089972,2100269610,Rail,Consolidated Monthly Travel November Rail,BD1 3AZ,438.8,
Communities & Local Government,DCLG,12/12/2016,"Rail, Underground and Eurostar",FIRST,REDFERN TRAVEL LIMITED,,Small,,213089972,2100269610,Rail,Consolidated Monthly Travel November Rail,BD1 3AZ,370.25,
Communities & Local Government,DCLG,12/12/2016,"Rail, Underground and Eurostar",FIRST,REDFERN TRAVEL LIMITED,,Small,,213089972,2100269610,Rail,Consolidated Monthly Travel November Rail,BD1 3AZ,"1,493.25",
Communities & Local Government,DCLG,12/12/2016,"Rail, Underground and Eurostar",Housing & Planning,REDFERN TRAVEL LIMITED,,Small,,213089972,2100269610,Rail,Consolidated Monthly Travel November Rail,BD1 3AZ,654.8,
Communities & Local Government,DCLG,12/12/2016,"Rail, Underground and Eurostar",Housing & Planning,REDFERN TRAVEL LIMITED,,Small,,213089972,2100269610,Rail,Consolidated Monthly Travel November Rail,BD1 3AZ,"2,569.05",
Communities & Local Government,DCLG,12/12/2016,"Rail, Underground and Eurostar",Housing & Planning,REDFERN TRAVEL LIMITED,,Small,,213089972,2100269610,Rail,Consolidated Monthly Travel November Rail,BD1 3AZ,437,
Communities & Local Government,DCLG,12/12/2016,"Rail, Underground and Eurostar",Housing & Planning,REDFERN TRAVEL LIMITED,,Small,,213089972,2100269610,Rail,Consolidated Monthly Travel November Rail,BD1 3AZ,"1,599.30",
Communities & Local Government,DCLG,12/12/2016,"Rail, Underground and Eurostar",Housing & Planning,REDFERN TRAVEL LIMITED,,Small,,213089972,2100269610,Rail,Consolidated Monthly Travel November Rail,BD1 3AZ,"3,443.50",
Communities & Local Government,DCLG,12/12/2016,"Rail, Underground and Eurostar",Housing & Planning,REDFERN TRAVEL LIMITED,,Small,,213089972,2100269610,Rail,Consolidated Monthly Travel November Rail,BD1 3AZ,"5,026.60",
Communities & Local Government,DCLG,12/12/2016,"Rail, Underground and Eurostar",Housing & Planning,REDFERN TRAVEL LIMITED,,Small,,213089972,2100269610,Rail,Consolidated Monthly Travel November Rail,BD1 3AZ,657.35,
Communities & Local Government,DCLG,12/12/2016,"Rail, Underground and Eurostar",Housing & Planning,REDFERN TRAVEL LIMITED,,Small,,213089972,2100269610,Rail,Consolidated Monthly Travel November Rail,BD1 3AZ,"1,663.61",
Communities & Local Government,DCLG,12/12/2016,"Rail, Underground and Eurostar",Local Government & Public Services,REDFERN TRAVEL LIMITED,,Small,,213089972,2100269610,Rail,Consolidated Monthly Travel November Rail,BD1 3AZ,937.45,
Communities & Local Government,DCLG,12/12/2016,"Rail, Underground and Eurostar",Local Government & Public Services,REDFERN TRAVEL LIMITED,,Small,,213089972,2100269610,Rail,Consolidated Monthly Travel November Rail,BD1 3AZ,312,
Communities & Local Government,DCLG,12/12/2016,"Rail, Underground and Eurostar",Local Government & Public Services,REDFERN TRAVEL LIMITED,,Small,,213089972,2100269610,Rail,Consolidated Monthly Travel November Rail,BD1 3AZ,"1,457.20",
Communities & Local Government,DCLG,12/12/2016,"Rail, Underground and Eurostar",Local Government & Public Services,REDFERN TRAVEL LIMITED,,Small,,213089972,2100269610,Rail,Consolidated Monthly Travel November Rail,BD1 3AZ,"2,046.30",
Communities & Local Government,DCLG,12/12/2016,"Rail, Underground and Eurostar",Local Government & Public Services,REDFERN TRAVEL LIMITED,,Small,,213089972,2100269610,Rail,Consolidated Monthly Travel November Rail,BD1 3AZ,992.85,
Communities & Local Government,DCLG,12/12/2016,"Rail, Underground and Eurostar",Local Government & Public Services,REDFERN TRAVEL LIMITED,,Small,,213089972,2100269610,Rail,Consolidated Monthly Travel November Rail,BD1 3AZ,398.25,
Communities & Local Government,DCLG,12/12/2016,"Rail, Underground and Eurostar",Local Government & Public Services,REDFERN TRAVEL LIMITED,,Small,,213089972,2100269610,Rail,Consolidated Monthly Travel November Rail,BD1 3AZ,334.3,
Communities & Local Government,DCLG,12/12/2016,"Rail, Underground and Eurostar",Local Government & Public Services,REDFERN TRAVEL LIMITED,,Small,,213089972,2100269610,Rail,Consolidated Monthly Travel November Rail,BD1 3AZ,"2,034.80",
Communities & Local Government,DCLG,12/12/2016,"Rail, Underground and Eurostar",Local Government & Public Services,REDFERN TRAVEL LIMITED,,Small,,213089972,2100269610,Rail,Consolidated Monthly Travel November Rail,BD1 3AZ,"1,732.55",
Communities & Local Government,DCLG,12/12/2016,"Rail, Underground and Eurostar",Local Government & Public Services,REDFERN TRAVEL LIMITED,,Small,,213089972,2100269610,Rail,Consolidated Monthly Travel November Rail,BD1 3AZ,801.3,
Communities & Local Government,DCLG,12/12/2016,"Rail, Underground and Eurostar",Local Government & Public Services,REDFERN TRAVEL LIMITED,,Small,,213089972,2100269610,Rail,Consolidated Monthly Travel November Rail,BD1 3AZ,689.5,
Communities & Local Government,DCLG,12/12/2016,"Rail, Underground and Eurostar",Local Government & Public Services,REDFERN TRAVEL LIMITED,,Small,,213089972,2100269610,Rail,Consolidated Monthly Travel November Rail,BD1 3AZ,"1,930.75",
Communities & Local Government,DCLG,12/12/2016,"Rail, Underground and Eurostar",Local Government & Public Services,REDFERN TRAVEL LIMITED,,Small,,213089972,2100269610,Rail,Consolidated Monthly Travel November Rail,BD1 3AZ,"1,663.65",
Communities & Local Government,DCLG,12/12/2016,"Rail, Underground and Eurostar",Local Government & Public Services,REDFERN TRAVEL LIMITED,,Small,,213089972,2100269610,Rail,Consolidated Monthly Travel November Rail,BD1 3AZ,"5,356.47",
Communities & Local Government,DCLG,12/12/2016,"Rail, Underground and Eurostar","Strategy, Communications and Private Office",REDFERN TRAVEL LIMITED,,Small,,213089972,2100269610,Rail,Consolidated Monthly Travel November Rail,BD1 3AZ,"1,254.80",
Communities & Local Government,DCLG,12/12/2016,"Rail, Underground and Eurostar","Strategy, Communications and Private Office",REDFERN TRAVEL LIMITED,,Small,,213089972,2100269610,Rail,Consolidated Monthly Travel November Rail,BD1 3AZ,631.4,
Communities & Local Government,DCLG,12/12/2016,"Rail, Underground and Eurostar","Strategy, Communications and Private Office",REDFERN TRAVEL LIMITED,,Small,,213089972,2100269610,Rail,Consolidated Monthly Travel November Rail,BD1 3AZ,"1,148.80",
Communities & Local Government,DCLG,12/12/2016,"Rail, Underground and Eurostar","Strategy, Communications and Private Office",REDFERN TRAVEL LIMITED,,Small,,213089972,2100269610,Rail,Consolidated Monthly Travel November Rail,BD1 3AZ,"1,736.70",
Communities & Local Government,DCLG,12/12/2016,"Rail, Underground and Eurostar","Strategy, Communications and Private Office",REDFERN TRAVEL LIMITED,,Small,,213089972,2100269610,Rail,Consolidated Monthly Travel November Rail,BD1 3AZ,567.6,
Communities & Local Government,DCLG,12/12/2016,"Rail, Underground and Eurostar","Strategy, Communications and Private Office",REDFERN TRAVEL LIMITED,,Small,,213089972,2100269610,Rail,Consolidated Monthly Travel November Rail,BD1 3AZ,522.3,
Communities & Local Government,DCLG,12/12/2016,"Rail, Underground and Eurostar","Strategy, Communications and Private Office",REDFERN TRAVEL LIMITED,,Small,,213089972,2100269610,Rail,Consolidated Monthly Travel November Rail,BD1 3AZ,"1,110.90",
Communities & Local Government,DCLG,12/12/2016,Recruitment,FIRST,HM REVENUE & CUSTOMS,,Public Bodies,,365117972,5106224725,Business Process Outsourcing Services,Civil Service Resourcing: Recruitment Assessment Services,BN12 4XH,"18,272.35",
Communities & Local Government,DCLG,12/12/2016,Repayments of LA Grant (Cap),Decentralisation and Local Growth,MANCHESTER CITY COUNCIL,,Large,,238004407,2300002687,,RGF grant recovery,M60 2LA,"-6,246.44",
Communities & Local Government,DCLG,12/12/2016,Services provided by other Govt Orgs,Housing & Planning,HOMES & COMMUNITIES AGENCY,,Public Bodies,,215576860,2100269608,Financial,Fund compensation payments - VRtB Pilot -Oct 16,NE11 0NA,"1,610,705.00",Yes
Communities & Local Government,DCLG,12/12/2016,Subscriptions,FIRST,RECORDS MANAGEMENT SOCIETY,,Small,,,5106225088,Subscriptions and Admissions,IRMS membership for 2017 - bulletin,NE1 4HZ,50,
Communities & Local Government,DCLG,12/12/2016,Subscriptions,FIRST,RECORDS MANAGEMENT SOCIETY,,Small,,,5106225088,Subscriptions and Admissions,IRMS membership for 2017 - corporate,NE1 4HZ,300,
Communities & Local Government,DCLG,12/12/2016,Travel and Subsistence Account,Decentralisation and Local Growth,REDFERN TRAVEL LIMITED,,Small,,213089972,2100269610,Business Travel,Consolidated Monthly Travel November Misc T&S,BD1 3AZ,422.88,
Communities & Local Government,DCLG,13/12/2016,Current (non AEF) Grants to Local Authorities,Local Government & Public Services,ADUR DC,,,,227472891,5000355145,,Doubling of Small Business Rates Relief,BN11 1HA,"21,793.00",Yes
Communities & Local Government,DCLG,13/12/2016,Current (non AEF) Grants to Local Authorities,Local Government & Public Services,ADUR DC,,,,227472891,5000355154,,Business Rates Multiplier Cap,BN11 1HA,"2,826.00",Yes
Communities & Local Government,DCLG,13/12/2016,Current (non AEF) Grants to Local Authorities,Local Government & Public Services,ADUR DC,,,,227472891,5000355157,,New Empty Property Relief,BN11 1HA,470,Yes
Communities & Local Government,DCLG,13/12/2016,Current (non AEF) Grants to Local Authorities,Local Government & Public Services,ALLERDALE BOROUGH COUNCIL,,,,218146780,5000355163,,Extended Transitional Relief for Small and Medium,CA14 3YJ,338,Yes
Communities & Local Government,DCLG,13/12/2016,Current (non AEF) Grants to Local Authorities,Local Government & Public Services,ALLERDALE BOROUGH COUNCIL,,,,218146780,5000355166,,Small Business Rates Relief on Second Properties,CA14 3YJ,343,Yes
Communities & Local Government,DCLG,13/12/2016,Current (non AEF) Grants to Local Authorities,Local Government & Public Services,ALLERDALE BOROUGH COUNCIL,,,,218146780,5000355169,,Business Rates Multiplier Cap,CA14 3YJ,"5,535.00",Yes
Communities & Local Government,DCLG,13/12/2016,Current (non AEF) Grants to Local Authorities,Local Government & Public Services,ALLERDALE BOROUGH COUNCIL,,,,218146780,5000355172,,Doubling of Small Business Rates Relief,CA14 3YJ,"60,504.00",Yes
Communities & Local Government,DCLG,13/12/2016,Current (non AEF) Grants to Local Authorities,Local Government & Public Services,ALLERDALE BOROUGH COUNCIL,,,,218146780,5000355175,,Long Term Empty Property Relief,CA14 3YJ,"1,000.00",Yes
Communities & Local Government,DCLG,13/12/2016,Current (non AEF) Grants to Local Authorities,Local Government & Public Services,AMBER VALLEY BC,,,,,5000355181,,Long Term Empty Property Relief,DE5 3BT,418,Yes
Communities & Local Government,DCLG,13/12/2016,Current (non AEF) Grants to Local Authorities,Local Government & Public Services,AMBER VALLEY BC,,,,,5000355187,,Business Rates Multiplier Cap,DE5 3BT,"3,909.00",Yes
Communities & Local Government,DCLG,13/12/2016,Current (non AEF) Grants to Local Authorities,Local Government & Public Services,AMBER VALLEY BC,,,,,5000355192,,Doubling of Small Business Rates Relief,DE5 3BT,"45,328.00",Yes
Communities & Local Government,DCLG,13/12/2016,Current (non AEF) Grants to Local Authorities,Local Government & Public Services,AMBER VALLEY BC,,,,,5000355195,,Extended Transitional Relief for Small and Medium,DE5 3BT,571,Yes
Communities & Local Government,DCLG,13/12/2016,Current (non AEF) Grants to Local Authorities,Local Government & Public Services,ARUN DC,,,,211217668,5000354015,,Doubling of Small Business Rates Relief,BN17 5LF,"57,344.00",Yes
Communities & Local Government,DCLG,13/12/2016,Current (non AEF) Grants to Local Authorities,Local Government & Public Services,ARUN DC,,,,211217668,5000354016,,Long Term Empty Property Relief,BN17 5LF,842,Yes
Communities & Local Government,DCLG,13/12/2016,Current (non AEF) Grants to Local Authorities,Local Government & Public Services,ARUN DC,,,,211217668,5000354017,,Business Rates Multiplier Cap,BN17 5LF,"6,142.00",Yes
Communities & Local Government,DCLG,13/12/2016,Current (non AEF) Grants to Local Authorities,Local Government & Public Services,ARUN DC,,,,211217668,5000354018,,Small Business Rates Relief on Second Properties,BN17 5LF,455,Yes
Communities & Local Government,DCLG,13/12/2016,Current (non AEF) Grants to Local Authorities,Local Government & Public Services,ASHFIELD DC,,,,235415296,5000355197,,Business Rates Multiplier Cap,NG17 8DA,"5,556.00",Yes
Communities & Local Government,DCLG,13/12/2016,Current (non AEF) Grants to Local Authorities,Local Government & Public Services,ASHFIELD DC,,,,235415296,5000355200,,New Empty Property Relief,NG17 8DA,846,Yes
Communities & Local Government,DCLG,13/12/2016,Current (non AEF) Grants to Local Authorities,Local Government & Public Services,ASHFIELD DC,,,,235415296,5000355206,,Doubling of Small Business Rates Relief,NG17 8DA,"33,295.00",Yes
Communities & Local Government,DCLG,13/12/2016,Current (non AEF) Grants to Local Authorities,Local Government & Public Services,ASHFIELD DC,,,,235415296,5000355209,,Long Term Empty Property Relief,NG17 8DA,338,Yes
Communities & Local Government,DCLG,13/12/2016,Current (non AEF) Grants to Local Authorities,Local Government & Public Services,ASHFORD BC,,,,229467071,5000354021,,Business Rates Multiplier Cap,TN23 1PL,"4,395.00",Yes
Communities & Local Government,DCLG,13/12/2016,Current (non AEF) Grants to Local Authorities,Local Government & Public Services,ASHFORD BC,,,,229467071,5000354022,,Doubling of Small Business Rates Relief,TN23 1PL,"44,808.00",Yes
Communities & Local Government,DCLG,13/12/2016,Current (non AEF) Grants to Local Authorities,Local Government & Public Services,ASHFORD BC,,,,229467071,5000354023,,New Empty Property Relief,TN23 1PL,286,Yes
Communities & Local Government,DCLG,13/12/2016,Current (non AEF) Grants to Local Authorities,Local Government & Public Services,ASHFORD BC,,,,229467071,5000354024,,Long Term Empty Property Relief,TN23 1PL,262,Yes
Communities & Local Government,DCLG,13/12/2016,Current (non AEF) Grants to Local Authorities,Local Government & Public Services,AVON FIRE AUTHORITY,,Large,,424872570,5000355854,,Business Rates Multiplier Cap,BS1 6EU,"12,272.00",Yes
Communities & Local Government,DCLG,13/12/2016,Current (non AEF) Grants to Local Authorities,Local Government & Public Services,AVON FIRE AUTHORITY,,Large,,424872570,5000355858,,Doubling of Small Business Rates Relief,BS1 6EU,"8,547.00",Yes
Communities & Local Government,DCLG,13/12/2016,Current (non AEF) Grants to Local Authorities,Local Government & Public Services,AYLESBURY VALE DC(HSG),,,,396710709,5000354028,,Doubling of Small Business Rates Relief,HP19 8FF,"56,152.00",Yes
Communities & Local Government,DCLG,13/12/2016,Current (non AEF) Grants to Local Authorities,Local Government & Public Services,AYLESBURY VALE DC(HSG),,,,396710709,5000354029,,New Empty Property Relief,HP19 8FF,"3,583.00",Yes
Communities & Local Government,DCLG,13/12/2016,Current (non AEF) Grants to Local Authorities,Local Government & Public Services,AYLESBURY VALE DC(HSG),,,,396710709,5000354030,,Long Term Empty Property Relief,HP19 8FF,464,Yes
Communities & Local Government,DCLG,13/12/2016,Current (non AEF) Grants to Local Authorities,Local Government & Public Services,AYLESBURY VALE DC(HSG),,,,396710709,5000354031,,Extended Transitional Relief for Small and Medium,HP19 8FF,281,Yes
Communities & Local Government,DCLG,13/12/2016,Current (non AEF) Grants to Local Authorities,Local Government & Public Services,AYLESBURY VALE DC(HSG),,,,396710709,5000354032,,Small Business Rates Relief on Second Properties,HP19 8FF,637,Yes
Communities & Local Government,DCLG,13/12/2016,Current (non AEF) Grants to Local Authorities,Local Government & Public Services,AYLESBURY VALE DC(HSG),,,,396710709,5000354033,,Business Rates Multiplier Cap,HP19 8FF,"5,220.00",Yes
Communities & Local Government,DCLG,13/12/2016,Current (non AEF) Grants to Local Authorities,Local Government & Public Services,BABERGH DC,,,,232618405,5000354035,,Long Term Empty Property Relief,IP7 6SJ,605,Yes
Communities & Local Government,DCLG,13/12/2016,Current (non AEF) Grants to Local Authorities,Local Government & Public Services,BABERGH DC,,,,232618405,5000354037,,Business Rates Multiplier Cap,IP7 6SJ,"2,735.00",Yes
Communities & Local Government,DCLG,13/12/2016,Current (non AEF) Grants to Local Authorities,Local Government & Public Services,BABERGH DC,,,,232618405,5000354041,,Doubling of Small Business Rates Relief,IP7 6SJ,"39,543.00",Yes
Communities & Local Government,DCLG,13/12/2016,Current (non AEF) Grants to Local Authorities,Local Government & Public Services,BARKING & DAGENHAM LB (HSG),,,,217142293,5000354049,,Business Rates Multiplier Cap,RM10 7BY,"63,449.00",Yes
Communities & Local Government,DCLG,13/12/2016,Current (non AEF) Grants to Local Authorities,Local Government & Public Services,BARKING & DAGENHAM LB (HSG),,,,217142293,5000354052,,Doubling of Small Business Rates Relief,RM10 7BY,"34,180.00",Yes
Communities & Local Government,DCLG,13/12/2016,Current (non AEF) Grants to Local Authorities,Local Government & Public Services,BARKING & DAGENHAM LB (HSG),,,,217142293,5000354055,,Long Term Empty Property Relief,RM10 7BY,"4,608.00",Yes
Communities & Local Government,DCLG,13/12/2016,Current (non AEF) Grants to Local Authorities,Local Government & Public Services,BARNSLEY MBC,,,,211178595,5000355224,,Business Rates Multiplier Cap,S70 2AQ,"63,236.00",Yes
Communities & Local Government,DCLG,13/12/2016,Current (non AEF) Grants to Local Authorities,Local Government & Public Services,BARNSLEY MBC,,,,211178595,5000355227,,Doubling of Small Business Rates Relief,S70 2AQ,"103,705.00",Yes
Communities & Local Government,DCLG,13/12/2016,Current (non AEF) Grants to Local Authorities,Local Government & Public Services,BARNSLEY MBC,,,,211178595,5000355230,,Long Term Empty Property Relief,S70 2AQ,576,Yes
Communities & Local Government,DCLG,13/12/2016,Current (non AEF) Grants to Local Authorities,Local Government & Public Services,BARNSLEY MBC,,,,211178595,5000355233,,Extended Transitional Relief for Small and Medium,S70 2AQ,848,Yes
Communities & Local Government,DCLG,13/12/2016,Current (non AEF) Grants to Local Authorities,Local Government & Public Services,BARROW BC,,,,295632913,5000355245,,Doubling of Small Business Rates Relief,LA14 2LD,"23,577.00",Yes
Communities & Local Government,DCLG,13/12/2016,Current (non AEF) Grants to Local Authorities,Local Government & Public Services,BARROW BC,,,,295632913,5000355248,,Business Rates Multiplier Cap,LA14 2LD,"3,957.00",Yes
Communities & Local Government,DCLG,13/12/2016,Current (non AEF) Grants to Local Authorities,Local Government & Public Services,BASILDON BOROUGH COUNCIL,,,,,5000355251,,Business Rates Multiplier Cap,SS14 0DF,"8,437.00",Yes
Communities & Local Government,DCLG,13/12/2016,Current (non AEF) Grants to Local Authorities,Local Government & Public Services,BASILDON BOROUGH COUNCIL,,,,,5000355254,,Doubling of Small Business Rates Relief,SS14 0DF,"43,288.00",Yes
Communities & Local Government,DCLG,13/12/2016,Current (non AEF) Grants to Local Authorities,Local Government & Public Services,BASINGSTOKE & DEANE BC,,,,228328506,5000355260,,Small Business Rates Relief on Second Properties,RG21 2AJ,577,Yes
Communities & Local Government,DCLG,13/12/2016,Current (non AEF) Grants to Local Authorities,Local Government & Public Services,BASINGSTOKE & DEANE BC,,,,228328506,5000355263,,Doubling of Small Business Rates Relief,RG21 2AJ,"28,571.00",Yes
Communities & Local Government,DCLG,13/12/2016,Current (non AEF) Grants to Local Authorities,Local Government & Public Services,BASINGSTOKE & DEANE BC,,,,228328506,5000355266,,Long Term Empty Property Relief,RG21 2AJ,"2,545.00",Yes
Communities & Local Government,DCLG,13/12/2016,Current (non AEF) Grants to Local Authorities,Local Government & Public Services,BASINGSTOKE & DEANE BC,,,,228328506,5000355269,,Business Rates Multiplier Cap,RG21 2AJ,"4,235.00",Yes
Communities & Local Government,DCLG,13/12/2016,Current (non AEF) Grants to Local Authorities,Local Government & Public Services,BASSETLAW DC (HSG),,,,,5000354058,,Business Rates Multiplier Cap,S80 2AH,"5,822.00",Yes
Communities & Local Government,DCLG,13/12/2016,Current (non AEF) Grants to Local Authorities,Local Government & Public Services,BASSETLAW DC (HSG),,,,,5000354061,,New Empty Property Relief,S80 2AH,"2,609.00",Yes
Communities & Local Government,DCLG,13/12/2016,Current (non AEF) Grants to Local Authorities,Local Government & Public Services,BASSETLAW DC (HSG),,,,,5000354064,,Long Term Empty Property Relief,S80 2AH,563,Yes
Communities & Local Government,DCLG,13/12/2016,Current (non AEF) Grants to Local Authorities,Local Government & Public Services,BASSETLAW DC (HSG),,,,,5000354067,,Extended Transitional Relief for Small and Medium,S80 2AH,402,Yes
Communities & Local Government,DCLG,13/12/2016,Current (non AEF) Grants to Local Authorities,Local Government & Public Services,BASSETLAW DC (HSG),,,,,5000354070,,Small Business Rates Relief on Second Properties,S80 2AH,558,Yes
Communities & Local Government,DCLG,13/12/2016,Current (non AEF) Grants to Local Authorities,Local Government & Public Services,BASSETLAW DC (HSG),,,,,5000354075,,Doubling of Small Business Rates Relief,S80 2AH,"44,693.00",Yes
Communities & Local Government,DCLG,13/12/2016,Current (non AEF) Grants to Local Authorities,Local Government & Public Services,BATH & NE SOMERSET DC (HSG),,,,214502499,5000354084,,Small Business Rates Relief on Second Properties,BA1 5AW,315,Yes
Communities & Local Government,DCLG,13/12/2016,Current (non AEF) Grants to Local Authorities,Local Government & Public Services,BATH & NE SOMERSET DC (HSG),,,,214502499,5000354087,,Doubling of Small Business Rates Relief,BA1 5AW,"85,108.00",Yes
Communities & Local Government,DCLG,13/12/2016,Current (non AEF) Grants to Local Authorities,Local Government & Public Services,BATH & NE SOMERSET DC (HSG),,,,214502499,5000354090,,Long Term Empty Property Relief,BA1 5AW,"1,966.00",Yes
Communities & Local Government,DCLG,13/12/2016,Current (non AEF) Grants to Local Authorities,Local Government & Public Services,BATH & NE SOMERSET DC (HSG),,,,214502499,5000354093,,Business Rates Multiplier Cap,BA1 5AW,"27,874.00",Yes
Communities & Local Government,DCLG,13/12/2016,Current (non AEF) Grants to Local Authorities,Local Government & Public Services,BEDFORD UNITARY AUTHORITY,,,,225682160,5000355930,,Doubling of Small Business Rates Relief,MK40 1SJ,"68,202.00",Yes
Communities & Local Government,DCLG,13/12/2016,Current (non AEF) Grants to Local Authorities,Local Government & Public Services,BEDFORD UNITARY AUTHORITY,,,,225682160,5000355932,,New Empty Property Relief,MK40 1SJ,"2,872.00",Yes
Communities & Local Government,DCLG,13/12/2016,Current (non AEF) Grants to Local Authorities,Local Government & Public Services,BEDFORD UNITARY AUTHORITY,,,,225682160,5000355934,,Long Term Empty Property Relief,MK40 1SJ,"1,283.00",Yes
Communities & Local Government,DCLG,13/12/2016,Current (non AEF) Grants to Local Authorities,Local Government & Public Services,BEDFORD UNITARY AUTHORITY,,,,225682160,5000355936,,Business Rates Multiplier Cap,MK40 1SJ,"36,631.00",Yes
Communities & Local Government,DCLG,13/12/2016,Current (non AEF) Grants to Local Authorities,Local Government & Public Services,BEDS & LUTON FIRE & RESCUE SERVICE,,Medium,,387821283,5000355710,,Business Rates Multiplier Cap,MK42 7NR,"6,639.00",Yes
Communities & Local Government,DCLG,13/12/2016,Current (non AEF) Grants to Local Authorities,Local Government & Public Services,BEDS & LUTON FIRE & RESCUE SERVICE,,Medium,,387821283,5000355712,,Doubling of Small Business Rates Relief,MK42 7NR,"4,713.00",Yes
Communities & Local Government,DCLG,13/12/2016,Current (non AEF) Grants to Local Authorities,Local Government & Public Services,BEDS & LUTON FIRE & RESCUE SERVICE,,Medium,,387821283,5000355716,,Extended Transitional Relief for Small and Medium,MK42 7NR,913,Yes
Communities & Local Government,DCLG,13/12/2016,Current (non AEF) Grants to Local Authorities,Local Government & Public Services,BEXLEY LB (RSG),,,,,5000355468,,Doubling of Small Business Rates Relief,DA8 1TL,"51,500.00",Yes
Communities & Local Government,DCLG,13/12/2016,Current (non AEF) Grants to Local Authorities,Local Government & Public Services,BEXLEY LB (RSG),,,,,5000355474,,Business Rates Multiplier Cap,DA8 1TL,"43,416.00",Yes
Communities & Local Government,DCLG,13/12/2016,Current (non AEF) Grants to Local Authorities,Local Government & Public Services,BIRMINGHAM CITY CNCL,,,,213780559,5000355279,,Business Rates Multiplier Cap,B2 2AJ,"408,802.00",Yes
Communities & Local Government,DCLG,13/12/2016,Current (non AEF) Grants to Local Authorities,Local Government & Public Services,BIRMINGHAM CITY CNCL,,,,213780559,5000355282,,Doubling of Small Business Rates Relief,B2 2AJ,"534,782.00",Yes
Communities & Local Government,DCLG,13/12/2016,Current (non AEF) Grants to Local Authorities,Local Government & Public Services,BLABY DC (HSG),,,,,5000354102,,Doubling of Small Business Rates Relief,LE9 5EP,"21,340.00",Yes
Communities & Local Government,DCLG,13/12/2016,Current (non AEF) Grants to Local Authorities,Local Government & Public Services,BLABY DC (HSG),,,,,5000354105,,Business Rates Multiplier Cap,LE9 5EP,"3,880.00",Yes
Communities & Local Government,DCLG,13/12/2016,Current (non AEF) Grants to Local Authorities,Local Government & Public Services,BLACKBURN WITH DARWEN BC,,,,,5000355285,,Business Rates Multiplier Cap,BB1 7DY,"49,301.00",Yes
Communities & Local Government,DCLG,13/12/2016,Current (non AEF) Grants to Local Authorities,Local Government & Public Services,BLACKBURN WITH DARWEN BC,,,,,5000355288,,Doubling of Small Business Rates Relief,BB1 7DY,"113,290.00",Yes
Communities & Local Government,DCLG,13/12/2016,Current (non AEF) Grants to Local Authorities,Local Government & Public Services,BLACKBURN WITH DARWEN BC,,,,,5000355292,,New Empty Property Relief,BB1 7DY,"4,142.00",Yes
Communities & Local Government,DCLG,13/12/2016,Current (non AEF) Grants to Local Authorities,Local Government & Public Services,BLACKBURN WITH DARWEN BC,,,,,5000355295,,Long Term Empty Property Relief,BB1 7DY,"6,213.00",Yes
Communities & Local Government,DCLG,13/12/2016,Current (non AEF) Grants to Local Authorities,Local Government & Public Services,BLACKBURN WITH DARWEN BC,,,,,5000355298,,Extended Transitional Relief for Small and Medium,BB1 7DY,414,Yes
Communities & Local Government,DCLG,13/12/2016,Current (non AEF) Grants to Local Authorities,Local Government & Public Services,BLACKBURN WITH DARWEN BC,,,,,5000355301,,Small Business Rates Relief on Second Properties,BB1 7DY,"1,242.00",Yes
Communities & Local Government,DCLG,13/12/2016,Current (non AEF) Grants to Local Authorities,Local Government & Public Services,BLACKPOOL BC,,,,,5000355304,,Business Rates Multiplier Cap,FY1 1NA,"52,258.00",Yes
Communities & Local Government,DCLG,13/12/2016,Current (non AEF) Grants to Local Authorities,Local Government & Public Services,BLACKPOOL BC,,,,,5000355307,,Doubling of Small Business Rates Relief,FY1 1NA,"128,078.00",Yes
Communities & Local Government,DCLG,13/12/2016,Current (non AEF) Grants to Local Authorities,Local Government & Public Services,BLACKPOOL BC,,,,,5000355310,,Long Term Empty Property Relief,FY1 1NA,"3,550.00",Yes
Communities & Local Government,DCLG,13/12/2016,Current (non AEF) Grants to Local Authorities,Local Government & Public Services,BOLSOVER DC,,,,235516523,5000355317,,Doubling of Small Business Rates Relief,S43 4JY,"22,949.00",Yes
Communities & Local Government,DCLG,13/12/2016,Current (non AEF) Grants to Local Authorities,Local Government & Public Services,BOLSOVER DC,,,,235516523,5000355321,,Business Rates Multiplier Cap,S43 4JY,"4,637.00",Yes
Communities & Local Government,DCLG,13/12/2016,Current (non AEF) Grants to Local Authorities,Local Government & Public Services,BOLTON MBC,,,,,5000355325,,Extended Transitional Relief for Small and Medium,BL1 1RU,"2,485.00",Yes
Communities & Local Government,DCLG,13/12/2016,Current (non AEF) Grants to Local Authorities,Local Government & Public Services,BOLTON MBC,,,,,5000355327,,Long Term Empty Property Relief,BL1 1RU,"7,497.00",Yes
Communities & Local Government,DCLG,13/12/2016,Current (non AEF) Grants to Local Authorities,Local Government & Public Services,BOLTON MBC,,,,,5000355329,,Business Rates Multiplier Cap,BL1 1RU,"77,576.00",Yes
Communities & Local Government,DCLG,13/12/2016,Current (non AEF) Grants to Local Authorities,Local Government & Public Services,BOLTON MBC,,,,,5000355331,,Doubling of Small Business Rates Relief,BL1 1RU,"153,263.00",Yes
Communities & Local Government,DCLG,13/12/2016,Current (non AEF) Grants to Local Authorities,Local Government & Public Services,BOSTON BC,,,,236417713,5000354109,,Business Rates Multiplier Cap,PE21 8QR,"3,547.00",Yes
Communities & Local Government,DCLG,13/12/2016,Current (non AEF) Grants to Local Authorities,Local Government & Public Services,BOSTON BC,,,,236417713,5000354112,,Doubling of Small Business Rates Relief,PE21 8QR,"26,346.00",Yes
Communities & Local Government,DCLG,13/12/2016,Current (non AEF) Grants to Local Authorities,Local Government & Public Services,BOSTON BC,,,,236417713,5000354116,,Long Term Empty Property Relief,PE21 8QR,286,Yes
Communities & Local Government,DCLG,13/12/2016,Current (non AEF) Grants to Local Authorities,Local Government & Public Services,BOURNEMOUTH DC,,,,,5000355335,,Business Rates Multiplier Cap,BH2 6EB,"36,162.00",Yes
Communities & Local Government,DCLG,13/12/2016,Current (non AEF) Grants to Local Authorities,Local Government & Public Services,BOURNEMOUTH DC,,,,,5000355337,,Doubling of Small Business Rates Relief,BH2 6EB,"94,201.00",Yes
Communities & Local Government,DCLG,13/12/2016,Current (non AEF) Grants to Local Authorities,Local Government & Public Services,BOURNEMOUTH DC,,,,,5000355339,,Long Term Empty Property Relief,BH2 6EB,"2,014.00",Yes
Communities & Local Government,DCLG,13/12/2016,Current (non AEF) Grants to Local Authorities,Local Government & Public Services,BRACKNELL FOREST DC,,,,236184867,5000355345,,Long Term Empty Property Relief,RG12 1AQ,"2,072.00",Yes
Communities & Local Government,DCLG,13/12/2016,Current (non AEF) Grants to Local Authorities,Local Government & Public Services,BRACKNELL FOREST DC,,,,236184867,5000355347,,Business Rates Multiplier Cap,RG12 1AQ,"23,267.00",Yes
Communities & Local Government,DCLG,13/12/2016,Current (non AEF) Grants to Local Authorities,Local Government & Public Services,BRACKNELL FOREST DC,,,,236184867,5000355349,,Doubling of Small Business Rates Relief,RG12 1AQ,"20,712.00",Yes
Communities & Local Government,DCLG,13/12/2016,Current (non AEF) Grants to Local Authorities,Local Government & Public Services,BRACKNELL FOREST DC,,,,236184867,5000355351,,Small Business Rates Relief on Second Properties,RG12 1AQ,414,Yes
Communities & Local Government,DCLG,13/12/2016,Current (non AEF) Grants to Local Authorities,Local Government & Public Services,BRADFORD MBC,,,,,5000355355,,Small Business Rates Relief on Second Properties,BD1 1HX,"2,485.00",Yes
Communities & Local Government,DCLG,13/12/2016,Current (non AEF) Grants to Local Authorities,Local Government & Public Services,BRADFORD MBC,,,,,5000355357,,Business Rates Multiplier Cap,BD1 1HX,"157,114.00",Yes
Communities & Local Government,DCLG,13/12/2016,Current (non AEF) Grants to Local Authorities,Local Government & Public Services,BRADFORD MBC,,,,,5000355359,,New Empty Property Relief,BD1 1HX,828,Yes
Communities & Local Government,DCLG,13/12/2016,Current (non AEF) Grants to Local Authorities,Local Government & Public Services,BRADFORD MBC,,,,,5000355361,,Extended Transitional Relief for Small and Medium,BD1 1HX,"1,036.00",Yes
Communities & Local Government,DCLG,13/12/2016,Current (non AEF) Grants to Local Authorities,Local Government & Public Services,BRADFORD MBC,,,,,5000355363,,Doubling of Small Business Rates Relief,BD1 1HX,"340,491.00",Yes
Communities & Local Government,DCLG,13/12/2016,Current (non AEF) Grants to Local Authorities,Local Government & Public Services,BRADFORD MBC,,,,,5000355365,,Long Term Empty Property Relief,BD1 1HX,"4,066.00",Yes
Communities & Local Government,DCLG,13/12/2016,Current (non AEF) Grants to Local Authorities,Local Government & Public Services,BRAINTREE DC,,,,226941730,5000354126,,Business Rates Multiplier Cap,CM7 6HB,"4,796.00",Yes
Communities & Local Government,DCLG,13/12/2016,Current (non AEF) Grants to Local Authorities,Local Government & Public Services,BRAINTREE DC,,,,226941730,5000354129,,Doubling of Small Business Rates Relief,CM7 6HB,"55,810.00",Yes
Communities & Local Government,DCLG,13/12/2016,Current (non AEF) Grants to Local Authorities,Local Government & Public Services,BRAINTREE DC,,,,226941730,5000354131,,New Empty Property Relief,CM7 6HB,339,Yes
Communities & Local Government,DCLG,13/12/2016,Current (non AEF) Grants to Local Authorities,Local Government & Public Services,BRAINTREE DC,,,,226941730,5000354134,,Long Term Empty Property Relief,CM7 6HB,810,Yes
Communities & Local Government,DCLG,13/12/2016,Current (non AEF) Grants to Local Authorities,Local Government & Public Services,BRAINTREE DC,,,,226941730,5000354137,,Extended Transitional Relief for Small and Medium,CM7 6HB,406,Yes
Communities & Local Government,DCLG,13/12/2016,Current (non AEF) Grants to Local Authorities,Local Government & Public Services,BRECKLAND DC,,,,232611384,5000354147,,Doubling of Small Business Rates Relief,NR19 1EE,"50,639.00",Yes
Communities & Local Government,DCLG,13/12/2016,Current (non AEF) Grants to Local Authorities,Local Government & Public Services,BRECKLAND DC,,,,232611384,5000354150,,Long Term Empty Property Relief,NR19 1EE,616,Yes
Communities & Local Government,DCLG,13/12/2016,Current (non AEF) Grants to Local Authorities,Local Government & Public Services,BRECKLAND DC,,,,232611384,5000354156,,Business Rates Multiplier Cap,NR19 1EE,"5,483.00",Yes
Communities & Local Government,DCLG,13/12/2016,Current (non AEF) Grants to Local Authorities,Local Government & Public Services,BRENT LB (HSG),,,,,5000354165,,Business Rates Multiplier Cap,HA9 9HD,"101,487.00",Yes
Communities & Local Government,DCLG,13/12/2016,Current (non AEF) Grants to Local Authorities,Local Government & Public Services,BRENT LB (HSG),,,,,5000354169,,New Empty Property Relief,HA9 9HD,507,Yes
Communities & Local Government,DCLG,13/12/2016,Current (non AEF) Grants to Local Authorities,Local Government & Public Services,BRENT LB (HSG),,,,,5000354175,,Doubling of Small Business Rates Relief,HA9 9HD,"56,882.00",Yes
Communities & Local Government,DCLG,13/12/2016,Current (non AEF) Grants to Local Authorities,Local Government & Public Services,BRENT LB (HSG),,,,,5000354178,,Long Term Empty Property Relief,HA9 9HD,"1,268.00",Yes
Communities & Local Government,DCLG,13/12/2016,Current (non AEF) Grants to Local Authorities,Local Government & Public Services,BRENTWOOD BC,,,,227473188,5000355378,,Long Term Empty Property Relief,CM15 8AY,609,Yes
Communities & Local Government,DCLG,13/12/2016,Current (non AEF) Grants to Local Authorities,Local Government & Public Services,BRENTWOOD BC,,,,227473188,5000355382,,Doubling of Small Business Rates Relief,CM15 8AY,"20,288.00",Yes
Communities & Local Government,DCLG,13/12/2016,Current (non AEF) Grants to Local Authorities,Local Government & Public Services,BRENTWOOD BC,,,,227473188,5000355384,,Business Rates Multiplier Cap,CM15 8AY,"1,725.00",Yes
Communities & Local Government,DCLG,13/12/2016,Current (non AEF) Grants to Local Authorities,Local Government & Public Services,BRIGHTON & HOVE CITY COUNCIL,,Large,,228455218,5000355390,,Business Rates Multiplier Cap,BN3 2LS,"66,993.00",Yes
Communities & Local Government,DCLG,13/12/2016,Current (non AEF) Grants to Local Authorities,Local Government & Public Services,BRIGHTON & HOVE CITY COUNCIL,,Large,,228455218,5000355392,,Doubling of Small Business Rates Relief,BN3 2LS,"138,557.00",Yes
Communities & Local Government,DCLG,13/12/2016,Current (non AEF) Grants to Local Authorities,Local Government & Public Services,BRIGHTON & HOVE CITY COUNCIL,,Large,,228455218,5000355394,,New Empty Property Relief,BN3 2LS,371,Yes
Communities & Local Government,DCLG,13/12/2016,Current (non AEF) Grants to Local Authorities,Local Government & Public Services,BRIGHTON & HOVE CITY COUNCIL,,Large,,228455218,5000355396,,Long Term Empty Property Relief,BN3 2LS,"5,355.00",Yes
Communities & Local Government,DCLG,13/12/2016,Current (non AEF) Grants to Local Authorities,Local Government & Public Services,BRIGHTON & HOVE CITY COUNCIL,,Large,,228455218,5000355397,,Small Business Rates Relief on Second Properties,BN3 2LS,"1,311.00",Yes
Communities & Local Government,DCLG,13/12/2016,Current (non AEF) Grants to Local Authorities,Local Government & Public Services,BRISTOL CITY CNCL (HSG),,,,211103882,5000354184,,Doubling of Small Business Rates Relief,BS99 7BL,"180,002.00",Yes
Communities & Local Government,DCLG,13/12/2016,Current (non AEF) Grants to Local Authorities,Local Government & Public Services,BRISTOL CITY CNCL (HSG),,,,211103882,5000354187,,Long Term Empty Property Relief,BS99 7BL,"6,673.00",Yes
Communities & Local Government,DCLG,13/12/2016,Current (non AEF) Grants to Local Authorities,Local Government & Public Services,BRISTOL CITY CNCL (HSG),,,,211103882,5000354190,,Extended Transitional Relief for Small and Medium,BS99 7BL,"1,282.00",Yes
Communities & Local Government,DCLG,13/12/2016,Current (non AEF) Grants to Local Authorities,Local Government & Public Services,BRISTOL CITY CNCL (HSG),,,,211103882,5000354193,,Small Business Rates Relief on Second Properties,BS99 7BL,"2,690.00",Yes
Communities & Local Government,DCLG,13/12/2016,Current (non AEF) Grants to Local Authorities,Local Government & Public Services,BRISTOL CITY CNCL (HSG),,,,211103882,5000354197,,Business Rates Multiplier Cap,BS99 7BL,"123,227.00",Yes
Communities & Local Government,DCLG,13/12/2016,Current (non AEF) Grants to Local Authorities,Local Government & Public Services,BROADLAND DC,,Large,,219737785,5000354199,,Business Rates Multiplier Cap,NR7 0DU,"3,751.00",Yes
Communities & Local Government,DCLG,13/12/2016,Current (non AEF) Grants to Local Authorities,Local Government & Public Services,BROADLAND DC,,Large,,219737785,5000354202,,Doubling of Small Business Rates Relief,NR7 0DU,"45,767.00",Yes
Communities & Local Government,DCLG,13/12/2016,Current (non AEF) Grants to Local Authorities,Local Government & Public Services,BROMLEY LB,,,,211331954,5000355402,,Business Rates Multiplier Cap,BR1 3UH,"42,310.00",Yes
Communities & Local Government,DCLG,13/12/2016,Current (non AEF) Grants to Local Authorities,Local Government & Public Services,BROMLEY LB,,,,211331954,5000355403,,Doubling of Small Business Rates Relief,BR1 3UH,"57,032.00",Yes
Communities & Local Government,DCLG,13/12/2016,Current (non AEF) Grants to Local Authorities,Local Government & Public Services,BROMLEY LB,,,,211331954,5000355405,,Long Term Empty Property Relief,BR1 3UH,630,Yes
Communities & Local Government,DCLG,13/12/2016,Current (non AEF) Grants to Local Authorities,Local Government & Public Services,BROMLEY LB,,,,211331954,5000355407,,Extended Transitional Relief for Small and Medium,BR1 3UH,438,Yes
Communities & Local Government,DCLG,13/12/2016,Current (non AEF) Grants to Local Authorities,Local Government & Public Services,BROMSGROVE DC,,,,236654745,5000354218,,Doubling of Small Business Rates Relief,B60 1AA,"39,777.00",Yes
Communities & Local Government,DCLG,13/12/2016,Current (non AEF) Grants to Local Authorities,Local Government & Public Services,BROMSGROVE DC,,,,236654745,5000354222,,New Empty Property Relief,B60 1AA,873,Yes
Communities & Local Government,DCLG,13/12/2016,Current (non AEF) Grants to Local Authorities,Local Government & Public Services,BROMSGROVE DC,,,,236654745,5000354225,,Long Term Empty Property Relief,B60 1AA,495,Yes
Communities & Local Government,DCLG,13/12/2016,Current (non AEF) Grants to Local Authorities,Local Government & Public Services,BROMSGROVE DC,,,,236654745,5000354231,,Business Rates Multiplier Cap,B60 1AA,"2,322.00",Yes
Communities & Local Government,DCLG,13/12/2016,Current (non AEF) Grants to Local Authorities,Local Government & Public Services,BROXBOURNE BC,,Public Bodies,,239931918,5000355411,,Business Rates Multiplier Cap,EN8 9XG,"3,766.00",Yes
Communities & Local Government,DCLG,13/12/2016,Current (non AEF) Grants to Local Authorities,Local Government & Public Services,BROXBOURNE BC,,Public Bodies,,239931918,5000355413,,Doubling of Small Business Rates Relief,EN8 9XG,"25,030.00",Yes
Communities & Local Government,DCLG,13/12/2016,Current (non AEF) Grants to Local Authorities,Local Government & Public Services,BROXTOWE BC,,,,239877640,5000355415,,Doubling of Small Business Rates Relief,NG9 1AB,"29,080.00",Yes
Communities & Local Government,DCLG,13/12/2016,Current (non AEF) Grants to Local Authorities,Local Government & Public Services,BROXTOWE BC,,,,239877640,5000355417,,Business Rates Multiplier Cap,NG9 1AB,"3,827.00",Yes
Communities & Local Government,DCLG,13/12/2016,Current (non AEF) Grants to Local Authorities,Local Government & Public Services,BUCKINGHAMSHIRE CC,,,,293750923,5000355422,,Business Rates Multiplier Cap,HP20 1UD,"50,108.00",Yes
Communities & Local Government,DCLG,13/12/2016,Current (non AEF) Grants to Local Authorities,Local Government & Public Services,BUCKINGHAMSHIRE CC,,,,293750923,5000355424,,Doubling of Small Business Rates Relief,HP20 1UD,"30,884.00",Yes
Communities & Local Government,DCLG,13/12/2016,Current (non AEF) Grants to Local Authorities,Local Government & Public Services,BUCKINGHAMSHIRE CC,,,,293750923,5000355426,,New Empty Property Relief,HP20 1UD,806,Yes
Communities & Local Government,DCLG,13/12/2016,Current (non AEF) Grants to Local Authorities,Local Government & Public Services,BUCKS & MILTON KEYNES FIRE AUTH,,Public Bodies,,423679463,5000355562,,Business Rates Multiplier Cap,HP20 1BD,"5,958.00",Yes
Communities & Local Government,DCLG,13/12/2016,Current (non AEF) Grants to Local Authorities,Local Government & Public Services,BUCKS & MILTON KEYNES FIRE AUTH,,Public Bodies,,423679463,5000355564,,Doubling of Small Business Rates Relief,HP20 1BD,"4,958.00",Yes
Communities & Local Government,DCLG,13/12/2016,Current (non AEF) Grants to Local Authorities,Local Government & Public Services,BURNLEY BC,,,,229413281,5000355436,,Long Term Empty Property Relief,BB11 1JA,846,Yes
Communities & Local Government,DCLG,13/12/2016,Current (non AEF) Grants to Local Authorities,Local Government & Public Services,BURNLEY BC,,,,229413281,5000355438,,Extended Transitional Relief for Small and Medium,BB11 1JA,846,Yes
Communities & Local Government,DCLG,13/12/2016,Current (non AEF) Grants to Local Authorities,Local Government & Public Services,BURNLEY BC,,,,229413281,5000355440,,Small Business Rates Relief on Second Properties,BB11 1JA,422,Yes
Communities & Local Government,DCLG,13/12/2016,Current (non AEF) Grants to Local Authorities,Local Government & Public Services,BURNLEY BC,,,,229413281,5000355442,,Doubling of Small Business Rates Relief,BB11 1JA,"47,434.00",Yes
Communities & Local Government,DCLG,13/12/2016,Current (non AEF) Grants to Local Authorities,Local Government & Public Services,BURNLEY BC,,,,229413281,5000355444,,Business Rates Multiplier Cap,BB11 1JA,"5,211.00",Yes
Communities & Local Government,DCLG,13/12/2016,Current (non AEF) Grants to Local Authorities,Local Government & Public Services,BURNLEY BC,,,,229413281,5000355446,,New Empty Property Relief,BB11 1JA,846,Yes
Communities & Local Government,DCLG,13/12/2016,Current (non AEF) Grants to Local Authorities,Local Government & Public Services,BURY MBC,,,,,5000355450,,Extended Transitional Relief for Small and Medium,BL9 0SW,453,Yes
Communities & Local Government,DCLG,13/12/2016,Current (non AEF) Grants to Local Authorities,Local Government & Public Services,BURY MBC,,,,,5000355452,,Business Rates Multiplier Cap,BL9 0SW,"39,346.00",Yes
Communities & Local Government,DCLG,13/12/2016,Current (non AEF) Grants to Local Authorities,Local Government & Public Services,BURY MBC,,,,,5000355454,,Doubling of Small Business Rates Relief,BL9 0SW,"101,687.00",Yes
Communities & Local Government,DCLG,13/12/2016,Current (non AEF) Grants to Local Authorities,Local Government & Public Services,CALDERDALE MBC,,,,,5000355457,,Small Business Rates Relief on Second Properties,HX1 1YP,"2,072.00",Yes
Communities & Local Government,DCLG,13/12/2016,Current (non AEF) Grants to Local Authorities,Local Government & Public Services,CALDERDALE MBC,,,,,5000355459,,Extended Transitional Relief for Small and Medium,HX1 1YP,538,Yes
Communities & Local Government,DCLG,13/12/2016,Current (non AEF) Grants to Local Authorities,Local Government & Public Services,CALDERDALE MBC,,,,,5000355461,,Business Rates Multiplier Cap,HX1 1YP,"47,328.00",Yes
Communities & Local Government,DCLG,13/12/2016,Current (non AEF) Grants to Local Authorities,Local Government & Public Services,CALDERDALE MBC,,,,,5000355463,,Doubling of Small Business Rates Relief,HX1 1YP,"141,319.00",Yes
Communities & Local Government,DCLG,13/12/2016,Current (non AEF) Grants to Local Authorities,Local Government & Public Services,CAMBRIDGE CITY COUNCIL,,,,210357534,5000355465,,Long Term Empty Property Relief,CB1 0JH,"3,381.00",Yes
Communities & Local Government,DCLG,13/12/2016,Current (non AEF) Grants to Local Authorities,Local Government & Public Services,CAMBRIDGE CITY COUNCIL,,,,210357534,5000355467,,Extended Transitional Relief for Small and Medium,CB1 0JH,868,Yes
Communities & Local Government,DCLG,13/12/2016,Current (non AEF) Grants to Local Authorities,Local Government & Public Services,CAMBRIDGE CITY COUNCIL,,,,210357534,5000355469,,Doubling of Small Business Rates Relief,CB1 0JH,"24,127.00",Yes
Communities & Local Government,DCLG,13/12/2016,Current (non AEF) Grants to Local Authorities,Local Government & Public Services,CAMBRIDGE CITY COUNCIL,,,,210357534,5000355471,,Business Rates Multiplier Cap,CB1 0JH,"7,412.00",Yes
Communities & Local Government,DCLG,13/12/2016,Current (non AEF) Grants to Local Authorities,Local Government & Public Services,CAMBRIDGE CITY COUNCIL,,,,210357534,5000355473,,New Empty Property Relief,CB1 0JH,"1,691.00",Yes
Communities & Local Government,DCLG,13/12/2016,Current (non AEF) Grants to Local Authorities,Local Government & Public Services,CAMBRIDGESHIRE COUNTY CNCL,,,,219047347,5000355477,,Doubling of Small Business Rates Relief,CB3 0AP,"42,327.00",Yes
Communities & Local Government,DCLG,13/12/2016,Current (non AEF) Grants to Local Authorities,Local Government & Public Services,CAMBRIDGESHIRE COUNTY CNCL,,,,219047347,5000355479,,Long Term Empty Property Relief,CB3 0AP,865,Yes
Communities & Local Government,DCLG,13/12/2016,Current (non AEF) Grants to Local Authorities,Local Government & Public Services,CAMBRIDGESHIRE COUNTY CNCL,,,,219047347,5000355481,,Extended Transitional Relief for Small and Medium,CB3 0AP,360,Yes
Communities & Local Government,DCLG,13/12/2016,Current (non AEF) Grants to Local Authorities,Local Government & Public Services,CAMBRIDGESHIRE COUNTY CNCL,,,,219047347,5000355483,,Small Business Rates Relief on Second Properties,CB3 0AP,391,Yes
Communities & Local Government,DCLG,13/12/2016,Current (non AEF) Grants to Local Authorities,Local Government & Public Services,CAMBRIDGESHIRE COUNTY CNCL,,,,219047347,5000355485,,Business Rates Multiplier Cap,CB3 0AP,"73,922.00",Yes
Communities & Local Government,DCLG,13/12/2016,Current (non AEF) Grants to Local Authorities,Local Government & Public Services,CAMBRIDGESHIRE COUNTY CNCL,,,,219047347,5000355487,,New Empty Property Relief,CB3 0AP,692,Yes
Communities & Local Government,DCLG,13/12/2016,Current (non AEF) Grants to Local Authorities,Local Government & Public Services,CAMBS & PETERBOROUGH FIRE AUTHORITY,,,,235999737,5000355654,,Business Rates Multiplier Cap,PE29 2NA,"7,021.00",Yes
Communities & Local Government,DCLG,13/12/2016,Current (non AEF) Grants to Local Authorities,Local Government & Public Services,CAMBS & PETERBOROUGH FIRE AUTHORITY,,,,235999737,5000355656,,Doubling of Small Business Rates Relief,PE29 2NA,"6,040.00",Yes
Communities & Local Government,DCLG,13/12/2016,Current (non AEF) Grants to Local Authorities,Local Government & Public Services,CAMDEN LB,,,,211651836,5000355491,,Doubling of Small Business Rates Relief,WC1H 8NG,"37,877.00",Yes
Communities & Local Government,DCLG,13/12/2016,Current (non AEF) Grants to Local Authorities,Local Government & Public Services,CAMDEN LB,,,,211651836,5000355493,,Extended Transitional Relief for Small and Medium,WC1H 8NG,"2,290.00",Yes
Communities & Local Government,DCLG,13/12/2016,Current (non AEF) Grants to Local Authorities,Local Government & Public Services,CAMDEN LB,,,,211651836,5000355495,,Business Rates Multiplier Cap,WC1H 8NG,"110,389.00",Yes
Communities & Local Government,DCLG,13/12/2016,Current (non AEF) Grants to Local Authorities,Local Government & Public Services,CANNOCK CHASE DC,,,,215064770,5000355497,,Business Rates Multiplier Cap,WS11 1BG,"4,907.00",Yes
Communities & Local Government,DCLG,13/12/2016,Current (non AEF) Grants to Local Authorities,Local Government & Public Services,CANNOCK CHASE DC,,,,215064770,5000355499,,Long Term Empty Property Relief,WS11 1BG,903,Yes
Communities & Local Government,DCLG,13/12/2016,Current (non AEF) Grants to Local Authorities,Local Government & Public Services,CANNOCK CHASE DC,,,,215064770,5000355503,,Doubling of Small Business Rates Relief,WS11 1BG,"43,801.00",Yes
Communities & Local Government,DCLG,13/12/2016,Current (non AEF) Grants to Local Authorities,Local Government & Public Services,CANTERBURY CITY CNCL,,,,,5000354237,,Extended Transitional Relief for Small and Medium,CT1 1YW,366,Yes
Communities & Local Government,DCLG,13/12/2016,Current (non AEF) Grants to Local Authorities,Local Government & Public Services,CANTERBURY CITY CNCL,,,,,5000354240,,Business Rates Multiplier Cap,CT1 1YW,"3,970.00",Yes
Communities & Local Government,DCLG,13/12/2016,Current (non AEF) Grants to Local Authorities,Local Government & Public Services,CANTERBURY CITY CNCL,,,,,5000354243,,Doubling of Small Business Rates Relief,CT1 1YW,"59,104.00",Yes
Communities & Local Government,DCLG,13/12/2016,Current (non AEF) Grants to Local Authorities,Local Government & Public Services,CANTERBURY CITY CNCL,,,,,5000354246,,Long Term Empty Property Relief,CT1 1YW,"1,568.00",Yes
Communities & Local Government,DCLG,13/12/2016,Current (non AEF) Grants to Local Authorities,Local Government & Public Services,CARLISLE CITY CNCL,,,,227471059,5000354255,,Small Business Rates Relief on Second Properties,CA3 8QG,484,Yes
Communities & Local Government,DCLG,13/12/2016,Current (non AEF) Grants to Local Authorities,Local Government & Public Services,CARLISLE CITY CNCL,,,,227471059,5000354258,,Business Rates Multiplier Cap,CA3 8QG,"4,978.00",Yes
Communities & Local Government,DCLG,13/12/2016,Current (non AEF) Grants to Local Authorities,Local Government & Public Services,CARLISLE CITY CNCL,,,,227471059,5000354260,,Doubling of Small Business Rates Relief,CA3 8QG,"44,444.00",Yes
Communities & Local Government,DCLG,13/12/2016,Current (non AEF) Grants to Local Authorities,Local Government & Public Services,CARLISLE CITY CNCL,,,,227471059,5000354265,,Long Term Empty Property Relief,CA3 8QG,"2,090.00",Yes
Communities & Local Government,DCLG,13/12/2016,Current (non AEF) Grants to Local Authorities,Local Government & Public Services,CARLISLE CITY CNCL,,,,227471059,5000354268,,Extended Transitional Relief for Small and Medium,CA3 8QG,270,Yes
Communities & Local Government,DCLG,13/12/2016,Current (non AEF) Grants to Local Authorities,Local Government & Public Services,CASTLE POINT BC,,Public Bodies,,228217931,5000355507,,Doubling of Small Business Rates Relief,SS7 1TF,"30,683.00",Yes
Communities & Local Government,DCLG,13/12/2016,Current (non AEF) Grants to Local Authorities,Local Government & Public Services,CASTLE POINT BC,,Public Bodies,,228217931,5000355513,,Business Rates Multiplier Cap,SS7 1TF,"2,466.00",Yes
Communities & Local Government,DCLG,13/12/2016,Current (non AEF) Grants to Local Authorities,Local Government & Public Services,CENTRAL BEDFORDSHIRE COUNCIL,,,,232624882,5000355891,,New Empty Property Relief,SG17 5TQ,"2,120.00",Yes
Communities & Local Government,DCLG,13/12/2016,Current (non AEF) Grants to Local Authorities,Local Government & Public Services,CENTRAL BEDFORDSHIRE COUNCIL,,,,232624882,5000355893,,Extended Transitional Relief for Small and Medium,SG17 5TQ,578,Yes
Communities & Local Government,DCLG,13/12/2016,Current (non AEF) Grants to Local Authorities,Local Government & Public Services,CENTRAL BEDFORDSHIRE COUNCIL,,,,232624882,5000355895,,Business Rates Multiplier Cap,SG17 5TQ,"39,574.00",Yes
Communities & Local Government,DCLG,13/12/2016,Current (non AEF) Grants to Local Authorities,Local Government & Public Services,CENTRAL BEDFORDSHIRE COUNCIL,,,,232624882,5000355897,,Doubling of Small Business Rates Relief,SG17 5TQ,"98,876.00",Yes
Communities & Local Government,DCLG,13/12/2016,Current (non AEF) Grants to Local Authorities,Local Government & Public Services,CENTRAL BEDFORDSHIRE COUNCIL,,,,232624882,5000355899,,Long Term Empty Property Relief,SG17 5TQ,"1,750.00",Yes
Communities & Local Government,DCLG,13/12/2016,Current (non AEF) Grants to Local Authorities,Local Government & Public Services,CHARNWOOD BC,,,,,5000355517,,Business Rates Multiplier Cap,LE11 2TU,"4,875.00",Yes
Communities & Local Government,DCLG,13/12/2016,Current (non AEF) Grants to Local Authorities,Local Government & Public Services,CHARNWOOD BC,,,,,5000355519,,New Empty Property Relief,LE11 2TU,"1,691.00",Yes
Communities & Local Government,DCLG,13/12/2016,Current (non AEF) Grants to Local Authorities,Local Government & Public Services,CHARNWOOD BC,,,,,5000355523,,Doubling of Small Business Rates Relief,LE11 2TU,"54,561.00",Yes
Communities & Local Government,DCLG,13/12/2016,Current (non AEF) Grants to Local Authorities,Local Government & Public Services,CHARNWOOD BC,,,,,5000355525,,Long Term Empty Property Relief,LE11 2TU,795,Yes
Communities & Local Government,DCLG,13/12/2016,Current (non AEF) Grants to Local Authorities,Local Government & Public Services,CHARNWOOD BC,,,,,5000355527,,Small Business Rates Relief on Second Properties,LE11 2TU,422,Yes
Communities & Local Government,DCLG,13/12/2016,Current (non AEF) Grants to Local Authorities,Local Government & Public Services,CHELMSFORD BC,,,,,5000355529,,Doubling of Small Business Rates Relief,CM1 1JE,"46,542.00",Yes
Communities & Local Government,DCLG,13/12/2016,Current (non AEF) Grants to Local Authorities,Local Government & Public Services,CHELMSFORD BC,,,,,5000355531,,Long Term Empty Property Relief,CM1 1JE,"1,258.00",Yes
Communities & Local Government,DCLG,13/12/2016,Current (non AEF) Grants to Local Authorities,Local Government & Public Services,CHELMSFORD BC,,,,,5000355535,,Extended Transitional Relief for Small and Medium,CM1 1JE,579,Yes
Communities & Local Government,DCLG,13/12/2016,Current (non AEF) Grants to Local Authorities,Local Government & Public Services,CHELMSFORD BC,,,,,5000355537,,Business Rates Multiplier Cap,CM1 1JE,"3,153.00",Yes
Communities & Local Government,DCLG,13/12/2016,Current (non AEF) Grants to Local Authorities,Local Government & Public Services,CHELTENHAM BC,,,,,5000355541,,Doubling of Small Business Rates Relief,GL50 1PW,"39,937.00",Yes
Communities & Local Government,DCLG,13/12/2016,Current (non AEF) Grants to Local Authorities,Local Government & Public Services,CHELTENHAM BC,,,,,5000355545,,Business Rates Multiplier Cap,GL50 1PW,"3,728.00",Yes
Communities & Local Government,DCLG,13/12/2016,Current (non AEF) Grants to Local Authorities,Local Government & Public Services,CHELTENHAM BC,,,,,5000355547,,Long Term Empty Property Relief,GL50 1PW,507,Yes
Communities & Local Government,DCLG,13/12/2016,Current (non AEF) Grants to Local Authorities,Local Government & Public Services,CHERWELL DC,,,,,5000354277,,Doubling of Small Business Rates Relief,OX15 4AA,"38,338.00",Yes
Communities & Local Government,DCLG,13/12/2016,Current (non AEF) Grants to Local Authorities,Local Government & Public Services,CHERWELL DC,,,,,5000354280,,Long Term Empty Property Relief,OX15 4AA,"1,009.00",Yes
Communities & Local Government,DCLG,13/12/2016,Current (non AEF) Grants to Local Authorities,Local Government & Public Services,CHERWELL DC,,,,,5000354287,,Business Rates Multiplier Cap,OX15 4AA,"9,033.00",Yes
Communities & Local Government,DCLG,13/12/2016,Current (non AEF) Grants to Local Authorities,Local Government & Public Services,CHESHIRE EAST COUNCIL,,Large,,,5000355903,,Extended Transitional Relief for Small and Medium,CW11 1HZ,294,Yes
Communities & Local Government,DCLG,13/12/2016,Current (non AEF) Grants to Local Authorities,Local Government & Public Services,CHESHIRE EAST COUNCIL,,Large,,,5000355905,,Small Business Rates Relief on Second Properties,CW11 1HZ,"1,952.00",Yes
Communities & Local Government,DCLG,13/12/2016,Current (non AEF) Grants to Local Authorities,Local Government & Public Services,CHESHIRE EAST COUNCIL,,Large,,,5000355907,,Doubling of Small Business Rates Relief,CW11 1HZ,"185,764.00",Yes
Communities & Local Government,DCLG,13/12/2016,Current (non AEF) Grants to Local Authorities,Local Government & Public Services,CHESHIRE EAST COUNCIL,,Large,,,5000355909,,Long Term Empty Property Relief,CW11 1HZ,"4,063.00",Yes
Communities & Local Government,DCLG,13/12/2016,Current (non AEF) Grants to Local Authorities,Local Government & Public Services,CHESHIRE EAST COUNCIL,,Large,,,5000355911,,Business Rates Multiplier Cap,CW11 1HZ,"49,448.00",Yes
Communities & Local Government,DCLG,13/12/2016,Current (non AEF) Grants to Local Authorities,Local Government & Public Services,CHESHIRE FIRE AUTHORITY,,,,424872737,5000355640,,Doubling of Small Business Rates Relief,CW7 2FQ,"8,676.00",Yes
Communities & Local Government,DCLG,13/12/2016,Current (non AEF) Grants to Local Authorities,Local Government & Public Services,CHESHIRE FIRE AUTHORITY,,,,424872737,5000355646,,Business Rates Multiplier Cap,CW7 2FQ,"10,624.00",Yes
Communities & Local Government,DCLG,13/12/2016,Current (non AEF) Grants to Local Authorities,Local Government & Public Services,CHESHIRE WEST & CHESTER UA,,Large,,215584383,5000355915,,Extended Transitional Relief for Small and Medium,CH1 2NP,414,Yes
Communities & Local Government,DCLG,13/12/2016,Current (non AEF) Grants to Local Authorities,Local Government & Public Services,CHESHIRE WEST & CHESTER UA,,Large,,215584383,5000355918,,Small Business Rates Relief on Second Properties,CH1 2NP,870,Yes
Communities & Local Government,DCLG,13/12/2016,Current (non AEF) Grants to Local Authorities,Local Government & Public Services,CHESHIRE WEST & CHESTER UA,,Large,,215584383,5000355920,,Doubling of Small Business Rates Relief,CH1 2NP,"133,607.00",Yes
Communities & Local Government,DCLG,13/12/2016,Current (non AEF) Grants to Local Authorities,Local Government & Public Services,CHESHIRE WEST & CHESTER UA,,Large,,215584383,5000355922,,Long Term Empty Property Relief,CH1 2NP,"3,479.00",Yes
Communities & Local Government,DCLG,13/12/2016,Current (non AEF) Grants to Local Authorities,Local Government & Public Services,CHESHIRE WEST & CHESTER UA,,Large,,215584383,5000355924,,Business Rates Multiplier Cap,CH1 2NP,"61,441.00",Yes
Communities & Local Government,DCLG,13/12/2016,Current (non AEF) Grants to Local Authorities,Local Government & Public Services,CHESHIRE WEST & CHESTER UA,,Large,,215584383,5000355926,,New Empty Property Relief,CH1 2NP,456,Yes
Communities & Local Government,DCLG,13/12/2016,Current (non AEF) Grants to Local Authorities,Local Government & Public Services,CHESTERFIELD BC,,,,232102301,5000355553,,Doubling of Small Business Rates Relief,S40 1LP,"48,111.00",Yes
Communities & Local Government,DCLG,13/12/2016,Current (non AEF) Grants to Local Authorities,Local Government & Public Services,CHESTERFIELD BC,,,,232102301,5000355555,,Business Rates Multiplier Cap,S40 1LP,"5,808.00",Yes
Communities & Local Government,DCLG,13/12/2016,Current (non AEF) Grants to Local Authorities,Local Government & Public Services,CHESTERFIELD BC,,,,232102301,5000355557,,Long Term Empty Property Relief,S40 1LP,"1,428.00",Yes
Communities & Local Government,DCLG,13/12/2016,Current (non AEF) Grants to Local Authorities,Local Government & Public Services,CHESTERFIELD BC,,,,232102301,5000355561,,Small Business Rates Relief on Second Properties,S40 1LP,261,Yes
Communities & Local Government,DCLG,13/12/2016,Current (non AEF) Grants to Local Authorities,Local Government & Public Services,CHICHESTER DC,,,,739800998,5000354290,,Doubling of Small Business Rates Relief,PO19 1TY,"55,077.00",Yes
Communities & Local Government,DCLG,13/12/2016,Current (non AEF) Grants to Local Authorities,Local Government & Public Services,CHICHESTER DC,,,,739800998,5000354293,,Long Term Empty Property Relief,PO19 1TY,338,Yes
Communities & Local Government,DCLG,13/12/2016,Current (non AEF) Grants to Local Authorities,Local Government & Public Services,CHICHESTER DC,,,,739800998,5000354299,,Small Business Rates Relief on Second Properties,PO19 1TY,560,Yes
Communities & Local Government,DCLG,13/12/2016,Current (non AEF) Grants to Local Authorities,Local Government & Public Services,CHICHESTER DC,,,,739800998,5000354302,,Business Rates Multiplier Cap,PO19 1TY,"3,869.00",Yes
Communities & Local Government,DCLG,13/12/2016,Current (non AEF) Grants to Local Authorities,Local Government & Public Services,CHICHESTER DC,,,,739800998,5000354305,,New Empty Property Relief,PO19 1TY,338,Yes
Communities & Local Government,DCLG,13/12/2016,Current (non AEF) Grants to Local Authorities,Local Government & Public Services,CHILTERN DC (HSG),,,,,5000354313,,Business Rates Multiplier Cap,HP6 5AW,"2,149.00",Yes
Communities & Local Government,DCLG,13/12/2016,Current (non AEF) Grants to Local Authorities,Local Government & Public Services,CHILTERN DC (HSG),,,,,5000354316,,Doubling of Small Business Rates Relief,HP6 5AW,"25,620.00",Yes
Communities & Local Government,DCLG,13/12/2016,Current (non AEF) Grants to Local Authorities,Local Government & Public Services,CHORLEY BOROUGH COUNCIL,,,,236415576,5000355563,,Long Term Empty Property Relief,PR7 1DP,351,Yes
Communities & Local Government,DCLG,13/12/2016,Current (non AEF) Grants to Local Authorities,Local Government & Public Services,CHORLEY BOROUGH COUNCIL,,,,236415576,5000355565,,Extended Transitional Relief for Small and Medium,PR7 1DP,558,Yes
Communities & Local Government,DCLG,13/12/2016,Current (non AEF) Grants to Local Authorities,Local Government & Public Services,CHORLEY BOROUGH COUNCIL,,,,236415576,5000355567,,Business Rates Multiplier Cap,PR7 1DP,"4,559.00",Yes
Communities & Local Government,DCLG,13/12/2016,Current (non AEF) Grants to Local Authorities,Local Government & Public Services,CHORLEY BOROUGH COUNCIL,,,,236415576,5000355569,,Doubling of Small Business Rates Relief,PR7 1DP,"43,127.00",Yes
Communities & Local Government,DCLG,13/12/2016,Current (non AEF) Grants to Local Authorities,Local Government & Public Services,CHRISTCHURCH BC (HSG),,,,227415213,5000354328,,Business Rates Multiplier Cap,BH23 1AZ,"1,789.00",Yes
Communities & Local Government,DCLG,13/12/2016,Current (non AEF) Grants to Local Authorities,Local Government & Public Services,CHRISTCHURCH BC (HSG),,,,227415213,5000354331,,Doubling of Small Business Rates Relief,BH23 1AZ,"21,236.00",Yes
Communities & Local Government,DCLG,13/12/2016,Current (non AEF) Grants to Local Authorities,Local Government & Public Services,CHRISTCHURCH BC (HSG),,,,227415213,5000354334,,Long Term Empty Property Relief,BH23 1AZ,702,Yes
Communities & Local Government,DCLG,13/12/2016,Current (non AEF) Grants to Local Authorities,Local Government & Public Services,CITY OF LINCOLN COUNCIL,,,,,5000356113,,Business Rates Multiplier Cap,LN1 1DB,"5,241.00",Yes
Communities & Local Government,DCLG,13/12/2016,Current (non AEF) Grants to Local Authorities,Local Government & Public Services,CITY OF LINCOLN COUNCIL,,,,,5000356114,,Doubling of Small Business Rates Relief,LN1 1DB,"32,563.00",Yes
Communities & Local Government,DCLG,13/12/2016,Current (non AEF) Grants to Local Authorities,Local Government & Public Services,CITY OF LINCOLN COUNCIL,,,,,5000356115,,New Empty Property Relief,LN1 1DB,"5,979.00",Yes
Communities & Local Government,DCLG,13/12/2016,Current (non AEF) Grants to Local Authorities,Local Government & Public Services,CITY OF LINCOLN COUNCIL,,,,,5000356116,,Long Term Empty Property Relief,LN1 1DB,"4,478.00",Yes
Communities & Local Government,DCLG,13/12/2016,Current (non AEF) Grants to Local Authorities,Local Government & Public Services,CITY OF LONDON (HSG),,,,217471460,5000354343,,Business Rates Multiplier Cap,EC2P 2EJ,"44,621.00",Yes
Communities & Local Government,DCLG,13/12/2016,Current (non AEF) Grants to Local Authorities,Local Government & Public Services,CITY OF LONDON (HSG),,,,217471460,5000354346,,Doubling of Small Business Rates Relief,EC2P 2EJ,"5,577.00",Yes
Communities & Local Government,DCLG,13/12/2016,Current (non AEF) Grants to Local Authorities,Local Government & Public Services,CITY OF LONDON (HSG),,,,217471460,5000354349,,New Empty Property Relief,EC2P 2EJ,"3,560.00",Yes
Communities & Local Government,DCLG,13/12/2016,Current (non AEF) Grants to Local Authorities,Local Government & Public Services,CITY OF LONDON (HSG),,,,217471460,5000354352,,Long Term Empty Property Relief,EC2P 2EJ,"2,223.00",Yes
Communities & Local Government,DCLG,13/12/2016,Current (non AEF) Grants to Local Authorities,Local Government & Public Services,CITY OF LONDON (HSG),,,,217471460,5000354355,,Extended Transitional Relief for Small and Medium,EC2P 2EJ,255,Yes
Communities & Local Government,DCLG,13/12/2016,Current (non AEF) Grants to Local Authorities,Local Government & Public Services,CITY OF SUNDERLAND (HSG),,,,215599312,5000354358,,Business Rates Multiplier Cap,SR2 7DN,"97,061.00",Yes
Communities & Local Government,DCLG,13/12/2016,Current (non AEF) Grants to Local Authorities,Local Government & Public Services,CITY OF SUNDERLAND (HSG),,,,215599312,5000354361,,Doubling of Small Business Rates Relief,SR2 7DN,"97,635.00",Yes
Communities & Local Government,DCLG,13/12/2016,Current (non AEF) Grants to Local Authorities,Local Government & Public Services,CITY OF SUNDERLAND (HSG),,,,215599312,5000354364,,Long Term Empty Property Relief,SR2 7DN,"2,585.00",Yes
Communities & Local Government,DCLG,13/12/2016,Current (non AEF) Grants to Local Authorities,Local Government & Public Services,CITY OF SUNDERLAND (HSG),,,,215599312,5000354367,,Extended Transitional Relief for Small and Medium,SR2 7DN,828,Yes
Communities & Local Government,DCLG,13/12/2016,Current (non AEF) Grants to Local Authorities,Local Government & Public Services,CITY OF WAKEFIELD MDC,,,,,5000355177,,Extended Transitional Relief for Small and Medium,WF1 2QW,828,Yes
Communities & Local Government,DCLG,13/12/2016,Current (non AEF) Grants to Local Authorities,Local Government & Public Services,CITY OF WAKEFIELD MDC,,,,,5000355180,,Business Rates Multiplier Cap,WF1 2QW,"81,825.00",Yes
Communities & Local Government,DCLG,13/12/2016,Current (non AEF) Grants to Local Authorities,Local Government & Public Services,CITY OF WAKEFIELD MDC,,,,,5000355183,,Doubling of Small Business Rates Relief,WF1 2QW,"165,482.00",Yes
Communities & Local Government,DCLG,13/12/2016,Current (non AEF) Grants to Local Authorities,Local Government & Public Services,CITY OF WAKEFIELD MDC,,,,,5000355189,,Long Term Empty Property Relief,WF1 2QW,"4,089.00",Yes
Communities & Local Government,DCLG,13/12/2016,Current (non AEF) Grants to Local Authorities,Local Government & Public Services,CITY OF WAKEFIELD MDC,,,,,5000355190,,Small Business Rates Relief on Second Properties,WF1 2QW,414,Yes
Communities & Local Government,DCLG,13/12/2016,Current (non AEF) Grants to Local Authorities,Local Government & Public Services,CLEVELAND FIRE AUTHORITY,,Medium,,424872778,5000355606,,Business Rates Multiplier Cap,TS25 5TB,"10,127.00",Yes
Communities & Local Government,DCLG,13/12/2016,Current (non AEF) Grants to Local Authorities,Local Government & Public Services,CLEVELAND FIRE AUTHORITY,,Medium,,424872778,5000355608,,Doubling of Small Business Rates Relief,TS25 5TB,"4,343.00",Yes
Communities & Local Government,DCLG,13/12/2016,Current (non AEF) Grants to Local Authorities,Local Government & Public Services,CODURHAM&DARLINGTON FIRE & RES AUT,,,,424872851,5000355754,,Business Rates Multiplier Cap,DH1 1TW,"7,850.00",Yes
Communities & Local Government,DCLG,13/12/2016,Current (non AEF) Grants to Local Authorities,Local Government & Public Services,CODURHAM&DARLINGTON FIRE & RES AUT,,,,424872851,5000355756,,Doubling of Small Business Rates Relief,DH1 1TW,"5,162.00",Yes
Communities & Local Government,DCLG,13/12/2016,Current (non AEF) Grants to Local Authorities,Local Government & Public Services,COLCHESTER BC,,,,,5000355574,,Extended Transitional Relief for Small and Medium,CO3 3WG,468,Yes
Communities & Local Government,DCLG,13/12/2016,Current (non AEF) Grants to Local Authorities,Local Government & Public Services,COLCHESTER BC,,,,,5000355578,,Business Rates Multiplier Cap,CO3 3WG,"6,355.00",Yes
Communities & Local Government,DCLG,13/12/2016,Current (non AEF) Grants to Local Authorities,Local Government & Public Services,COLCHESTER BC,,,,,5000355580,,Doubling of Small Business Rates Relief,CO3 3WG,"53,612.00",Yes
Communities & Local Government,DCLG,13/12/2016,Current (non AEF) Grants to Local Authorities,Local Government & Public Services,COLCHESTER BC,,,,,5000355582,,New Empty Property Relief,CO3 3WG,"4,839.00",Yes
Communities & Local Government,DCLG,13/12/2016,Current (non AEF) Grants to Local Authorities,Local Government & Public Services,COPELAND BC,,,,236414827,5000354370,,Extended Transitional Relief for Small and Medium,CA28 7NY,338,Yes
Communities & Local Government,DCLG,13/12/2016,Current (non AEF) Grants to Local Authorities,Local Government & Public Services,COPELAND BC,,,,236414827,5000354373,,Business Rates Multiplier Cap,CA28 7NY,"1,655.00",Yes
Communities & Local Government,DCLG,13/12/2016,Current (non AEF) Grants to Local Authorities,Local Government & Public Services,COPELAND BC,,,,236414827,5000354376,,Doubling of Small Business Rates Relief,CA28 7NY,"25,544.00",Yes
Communities & Local Government,DCLG,13/12/2016,Current (non AEF) Grants to Local Authorities,Local Government & Public Services,COPELAND BC,,,,236414827,5000354380,,Long Term Empty Property Relief,CA28 7NY,250,Yes
Communities & Local Government,DCLG,13/12/2016,Current (non AEF) Grants to Local Authorities,Local Government & Public Services,CORBY BC,,,,,5000354389,,Doubling of Small Business Rates Relief,NN17 1GD,"19,832.00",Yes
Communities & Local Government,DCLG,13/12/2016,Current (non AEF) Grants to Local Authorities,Local Government & Public Services,CORBY BC,,,,,5000354392,,Long Term Empty Property Relief,NN17 1GD,"1,691.00",Yes
Communities & Local Government,DCLG,13/12/2016,Current (non AEF) Grants to Local Authorities,Local Government & Public Services,CORBY BC,,,,,5000354395,,Business Rates Multiplier Cap,NN17 1GD,"3,687.00",Yes
Communities & Local Government,DCLG,13/12/2016,Current (non AEF) Grants to Local Authorities,Local Government & Public Services,CORNWALL UNITARY AUTHORITY,,,,211334404,5000355958,,New Empty Property Relief,TR1 3AY,634,Yes
Communities & Local Government,DCLG,13/12/2016,Current (non AEF) Grants to Local Authorities,Local Government & Public Services,CORNWALL UNITARY AUTHORITY,,,,211334404,5000355960,,Long Term Empty Property Relief,TR1 3AY,"1,444.00",Yes
Communities & Local Government,DCLG,13/12/2016,Current (non AEF) Grants to Local Authorities,Local Government & Public Services,CORNWALL UNITARY AUTHORITY,,,,211334404,5000355962,,Extended Transitional Relief for Small and Medium,TR1 3AY,"6,928.00",Yes
Communities & Local Government,DCLG,13/12/2016,Current (non AEF) Grants to Local Authorities,Local Government & Public Services,CORNWALL UNITARY AUTHORITY,,,,211334404,5000355964,,Small Business Rates Relief on Second Properties,TR1 3AY,"1,249.00",Yes
Communities & Local Government,DCLG,13/12/2016,Current (non AEF) Grants to Local Authorities,Local Government & Public Services,CORNWALL UNITARY AUTHORITY,,,,211334404,5000355966,,Business Rates Multiplier Cap,TR1 3AY,"118,471.00",Yes
Communities & Local Government,DCLG,13/12/2016,Current (non AEF) Grants to Local Authorities,Local Government & Public Services,CORNWALL UNITARY AUTHORITY,,,,211334404,5000355968,,Doubling of Small Business Rates Relief,TR1 3AY,"508,891.00",Yes
Communities & Local Government,DCLG,13/12/2016,Current (non AEF) Grants to Local Authorities,Local Government & Public Services,COTSWOLD DC,,,,232462085,5000354398,,Business Rates Multiplier Cap,GL7 1PX,"2,515.00",Yes
Communities & Local Government,DCLG,13/12/2016,Current (non AEF) Grants to Local Authorities,Local Government & Public Services,COTSWOLD DC,,,,232462085,5000354401,,Doubling of Small Business Rates Relief,GL7 1PX,"51,266.00",Yes
Communities & Local Government,DCLG,13/12/2016,Current (non AEF) Grants to Local Authorities,Local Government & Public Services,COTSWOLD DC,,,,232462085,5000354413,,Extended Transitional Relief for Small and Medium,GL7 1PX,514,Yes
Communities & Local Government,DCLG,13/12/2016,Current (non AEF) Grants to Local Authorities,Local Government & Public Services,COVENTRY CITY CNCL,,,,210384802,5000355586,,Long Term Empty Property Relief,CV1 2QL,"3,878.00",Yes
Communities & Local Government,DCLG,13/12/2016,Current (non AEF) Grants to Local Authorities,Local Government & Public Services,COVENTRY CITY CNCL,,,,210384802,5000355588,,Extended Transitional Relief for Small and Medium,CV1 2QL,276,Yes
Communities & Local Government,DCLG,13/12/2016,Current (non AEF) Grants to Local Authorities,Local Government & Public Services,COVENTRY CITY CNCL,,,,210384802,5000355589,,Business Rates Multiplier Cap,CV1 2QL,"89,832.00",Yes
Communities & Local Government,DCLG,13/12/2016,Current (non AEF) Grants to Local Authorities,Local Government & Public Services,COVENTRY CITY CNCL,,,,210384802,5000355591,,Doubling of Small Business Rates Relief,CV1 2QL,"115,972.00",Yes
Communities & Local Government,DCLG,13/12/2016,Current (non AEF) Grants to Local Authorities,Local Government & Public Services,COVENTRY CITY CNCL,,,,210384802,5000355593,,New Empty Property Relief,CV1 2QL,379,Yes
Communities & Local Government,DCLG,13/12/2016,Current (non AEF) Grants to Local Authorities,Local Government & Public Services,CRAVEN DC (HSG),,,,,5000354422,,Doubling of Small Business Rates Relief,BD23 1FJ,"39,387.00",Yes
Communities & Local Government,DCLG,13/12/2016,Current (non AEF) Grants to Local Authorities,Local Government & Public Services,CRAVEN DC (HSG),,,,,5000354428,,Long Term Empty Property Relief,BD23 1FJ,822,Yes
Communities & Local Government,DCLG,13/12/2016,Current (non AEF) Grants to Local Authorities,Local Government & Public Services,CRAVEN DC (HSG),,,,,5000354431,,Business Rates Multiplier Cap,BD23 1FJ,"1,834.00",Yes
Communities & Local Government,DCLG,13/12/2016,Current (non AEF) Grants to Local Authorities,Local Government & Public Services,CRAWLEY BC,,,,211222500,5000354443,,New Empty Property Relief,RH10 1UZ,"3,750.00",Yes
Communities & Local Government,DCLG,13/12/2016,Current (non AEF) Grants to Local Authorities,Local Government & Public Services,CRAWLEY BC,,,,211222500,5000354446,,Long Term Empty Property Relief,RH10 1UZ,"2,411.00",Yes
Communities & Local Government,DCLG,13/12/2016,Current (non AEF) Grants to Local Authorities,Local Government & Public Services,CRAWLEY BC,,,,211222500,5000354453,,Doubling of Small Business Rates Relief,RH10 1UZ,"13,437.00",Yes
Communities & Local Government,DCLG,13/12/2016,Current (non AEF) Grants to Local Authorities,Local Government & Public Services,CRAWLEY BC,,,,211222500,5000354458,,Business Rates Multiplier Cap,RH10 1UZ,"6,985.00",Yes
Communities & Local Government,DCLG,13/12/2016,Current (non AEF) Grants to Local Authorities,Local Government & Public Services,CROYDON LB,,,,212419973,5000355595,,Business Rates Multiplier Cap,CR9 3JS,"79,499.00",Yes
Communities & Local Government,DCLG,13/12/2016,Current (non AEF) Grants to Local Authorities,Local Government & Public Services,CROYDON LB,,,,212419973,5000355597,,Doubling of Small Business Rates Relief,CR9 3JS,"77,896.00",Yes
Communities & Local Government,DCLG,13/12/2016,Current (non AEF) Grants to Local Authorities,Local Government & Public Services,CROYDON LB,,,,212419973,5000355601,,Extended Transitional Relief for Small and Medium,CR9 3JS,"33,546.00",Yes
Communities & Local Government,DCLG,13/12/2016,Current (non AEF) Grants to Local Authorities,Local Government & Public Services,CUMBRIA COUNTY CNCL,,,,211316542,5000355605,,Business Rates Multiplier Cap,CA3 8NA,"98,716.00",Yes
Communities & Local Government,DCLG,13/12/2016,Current (non AEF) Grants to Local Authorities,Local Government & Public Services,CUMBRIA COUNTY CNCL,,,,211316542,5000355607,,Doubling of Small Business Rates Relief,CA3 8NA,"73,597.00",Yes
Communities & Local Government,DCLG,13/12/2016,Current (non AEF) Grants to Local Authorities,Local Government & Public Services,CUMBRIA COUNTY CNCL,,,,211316542,5000355611,,Extended Transitional Relief for Small and Medium,CA3 8NA,335,Yes
Communities & Local Government,DCLG,13/12/2016,Current (non AEF) Grants to Local Authorities,Local Government & Public Services,CUMBRIA COUNTY CNCL,,,,211316542,5000355613,,Long Term Empty Property Relief,CA3 8NA,986,Yes
Communities & Local Government,DCLG,13/12/2016,Current (non AEF) Grants to Local Authorities,Local Government & Public Services,CUMBRIA COUNTY CNCL,,,,211316542,5000355615,,Small Business Rates Relief on Second Properties,CA3 8NA,443,Yes
Communities & Local Government,DCLG,13/12/2016,Current (non AEF) Grants to Local Authorities,Local Government & Public Services,DACORUM BC,,,,236448643,5000355621,,Business Rates Multiplier Cap,HP1 1HH,"3,038.00",Yes
Communities & Local Government,DCLG,13/12/2016,Current (non AEF) Grants to Local Authorities,Local Government & Public Services,DACORUM BC,,,,236448643,5000355623,,Doubling of Small Business Rates Relief,HP1 1HH,"37,754.00",Yes
Communities & Local Government,DCLG,13/12/2016,Current (non AEF) Grants to Local Authorities,Local Government & Public Services,DARLINGTON BC,,,,,5000355631,,New Empty Property Relief,TS19 1JA,"5,149.00",Yes
Communities & Local Government,DCLG,13/12/2016,Current (non AEF) Grants to Local Authorities,Local Government & Public Services,DARLINGTON BC,,,,,5000355633,,Doubling of Small Business Rates Relief,TS19 1JA,"50,314.00",Yes
Communities & Local Government,DCLG,13/12/2016,Current (non AEF) Grants to Local Authorities,Local Government & Public Services,DARLINGTON BC,,,,,5000355635,,Long Term Empty Property Relief,TS19 1JA,"1,977.00",Yes
Communities & Local Government,DCLG,13/12/2016,Current (non AEF) Grants to Local Authorities,Local Government & Public Services,DARLINGTON BC,,,,,5000355637,,Business Rates Multiplier Cap,TS19 1JA,"25,922.00",Yes
Communities & Local Government,DCLG,13/12/2016,Current (non AEF) Grants to Local Authorities,Local Government & Public Services,DARTFORD BC,,,,225694942,5000354461,,Business Rates Multiplier Cap,DA1 1DR,"5,025.00",Yes
Communities & Local Government,DCLG,13/12/2016,Current (non AEF) Grants to Local Authorities,Local Government & Public Services,DARTFORD BC,,,,225694942,5000354464,,Doubling of Small Business Rates Relief,DA1 1DR,"23,146.00",Yes
Communities & Local Government,DCLG,13/12/2016,Current (non AEF) Grants to Local Authorities,Local Government & Public Services,DARTFORD BC,,,,225694942,5000354470,,Small Business Rates Relief on Second Properties,DA1 1DR,285,Yes
Communities & Local Government,DCLG,13/12/2016,Current (non AEF) Grants to Local Authorities,Local Government & Public Services,DAVENTRY DC,,,,239859333,5000354476,,Business Rates Multiplier Cap,NN11 5AF,"5,999.00",Yes
Communities & Local Government,DCLG,13/12/2016,Current (non AEF) Grants to Local Authorities,Local Government & Public Services,DAVENTRY DC,,,,239859333,5000354479,,Doubling of Small Business Rates Relief,NN11 5AF,"28,896.00",Yes
Communities & Local Government,DCLG,13/12/2016,Current (non AEF) Grants to Local Authorities,Local Government & Public Services,DERBY CITY CNCL,,,,229641378,5000355639,,Business Rates Multiplier Cap,DE1 2FS,"70,576.00",Yes
Communities & Local Government,DCLG,13/12/2016,Current (non AEF) Grants to Local Authorities,Local Government & Public Services,DERBY CITY CNCL,,,,229641378,5000355641,,Doubling of Small Business Rates Relief,DE1 2FS,"88,172.00",Yes
Communities & Local Government,DCLG,13/12/2016,Current (non AEF) Grants to Local Authorities,Local Government & Public Services,DERBY CITY CNCL,,,,229641378,5000355643,,New Empty Property Relief,DE1 2FS,"2,072.00",Yes
Communities & Local Government,DCLG,13/12/2016,Current (non AEF) Grants to Local Authorities,Local Government & Public Services,DERBYSHIRE COUNTYCOUNCIL,,,,232152967,5000355647,,Business Rates Multiplier Cap,DE4 3AG,"125,887.00",Yes
Communities & Local Government,DCLG,13/12/2016,Current (non AEF) Grants to Local Authorities,Local Government & Public Services,DERBYSHIRE COUNTYCOUNCIL,,,,232152967,5000355651,,Long Term Empty Property Relief,DE4 3AG,615,Yes
Communities & Local Government,DCLG,13/12/2016,Current (non AEF) Grants to Local Authorities,Local Government & Public Services,DERBYSHIRE COUNTYCOUNCIL,,,,232152967,5000355653,,Extended Transitional Relief for Small and Medium,DE4 3AG,791,Yes
Communities & Local Government,DCLG,13/12/2016,Current (non AEF) Grants to Local Authorities,Local Government & Public Services,DERBYSHIRE COUNTYCOUNCIL,,,,232152967,5000355657,,Doubling of Small Business Rates Relief,DE4 3AG,"68,823.00",Yes
Communities & Local Government,DCLG,13/12/2016,Current (non AEF) Grants to Local Authorities,Local Government & Public Services,DERBYSHIRE DALES DC,,,,,5000354487,,Extended Transitional Relief for Small and Medium,DE4 3NN,342,Yes
Communities & Local Government,DCLG,13/12/2016,Current (non AEF) Grants to Local Authorities,Local Government & Public Services,DERBYSHIRE DALES DC,,,,,5000354490,,Business Rates Multiplier Cap,DE4 3NN,"2,117.00",Yes
Communities & Local Government,DCLG,13/12/2016,Current (non AEF) Grants to Local Authorities,Local Government & Public Services,DERBYSHIRE DALES DC,,,,,5000354493,,Doubling of Small Business Rates Relief,DE4 3NN,"45,706.00",Yes
Communities & Local Government,DCLG,13/12/2016,Current (non AEF) Grants to Local Authorities,Local Government & Public Services,DERBYSHIRE FIRE AND RESCUE SERVICE,,,,424872935,5000355766,,Doubling of Small Business Rates Relief,DE5 3RS,"9,446.00",Yes
Communities & Local Government,DCLG,13/12/2016,Current (non AEF) Grants to Local Authorities,Local Government & Public Services,DERBYSHIRE FIRE AND RESCUE SERVICE,,,,424872935,5000355773,,Business Rates Multiplier Cap,DE5 3RS,"10,184.00",Yes
Communities & Local Government,DCLG,13/12/2016,Current (non AEF) Grants to Local Authorities,Local Government & Public Services,DEVON & SOMERSET FIRE & RESCUE SERV,,Large,,424872976,5000355694,,Business Rates Multiplier Cap,EX3 0NW,"17,719.00",Yes
Communities & Local Government,DCLG,13/12/2016,Current (non AEF) Grants to Local Authorities,Local Government & Public Services,DEVON & SOMERSET FIRE & RESCUE SERV,,Large,,424872976,5000355696,,Doubling of Small Business Rates Relief,EX3 0NW,"20,906.00",Yes
Communities & Local Government,DCLG,13/12/2016,Current (non AEF) Grants to Local Authorities,Local Government & Public Services,DEVON & SOMERSET FIRE & RESCUE SERV,,Large,,424872976,5000355702,,Long Term Empty Property Relief,EX3 0NW,281,Yes
Communities & Local Government,DCLG,13/12/2016,Current (non AEF) Grants to Local Authorities,Local Government & Public Services,DEVON COUNTY CNCL,,,,213754018,5000355661,,Business Rates Multiplier Cap,EX2 4QJ,"113,678.00",Yes
Communities & Local Government,DCLG,13/12/2016,Current (non AEF) Grants to Local Authorities,Local Government & Public Services,DEVON COUNTY CNCL,,,,213754018,5000355663,,New Empty Property Relief,EX2 4QJ,462,Yes
Communities & Local Government,DCLG,13/12/2016,Current (non AEF) Grants to Local Authorities,Local Government & Public Services,DEVON COUNTY CNCL,,,,213754018,5000355666,,Long Term Empty Property Relief,EX2 4QJ,454,Yes
Communities & Local Government,DCLG,13/12/2016,Current (non AEF) Grants to Local Authorities,Local Government & Public Services,DEVON COUNTY CNCL,,,,213754018,5000355668,,Extended Transitional Relief for Small and Medium,EX2 4QJ,"1,280.00",Yes
Communities & Local Government,DCLG,13/12/2016,Current (non AEF) Grants to Local Authorities,Local Government & Public Services,DEVON COUNTY CNCL,,,,213754018,5000355672,,Doubling of Small Business Rates Relief,EX2 4QJ,"102,147.00",Yes
Communities & Local Government,DCLG,13/12/2016,Current (non AEF) Grants to Local Authorities,Local Government & Public Services,DONCASTER MBC,,,,,5000355678,,Long Term Empty Property Relief,DN1 3QA,"1,734.00",Yes
Communities & Local Government,DCLG,13/12/2016,Current (non AEF) Grants to Local Authorities,Local Government & Public Services,DONCASTER MBC,,,,,5000355680,,Extended Transitional Relief for Small and Medium,DN1 3QA,823,Yes
Communities & Local Government,DCLG,13/12/2016,Current (non AEF) Grants to Local Authorities,Local Government & Public Services,DONCASTER MBC,,,,,5000355682,,Small Business Rates Relief on Second Properties,DN1 3QA,"1,128.00",Yes
Communities & Local Government,DCLG,13/12/2016,Current (non AEF) Grants to Local Authorities,Local Government & Public Services,DONCASTER MBC,,,,,5000355683,,Business Rates Multiplier Cap,DN1 3QA,"90,461.00",Yes
Communities & Local Government,DCLG,13/12/2016,Current (non AEF) Grants to Local Authorities,Local Government & Public Services,DONCASTER MBC,,,,,5000355685,,New Empty Property Relief,DN1 3QA,"1,691.00",Yes
Communities & Local Government,DCLG,13/12/2016,Current (non AEF) Grants to Local Authorities,Local Government & Public Services,DONCASTER MBC,,,,,5000355687,,Doubling of Small Business Rates Relief,DN1 3QA,"126,968.00",Yes
Communities & Local Government,DCLG,13/12/2016,Current (non AEF) Grants to Local Authorities,Local Government & Public Services,DORSET & WILTSHIRE FIRE & RESCUE AU,,Large,,,5000355998,,Doubling of Small Business Rates Relief,SP1 3NR,"14,051.00",Yes
Communities & Local Government,DCLG,13/12/2016,Current (non AEF) Grants to Local Authorities,Local Government & Public Services,DORSET & WILTSHIRE FIRE & RESCUE AU,,Large,,,5000356002,,Business Rates Multiplier Cap,SP1 3NR,"11,487.00",Yes
Communities & Local Government,DCLG,13/12/2016,Current (non AEF) Grants to Local Authorities,Local Government & Public Services,DORSET COUNTY CNCL,,,,225431279,5000355689,,Doubling of Small Business Rates Relief,DT1 1XJ,"48,027.00",Yes
Communities & Local Government,DCLG,13/12/2016,Current (non AEF) Grants to Local Authorities,Local Government & Public Services,DORSET COUNTY CNCL,,,,225431279,5000355691,,Long Term Empty Property Relief,DT1 1XJ,312,Yes
Communities & Local Government,DCLG,13/12/2016,Current (non AEF) Grants to Local Authorities,Local Government & Public Services,DORSET COUNTY CNCL,,,,225431279,5000355695,,Business Rates Multiplier Cap,DT1 1XJ,"43,745.00",Yes
Communities & Local Government,DCLG,13/12/2016,Current (non AEF) Grants to Local Authorities,Local Government & Public Services,DORSET COUNTY CNCL,,,,225431279,5000355697,,New Empty Property Relief,DT1 1XJ,410,Yes
Communities & Local Government,DCLG,13/12/2016,Current (non AEF) Grants to Local Authorities,Local Government & Public Services,DORSET COUNTY CNCL,,,,225431279,5000355699,,Extended Transitional Relief for Small and Medium,DT1 1XJ,294,Yes
Communities & Local Government,DCLG,13/12/2016,Current (non AEF) Grants to Local Authorities,Local Government & Public Services,DOVER DC,,,,,5000354501,,Extended Transitional Relief for Small and Medium,CT16 3PD,372,Yes
Communities & Local Government,DCLG,13/12/2016,Current (non AEF) Grants to Local Authorities,Local Government & Public Services,DOVER DC,,,,,5000354504,,Business Rates Multiplier Cap,CT16 3PD,"5,067.00",Yes
Communities & Local Government,DCLG,13/12/2016,Current (non AEF) Grants to Local Authorities,Local Government & Public Services,DOVER DC,,,,,5000354507,,Doubling of Small Business Rates Relief,CT16 3PD,"43,799.00",Yes
Communities & Local Government,DCLG,13/12/2016,Current (non AEF) Grants to Local Authorities,Local Government & Public Services,DOVER DC,,,,,5000354510,,Long Term Empty Property Relief,CT16 3PD,710,Yes
Communities & Local Government,DCLG,13/12/2016,Current (non AEF) Grants to Local Authorities,Local Government & Public Services,DUDLEY MBC,,,,,5000355705,,Small Business Rates Relief on Second Properties,DY1 1HF,682,Yes
Communities & Local Government,DCLG,13/12/2016,Current (non AEF) Grants to Local Authorities,Local Government & Public Services,DUDLEY MBC,,,,,5000355707,,Business Rates Multiplier Cap,DY1 1HF,"73,521.00",Yes
Communities & Local Government,DCLG,13/12/2016,Current (non AEF) Grants to Local Authorities,Local Government & Public Services,DUDLEY MBC,,,,,5000355709,,New Empty Property Relief,DY1 1HF,"4,142.00",Yes
Communities & Local Government,DCLG,13/12/2016,Current (non AEF) Grants to Local Authorities,Local Government & Public Services,DUDLEY MBC,,,,,5000355711,,Extended Transitional Relief for Small and Medium,DY1 1HF,280,Yes
Communities & Local Government,DCLG,13/12/2016,Current (non AEF) Grants to Local Authorities,Local Government & Public Services,DUDLEY MBC,,,,,5000355713,,Doubling of Small Business Rates Relief,DY1 1HF,"153,342.00",Yes
Communities & Local Government,DCLG,13/12/2016,Current (non AEF) Grants to Local Authorities,Local Government & Public Services,DUDLEY MBC,,,,,5000355715,,Long Term Empty Property Relief,DY1 1HF,"2,795.00",Yes
Communities & Local Government,DCLG,13/12/2016,Current (non AEF) Grants to Local Authorities,Local Government & Public Services,DURHAM COUNTY COUNCIL,,,,224004882,5000355972,,Extended Transitional Relief for Small and Medium,DH1 5UE,421,Yes
Communities & Local Government,DCLG,13/12/2016,Current (non AEF) Grants to Local Authorities,Local Government & Public Services,DURHAM COUNTY COUNCIL,,,,224004882,5000355974,,Business Rates Multiplier Cap,DH1 5UE,"139,604.00",Yes
Communities & Local Government,DCLG,13/12/2016,Current (non AEF) Grants to Local Authorities,Local Government & Public Services,DURHAM COUNTY COUNCIL,,,,224004882,5000355976,,Doubling of Small Business Rates Relief,DH1 5UE,"202,659.00",Yes
Communities & Local Government,DCLG,13/12/2016,Current (non AEF) Grants to Local Authorities,Local Government & Public Services,DURHAM COUNTY COUNCIL,,,,224004882,5000355978,,Long Term Empty Property Relief,DH1 5UE,"1,393.00",Yes
Communities & Local Government,DCLG,13/12/2016,Current (non AEF) Grants to Local Authorities,Local Government & Public Services,DURHAM COUNTY COUNCIL,,,,224004882,5000355980,,Small Business Rates Relief on Second Properties,DH1 5UE,617,Yes
Communities & Local Government,DCLG,13/12/2016,Current (non AEF) Grants to Local Authorities,Local Government & Public Services,EALING LB,,,,,5000355717,,Doubling of Small Business Rates Relief,W5 2HL,"59,633.00",Yes
Communities & Local Government,DCLG,13/12/2016,Current (non AEF) Grants to Local Authorities,Local Government & Public Services,EALING LB,,,,,5000355719,,Long Term Empty Property Relief,W5 2HL,"1,813.00",Yes
Communities & Local Government,DCLG,13/12/2016,Current (non AEF) Grants to Local Authorities,Local Government & Public Services,EALING LB,,,,,5000355721,,Business Rates Multiplier Cap,W5 2HL,"87,273.00",Yes
Communities & Local Government,DCLG,13/12/2016,Current (non AEF) Grants to Local Authorities,Local Government & Public Services,EALING LB,,,,,5000355723,,New Empty Property Relief,W5 2HL,"13,321.00",Yes
Communities & Local Government,DCLG,13/12/2016,Current (non AEF) Grants to Local Authorities,Local Government & Public Services,EALING LB,,,,,5000355725,,Small Business Rates Relief on Second Properties,W5 2HL,396,Yes
Communities & Local Government,DCLG,13/12/2016,Current (non AEF) Grants to Local Authorities,Local Government & Public Services,EAST CAMBRIDGESHIRE DC,,,,236472023,5000354516,,Doubling of Small Business Rates Relief,CB7 4PL,"27,311.00",Yes
Communities & Local Government,DCLG,13/12/2016,Current (non AEF) Grants to Local Authorities,Local Government & Public Services,EAST CAMBRIDGESHIRE DC,,,,236472023,5000354523,,Business Rates Multiplier Cap,CB7 4PL,"3,592.00",Yes
Communities & Local Government,DCLG,13/12/2016,Current (non AEF) Grants to Local Authorities,Local Government & Public Services,EAST DEVON DC,,,,,5000354532,,Doubling of Small Business Rates Relief,EX10 8HL,"73,761.00",Yes
Communities & Local Government,DCLG,13/12/2016,Current (non AEF) Grants to Local Authorities,Local Government & Public Services,EAST DEVON DC,,,,,5000354538,,Extended Transitional Relief for Small and Medium,EX10 8HL,"1,166.00",Yes
Communities & Local Government,DCLG,13/12/2016,Current (non AEF) Grants to Local Authorities,Local Government & Public Services,EAST DEVON DC,,,,,5000354541,,Business Rates Multiplier Cap,EX10 8HL,"3,747.00",Yes
Communities & Local Government,DCLG,13/12/2016,Current (non AEF) Grants to Local Authorities,Local Government & Public Services,EAST DORSET DC,,,,228470456,5000355729,,Business Rates Multiplier Cap,BH21 4HN,"1,835.00",Yes
